Workbook

Sheet Relevé pâture
A1: Gestion des pâturages - Relevés des parcelles v2.0
H2: Completer seulement les caisses en jaune
A3: Nom de l'exploitation : | C3: Ferme exemple
A4: Données du troupeau :
A5: Vaches laitières | H5: Vaches allaitantes | N5: Fourrages à crèche
A6: Nbre de vaches laitières (VL) | E6: 30 | H6: Nbre de vaches allaitantes (VA) | K6: 0 | N6: Gestion de l'affouragement à crèche : | Q6: Quantités affouragées fixes
A7: Production (kg lait / VL / j) | E7: 25 | H7: Type | K7: Vaches portantes-taries
A8: Ingestion fourrages de base (kgMS / VL / j) | E8: =(VLOOKUP(E7,Listes!$C$7:$D$34,2,)) -> 18 | H8: Race | K8: Légère | N8: Quantités affouragées | R8: =IF(Q6="Quantités affouragées fixes", "COMPLETER ICI !", "") -> COMPLETER ICI ! | U8: =IF(Q6="Adaptation des quantités selon la pousse de l'herbe", "COMPLETER ICI !", "") -> 
H9: Ingestion fourrages de base (kgMS / VA / j) | K9: =INDEX(Listes!H8:I10,MATCH($K$7,Listes!$G$8:$G$10,0),MATCH($K$8,Listes!$H$7:$I$7,0)) -> 11
A10: Ingestion fourrages de base troupeau (kgMS / j) | E10: =E6*E8+K6*K9 -> 540
R11: Quantités fixes | U11: Adaptation des quantités affouragées
A12: Mesure de l'herbe : | H12: Surface pâturable (ha) : | K12: =$B$69 -> 8 | N12: Choisir fourrage | Q12: MS % | R12: kgMF/jour | S12: kgMS/jour | U12: Proportion % MS
A13: Instrument utilisé : | E13: Herbomètre (cm) | F13: Hauteur d'entrée selon besoins | H13: Surface disponible par vache (ares / vache) : | K13: =K12*100/E6 -> 26.66666667 | N13: Foin G 5 | Q13: =VLOOKUP(N13, 'Liste fourrages'!$B$5:$C$415,2,) -> 88 | R13: 100 | S13: =IF(R13<>0,R13*(Q13/100),"") -> 88 | U13: 0.5
A14: Unité : | E14: =IF(E13="Herbomètre (clics)","clics","cm") -> cm | N14: Ensilage d'herbe ER 1 | Q14: =VLOOKUP(N14, 'Liste fourrages'!$B$5:$C$415,2,) -> 35 | R14: 500 | S14: =IF(R14<>0,R14*(Q14/100),"") -> 175 | U14: 0.5
A15: Hauteur de sortie objective | E15: 4.5 | H15: Herbe disponible (kgMS / j) | K15: =(LOOKUP(9^9,M70:AV70)*$B$69) -> 553.1428571 | N15: - | Q15: =VLOOKUP(N15, 'Liste fourrages'!$B$5:$C$415,2,) -> 100 | S15: =IF(R15<>0,R15*(Q15/100),"") ->  | U15: 0
A16: Hauteur d'entrée objective (8-12cm) : | E16: 9 | F16: =((E10*K16/B69)*E18+$E$15*$K$128)/$K$128 -> 7.144090909 | H16: % d'herbe dans la ration | K16: =IF(AND(S18<>0),(E10-S18)/E10,IF(K15>E10,1,K15/E10)) -> 0.512962963 | N16: - | Q16: =VLOOKUP(N16, 'Liste fourrages'!$B$5:$C$415,2,) -> 100 | S16: =IF(R16<>0,R16*(Q16/100),"") ->  | U16: 0
A17: Nbre parcs : | E17: =SUMPRODUCT((D25:D68<>"Sortie du tournus (stock sur pied/fauche)")*(A25:A68<>"")) -> 5 | H17: Surface journalière theotique troupeau (ha / j) : | K17: =$E$10*$K$16/(($E$16-$E$15)*K128) -> 0.2797979798 | N17: - | Q17: =VLOOKUP(N17, 'Liste fourrages'!$B$5:$C$415,2,) -> 100 | S17: =IF(R17<>0,R17*(Q17/100),"") ->  | U17: 0
A18: Durée de repos calculée (jours) : | E18: =(C69)-(C69/E17) -> 16.8 | H18: Surface globale theotique par vache (ares / vache) : | K18: =(E8*K16)/(LOOKUP(9^9,M70:AV70))*100 -> 13.35399449 | R18: =SUM(R13:R17) -> 600 | S18: =SUM(S13:S17) -> 263 | U18: =SUM(U13:U17) -> 1 | V18: <-- Vérifiez que vous avez 100 %
A22: Inserer parcelles/parcs et noter la dernière action | G22: Consernant la dernière mesure | M22: Choisir une date, saisir les hauteurs mesurées et l'action de la dernière semaine
A23: Parcelles/Parcs pâturages | B23: Parcelles/Parcs pâturages | C23: Durée d'occupation | D23: Action dernière semaine | E23: Part et forme de graminées (pour densité de l'herbe) | G23: Hauteur d'herbe | H23: Herbe disponible (hauteur mesurée - hauteur sortie) | J23: Jours de réserve | K23: Courbe de cohérence | M23: 2025-03-04 | O23: 2025-03-11 | CG23: Dernière densité
A24: n° / nom | B24: Surface (ha) | C24: Jours | D24: Action | E24: % | F24: Forme | G24: clics / cm | H24: kgMS / ha | I24: kgMS / parcelle | J24: Jours2 | K24: clics / cm | L24: Colonne1 | M24: clics / cm3 | N24: Utilisation dernière semaine | O24: clics / cm4 | P24: Utilisation dernière semaine | Q24: clics / cm5 | R24: Utilisation dernière semaine | S24: clics / cm9 | T24: Utilisation dernière semaine23 | U24: Colonne2 | V24: Colonne3 | W24: Colonne4 | X24: Colonne5 | Y24: Colonne6 | Z24: Colonne7 | AA24: clics / cm17 | AB24: Utilisation dernière semaine27 | AC24: clics / cm19222 | AD24: Utilisation dernière semaine28333 | AE24: clics / cm21 | AF24: Utilisation dernière semaine29 | AG24: clics / cm23 | AH24: Utilisation dernière semaine210 | AI24: clics / cm25 | AJ24: Utilisation dernière semaine211 | AK24: clics / cm27 | AL24: Utilisation dernière semaine212 | AM24: clics / cm29 | AN24: Utilisation dernière semaine213 | AO24: clics / cm31 | AP24: Utilisation dernière semaine214 | AQ24: clics / cm33 | AR24: Utilisation dernière semaine215 | AS24: clics / cm35 | AT24: Utilisation dernière semaine216 | AU24: clics / cm37 | AV24: Utilisation dernière semaine217 | AW24: clics / cm32 | AX24: Utilisation dernière semaine3 | AY24: clics / cm44 | AZ24: Utilisation dernière semaine 5 | BA24: clics / cm56 | BB24: Utilisation dernière semaine 7 | BC24: clics / cm98 | BD24: Utilisation dernière semaine239 | BE24: clics / cm1110 | BF24: Utilisation dernière semaine2411 | BG24: clics / cm1312 | BH24: Utilisation dernière semaine2513 | BI24: clics / cm1514 | BJ24: Utilisation dernière semaine2615 | BK24: clics / cm1716 | BL24: Utilisation dernière semaine2717 | BM24: clics / cm1918 | BN24: Utilisation dernière semaine2819 | BO24: clics / cm2120 | BP24: Utilisation dernière semaine2921 | BQ24: clics / cm2322 | BR24: Utilisation dernière semaine21023 | BS24: clics / cm2524 | BT24: Utilisation dernière semaine21125 | BU24: clics / cm2726 | BV24: Utilisation dernière semaine21227 | BW24: clics / cm2928 | BX24: Utilisation dernière semaine21329 | BY24: clics / cm3130 | BZ24: Utilisation dernière semaine21431 | CA24: clics / cm3332 | CB24: Utilisation dernière semaine21533 | CC24: clics / cm3534 | CD24: Utilisation dernière semaine21635 | CE24: clics / cm3736 | CF24: Utilisation dernière semaine21737
A25: 5 | B25: 2 | C25: 5 | D25: =IF(COUNTA(M25:CF25)=0, "", INDEX(_xlfn._xlws.FILTER(M25:CF25,ISTEXT(M25:CF25)), COUNTA(_xlfn._xlws.FILTER(M25:CF25,ISTEXT(M25:CF25))))) -> Rien | E25: > 70% | F25: Gazon | G25: =IF(AND(COUNTIF(M25:AV25,">0")>0,D25<>"Sortie du tournus (stock sur pied/fauche)"),LOOKUP(9^9,M25:AV25),0) -> 9 | H25: =IF(G25>0,(Tableau4[[#This Row],[clics / cm]]-$E$15)*CG25,0) -> 990 | I25: =Tableau4[[#This Row],[kgMS / ha]]*Tableau4[[#This Row],[Surface (ha)]] -> 1980 | J25: =Tableau4[[#This Row],[kgMS / parcelle]]/($E$10*$K$16) -> 7.14801444 | K25: =IF(G25="",NA(),$E$16 - (ROW(A25) - ROW($A$25)) * (($E$16 - $E$15) / ($E$17 - 1))) -> 9 | M25: 6 | N25: Rien | O25: 9 | P25: Rien | CG25: ='Pousse de l''herbe'!BX10 -> 220
A26: 4 | B26: 1.5 | C26: 4 | D26: =IF(COUNTA(M26:CF26)=0, "", INDEX(_xlfn._xlws.FILTER(M26:CF26,ISTEXT(M26:CF26)), COUNTA(_xlfn._xlws.FILTER(M26:CF26,ISTEXT(M26:CF26))))) -> Rien | E26: > 70% | F26: Gazon | G26: 8 | H26: =IF(G26>0,(Tableau4[[#This Row],[clics / cm]]-$E$15)*CG26,0) -> 770 | I26: =Tableau4[[#This Row],[kgMS / ha]]*Tableau4[[#This Row],[Surface (ha)]] -> 1155 | J26: =Tableau4[[#This Row],[kgMS / parcelle]]/($E$10*$K$16) -> 4.16967509 | K26: 7.875 | M26: 6 | N26: Rien | O26: 8 | P26: Rien | CG26: ='Pousse de l''herbe'!BX11 -> 220
A27: 1 | B27: 1.5 | C27: 4 | D27: =IF(COUNTA(M27:CF27)=0, "", INDEX(_xlfn._xlws.FILTER(M27:CF27,ISTEXT(M27:CF27)), COUNTA(_xlfn._xlws.FILTER(M27:CF27,ISTEXT(M27:CF27))))) -> Rien | E27: > 70% | F27: Gazon | G27: 7 | H27: =IF(G27>0,(Tableau4[[#This Row],[clics / cm]]-$E$15)*CG27,0) -> 550 | I27: =Tableau4[[#This Row],[kgMS / ha]]*Tableau4[[#This Row],[Surface (ha)]] -> 825 | J27: =Tableau4[[#This Row],[kgMS / parcelle]]/($E$10*$K$16) -> 2.97833935 | K27: 6.75 | M27: 5 | N27: Rien | O27: 7 | P27: Rien | CG27: ='Pousse de l''herbe'!BX12 -> 220
A28: 3 | B28: 1.5 | C28: 4 | D28: =IF(COUNTA(M28:CF28)=0, "", INDEX(_xlfn._xlws.FILTER(M28:CF28,ISTEXT(M28:CF28)), COUNTA(_xlfn._xlws.FILTER(M28:CF28,ISTEXT(M28:CF28))))) -> Rien | E28: > 70% | F28: Gazon | G28: 7 | H28: =IF(G28>0,(Tableau4[[#This Row],[clics / cm]]-$E$15)*CG28,0) -> 550 | I28: =Tableau4[[#This Row],[kgMS / ha]]*Tableau4[[#This Row],[Surface (ha)]] -> 825 | J28: =Tableau4[[#This Row],[kgMS / parcelle]]/($E$10*$K$16) -> 2.97833935 | K28: 5.625 | M28: 5 | N28: Rien | O28: 7 | P28: Rien | CG28: ='Pousse de l''herbe'!BX13 -> 220
A29: 2 | B29: 1.5 | C29: 4 | D29: =IF(COUNTA(M29:CF29)=0, "", INDEX(_xlfn._xlws.FILTER(M29:CF29,ISTEXT(M29:CF29)), COUNTA(_xlfn._xlws.FILTER(M29:CF29,ISTEXT(M29:CF29))))) -> Rien | E29: > 70% | F29: Gazon | G29: 7 | H29: =IF(G29>0,(Tableau4[[#This Row],[clics / cm]]-$E$15)*CG29,0) -> 550 | I29: =Tableau4[[#This Row],[kgMS / ha]]*Tableau4[[#This Row],[Surface (ha)]] -> 825 | J29: =Tableau4[[#This Row],[kgMS / parcelle]]/($E$10*$K$16) -> 2.97833935 | K29: 4.5 | M29: 5 | N29: Rien | O29: 7 | P29: Rien | CG29: ='Pousse de l''herbe'!BX14 -> 220
D30: =IF(COUNTA(M30:CF30)=0, "", INDEX(_xlfn._xlws.FILTER(M30:CF30,ISTEXT(M30:CF30)), COUNTA(_xlfn._xlws.FILTER(M30:CF30,ISTEXT(M30:CF30))))) ->  | G30: 0 | H30: =IF(G30>0,(Tableau4[[#This Row],[clics / cm]]-$E$15)*CG30,0) -> 0 | I30: =Tableau4[[#This Row],[kgMS / ha]]*Tableau4[[#This Row],[Surface (ha)]] -> 0 | J30: =Tableau4[[#This Row],[kgMS / parcelle]]/($E$10*$K$16) -> 0 | K30: 3.375 | CG30: ='Pousse de l''herbe'!BX15 -> 
D31: =IF(COUNTA(M31:CF31)=0, "", INDEX(_xlfn._xlws.FILTER(M31:CF31,ISTEXT(M31:CF31)), COUNTA(_xlfn._xlws.FILTER(M31:CF31,ISTEXT(M31:CF31))))) ->  | G31: 0 | H31: =IF(G31>0,(Tableau4[[#This Row],[clics / cm]]-$E$15)*CG31,0) -> 0 | I31: =Tableau4[[#This Row],[kgMS / ha]]*Tableau4[[#This Row],[Surface (ha)]] -> 0 | J31: =Tableau4[[#This Row],[kgMS / parcelle]]/($E$10*$K$16) -> 0 | K31: 2.25 | CG31: ='Pousse de l''herbe'!BX16 -> 
D32: =IF(COUNTA(M32:CF32)=0, "", INDEX(_xlfn._xlws.FILTER(M32:CF32,ISTEXT(M32:CF32)), COUNTA(_xlfn._xlws.FILTER(M32:CF32,ISTEXT(M32:CF32))))) ->  | G32: 0 | H32: =IF(G32>0,(Tableau4[[#This Row],[clics / cm]]-$E$15)*CG32,0) -> 0 | I32: =Tableau4[[#This Row],[kgMS / ha]]*Tableau4[[#This Row],[Surface (ha)]] -> 0 | J32: =Tableau4[[#This Row],[kgMS / parcelle]]/($E$10*$K$16) -> 0 | K32: 1.125 | CG32: ='Pousse de l''herbe'!BX17 -> 
D33: =IF(COUNTA(M33:CF33)=0, "", INDEX(_xlfn._xlws.FILTER(M33:CF33,ISTEXT(M33:CF33)), COUNTA(_xlfn._xlws.FILTER(M33:CF33,ISTEXT(M33:CF33))))) ->  | G33: 0 | H33: =IF(G33>0,(Tableau4[[#This Row],[clics / cm]]-$E$15)*CG33,0) -> 0 | I33: =Tableau4[[#This Row],[kgMS / ha]]*Tableau4[[#This Row],[Surface (ha)]] -> 0 | J33: =Tableau4[[#This Row],[kgMS / parcelle]]/($E$10*$K$16) -> 0 | K33: 0 | CG33: ='Pousse de l''herbe'!BX18 -> 
D34: =IF(COUNTA(M34:CF34)=0, "", INDEX(_xlfn._xlws.FILTER(M34:CF34,ISTEXT(M34:CF34)), COUNTA(_xlfn._xlws.FILTER(M34:CF34,ISTEXT(M34:CF34))))) ->  | G34: 0 | H34: =IF(G34>0,(Tableau4[[#This Row],[clics / cm]]-$E$15)*CG34,0) -> 0 | I34: =Tableau4[[#This Row],[kgMS / ha]]*Tableau4[[#This Row],[Surface (ha)]] -> 0 | J34: =Tableau4[[#This Row],[kgMS / parcelle]]/($E$10*$K$16) -> 0 | K34: -1.125 | CG34: ='Pousse de l''herbe'!BX19 -> 
D35: =IF(COUNTA(M35:CF35)=0, "", INDEX(_xlfn._xlws.FILTER(M35:CF35,ISTEXT(M35:CF35)), COUNTA(_xlfn._xlws.FILTER(M35:CF35,ISTEXT(M35:CF35))))) ->  | G35: 0 | H35: =IF(G35>0,(Tableau4[[#This Row],[clics / cm]]-$E$15)*CG35,0) -> 0 | I35: =Tableau4[[#This Row],[kgMS / ha]]*Tableau4[[#This Row],[Surface (ha)]] -> 0 | J35: =Tableau4[[#This Row],[kgMS / parcelle]]/($E$10*$K$16) -> 0 | K35: -2.25 | CG35: ='Pousse de l''herbe'!BX20 -> 
D36: =IF(COUNTA(M36:CF36)=0, "", INDEX(_xlfn._xlws.FILTER(M36:CF36,ISTEXT(M36:CF36)), COUNTA(_xlfn._xlws.FILTER(M36:CF36,ISTEXT(M36:CF36))))) ->  | G36: 0 | H36: =IF(G36>0,(Tableau4[[#This Row],[clics / cm]]-$E$15)*CG36,0) -> 0 | I36: =Tableau4[[#This Row],[kgMS / ha]]*Tableau4[[#This Row],[Surface (ha)]] -> 0 | J36: =Tableau4[[#This Row],[kgMS / parcelle]]/($E$10*$K$16) -> 0 | K36: -3.375 | CG36: ='Pousse de l''herbe'!BX21 -> 
D37: =IF(COUNTA(M37:CF37)=0, "", INDEX(_xlfn._xlws.FILTER(M37:CF37,ISTEXT(M37:CF37)), COUNTA(_xlfn._xlws.FILTER(M37:CF37,ISTEXT(M37:CF37))))) ->  | G37: 0 | H37: =IF(G37>0,(Tableau4[[#This Row],[clics / cm]]-$E$15)*CG37,0) -> 0 | I37: =Tableau4[[#This Row],[kgMS / ha]]*Tableau4[[#This Row],[Surface (ha)]] -> 0 | J37: =Tableau4[[#This Row],[kgMS / parcelle]]/($E$10*$K$16) -> 0 | K37: -4.5 | CG37: ='Pousse de l''herbe'!BX22 -> 
D38: =IF(COUNTA(M38:CF38)=0, "", INDEX(_xlfn._xlws.FILTER(M38:CF38,ISTEXT(M38:CF38)), COUNTA(_xlfn._xlws.FILTER(M38:CF38,ISTEXT(M38:CF38))))) ->  | G38: 0 | H38: =IF(G38>0,(Tableau4[[#This Row],[clics / cm]]-$E$15)*CG38,0) -> 0 | I38: =Tableau4[[#This Row],[kgMS / ha]]*Tableau4[[#This Row],[Surface (ha)]] -> 0 | J38: =Tableau4[[#This Row],[kgMS / parcelle]]/($E$10*$K$16) -> 0 | K38: -5.625 | CG38: ='Pousse de l''herbe'!BX23 -> 
D39: =IF(COUNTA(M39:CF39)=0, "", INDEX(_xlfn._xlws.FILTER(M39:CF39,ISTEXT(M39:CF39)), COUNTA(_xlfn._xlws.FILTER(M39:CF39,ISTEXT(M39:CF39))))) ->  | G39: 0 | H39: =IF(G39>0,(Tableau4[[#This Row],[clics / cm]]-$E$15)*CG39,0) -> 0 | I39: =Tableau4[[#This Row],[kgMS / ha]]*Tableau4[[#This Row],[Surface (ha)]] -> 0 | J39: =Tableau4[[#This Row],[kgMS / parcelle]]/($E$10*$K$16) -> 0 | K39: -6.75 | CG39: ='Pousse de l''herbe'!BX24 -> 
D40: =IF(COUNTA(M40:CF40)=0, "", INDEX(_xlfn._xlws.FILTER(M40:CF40,ISTEXT(M40:CF40)), COUNTA(_xlfn._xlws.FILTER(M40:CF40,ISTEXT(M40:CF40))))) ->  | G40: 0 | H40: =IF(G40>0,(Tableau4[[#This Row],[clics / cm]]-$E$15)*CG40,0) -> 0 | I40: =Tableau4[[#This Row],[kgMS / ha]]*Tableau4[[#This Row],[Surface (ha)]] -> 0 | J40: =Tableau4[[#This Row],[kgMS / parcelle]]/($E$10*$K$16) -> 0 | K40: -7.875 | CG40: ='Pousse de l''herbe'!BX25 -> 
D41: =IF(COUNTA(M41:CF41)=0, "", INDEX(_xlfn._xlws.FILTER(M41:CF41,ISTEXT(M41:CF41)), COUNTA(_xlfn._xlws.FILTER(M41:CF41,ISTEXT(M41:CF41))))) ->  | G41: 0 | H41: =IF(G41>0,(Tableau4[[#This Row],[clics / cm]]-$E$15)*CG41,0) -> 0 | I41: =Tableau4[[#This Row],[kgMS / ha]]*Tableau4[[#This Row],[Surface (ha)]] -> 0 | J41: =Tableau4[[#This Row],[kgMS / parcelle]]/($E$10*$K$16) -> 0 | K41: -9 | CG41: ='Pousse de l''herbe'!BX26 -> 
D42: =IF(COUNTA(M42:CF42)=0, "", INDEX(_xlfn._xlws.FILTER(M42:CF42,ISTEXT(M42:CF42)), COUNTA(_xlfn._xlws.FILTER(M42:CF42,ISTEXT(M42:CF42))))) ->  | G42: 0 | H42: =IF(G42>0,(Tableau4[[#This Row],[clics / cm]]-$E$15)*CG42,0) -> 0 | I42: =Tableau4[[#This Row],[kgMS / ha]]*Tableau4[[#This Row],[Surface (ha)]] -> 0 | J42: =Tableau4[[#This Row],[kgMS / parcelle]]/($E$10*$K$16) -> 0 | K42: -10.125 | CG42: ='Pousse de l''herbe'!BX27 -> 
D43: =IF(COUNTA(M43:CF43)=0, "", INDEX(_xlfn._xlws.FILTER(M43:CF43,ISTEXT(M43:CF43)), COUNTA(_xlfn._xlws.FILTER(M43:CF43,ISTEXT(M43:CF43))))) ->  | G43: 0 | H43: =IF(G43>0,(Tableau4[[#This Row],[clics / cm]]-$E$15)*CG43,0) -> 0 | I43: =Tableau4[[#This Row],[kgMS / ha]]*Tableau4[[#This Row],[Surface (ha)]] -> 0 | J43: =Tableau4[[#This Row],[kgMS / parcelle]]/($E$10*$K$16) -> 0 | K43: -11.25 | CG43: ='Pousse de l''herbe'!BX28 -> 
D44: =IF(COUNTA(M44:CF44)=0, "", INDEX(_xlfn._xlws.FILTER(M44:CF44,ISTEXT(M44:CF44)), COUNTA(_xlfn._xlws.FILTER(M44:CF44,ISTEXT(M44:CF44))))) ->  | G44: 0 | H44: =IF(G44>0,(Tableau4[[#This Row],[clics / cm]]-$E$15)*CG44,0) -> 0 | I44: =Tableau4[[#This Row],[kgMS / ha]]*Tableau4[[#This Row],[Surface (ha)]] -> 0 | J44: =Tableau4[[#This Row],[kgMS / parcelle]]/($E$10*$K$16) -> 0 | K44: -12.375 | CG44: ='Pousse de l''herbe'!BX29 -> 
D45: =IF(COUNTA(M45:CF45)=0, "", INDEX(_xlfn._xlws.FILTER(M45:CF45,ISTEXT(M45:CF45)), COUNTA(_xlfn._xlws.FILTER(M45:CF45,ISTEXT(M45:CF45))))) ->  | G45: 0 | H45: =IF(G45>0,(Tableau4[[#This Row],[clics / cm]]-$E$15)*CG45,0) -> 0 | I45: =Tableau4[[#This Row],[kgMS / ha]]*Tableau4[[#This Row],[Surface (ha)]] -> 0 | J45: =Tableau4[[#This Row],[kgMS / parcelle]]/($E$10*$K$16) -> 0 | K45: -13.5 | CG45: ='Pousse de l''herbe'!BX30 -> 
D46: =IF(COUNTA(M46:CF46)=0, "", INDEX(_xlfn._xlws.FILTER(M46:CF46,ISTEXT(M46:CF46)), COUNTA(_xlfn._xlws.FILTER(M46:CF46,ISTEXT(M46:CF46))))) ->  | G46: 0 | H46: =IF(G46>0,(Tableau4[[#This Row],[clics / cm]]-$E$15)*CG46,0) -> 0 | I46: =Tableau4[[#This Row],[kgMS / ha]]*Tableau4[[#This Row],[Surface (ha)]] -> 0 | J46: =Tableau4[[#This Row],[kgMS / parcelle]]/($E$10*$K$16) -> 0 | K46: -14.625 | CG46: ='Pousse de l''herbe'!BX31 -> 
D47: =IF(COUNTA(M47:CF47)=0, "", INDEX(_xlfn._xlws.FILTER(M47:CF47,ISTEXT(M47:CF47)), COUNTA(_xlfn._xlws.FILTER(M47:CF47,ISTEXT(M47:CF47))))) ->  | G47: 0 | H47: =IF(G47>0,(Tableau4[[#This Row],[clics / cm]]-$E$15)*CG47,0) -> 0 | I47: =Tableau4[[#This Row],[kgMS / ha]]*Tableau4[[#This Row],[Surface (ha)]] -> 0 | J47: =Tableau4[[#This Row],[kgMS / parcelle]]/($E$10*$K$16) -> 0 | K47: -15.75 | CG47: ='Pousse de l''herbe'!BX32 -> 
D48: =IF(COUNTA(M48:CF48)=0, "", INDEX(_xlfn._xlws.FILTER(M48:CF48,ISTEXT(M48:CF48)), COUNTA(_xlfn._xlws.FILTER(M48:CF48,ISTEXT(M48:CF48))))) ->  | G48: 0 | H48: =IF(G48>0,(Tableau4[[#This Row],[clics / cm]]-$E$15)*CG48,0) -> 0 | I48: =Tableau4[[#This Row],[kgMS / ha]]*Tableau4[[#This Row],[Surface (ha)]] -> 0 | J48: =Tableau4[[#This Row],[kgMS / parcelle]]/($E$10*$K$16) -> 0 | K48: -16.875 | CG48: ='Pousse de l''herbe'!BX33 -> 
D49: =IF(COUNTA(M49:CF49)=0, "", INDEX(_xlfn._xlws.FILTER(M49:CF49,ISTEXT(M49:CF49)), COUNTA(_xlfn._xlws.FILTER(M49:CF49,ISTEXT(M49:CF49))))) ->  | G49: 0 | H49: =IF(G49>0,(Tableau4[[#This Row],[clics / cm]]-$E$15)*CG49,0) -> 0 | I49: =Tableau4[[#This Row],[kgMS / ha]]*Tableau4[[#This Row],[Surface (ha)]] -> 0 | J49: =Tableau4[[#This Row],[kgMS / parcelle]]/($E$10*$K$16) -> 0 | K49: -18 | CG49: ='Pousse de l''herbe'!BX34 -> 
D50: =IF(COUNTA(M50:CF50)=0, "", INDEX(_xlfn._xlws.FILTER(M50:CF50,ISTEXT(M50:CF50)), COUNTA(_xlfn._xlws.FILTER(M50:CF50,ISTEXT(M50:CF50))))) ->  | G50: 0 | H50: =IF(G50>0,(Tableau4[[#This Row],[clics / cm]]-$E$15)*CG50,0) -> 0 | I50: =Tableau4[[#This Row],[kgMS / ha]]*Tableau4[[#This Row],[Surface (ha)]] -> 0 | J50: =Tableau4[[#This Row],[kgMS / parcelle]]/($E$10*$K$16) -> 0 | K50: -19.125 | CG50: ='Pousse de l''herbe'!BX35 -> 
D51: =IF(COUNTA(M51:CF51)=0, "", INDEX(_xlfn._xlws.FILTER(M51:CF51,ISTEXT(M51:CF51)), COUNTA(_xlfn._xlws.FILTER(M51:CF51,ISTEXT(M51:CF51))))) ->  | G51: 0 | H51: =IF(G51>0,(Tableau4[[#This Row],[clics / cm]]-$E$15)*CG51,0) -> 0 | I51: =Tableau4[[#This Row],[kgMS / ha]]*Tableau4[[#This Row],[Surface (ha)]] -> 0 | J51: =Tableau4[[#This Row],[kgMS / parcelle]]/($E$10*$K$16) -> 0 | K51: -20.25 | CG51: ='Pousse de l''herbe'!BX36 -> 
D52: =IF(COUNTA(M52:CF52)=0, "", INDEX(_xlfn._xlws.FILTER(M52:CF52,ISTEXT(M52:CF52)), COUNTA(_xlfn._xlws.FILTER(M52:CF52,ISTEXT(M52:CF52))))) ->  | G52: 0 | H52: =IF(G52>0,(Tableau4[[#This Row],[clics / cm]]-$E$15)*CG52,0) -> 0 | I52: =Tableau4[[#This Row],[kgMS / ha]]*Tableau4[[#This Row],[Surface (ha)]] -> 0 | J52: =Tableau4[[#This Row],[kgMS / parcelle]]/($E$10*$K$16) -> 0 | K52: -21.375 | CG52: ='Pousse de l''herbe'!BX37 -> 
D53: =IF(COUNTA(M53:CF53)=0, "", INDEX(_xlfn._xlws.FILTER(M53:CF53,ISTEXT(M53:CF53)), COUNTA(_xlfn._xlws.FILTER(M53:CF53,ISTEXT(M53:CF53))))) ->  | G53: 0 | H53: =IF(G53>0,(Tableau4[[#This Row],[clics / cm]]-$E$15)*CG53,0) -> 0 | I53: =Tableau4[[#This Row],[kgMS / ha]]*Tableau4[[#This Row],[Surface (ha)]] -> 0 | J53: =Tableau4[[#This Row],[kgMS / parcelle]]/($E$10*$K$16) -> 0 | K53: -22.5 | CG53: ='Pousse de l''herbe'!BX38 -> 
D54: =IF(COUNTA(M54:CF54)=0, "", INDEX(_xlfn._xlws.FILTER(M54:CF54,ISTEXT(M54:CF54)), COUNTA(_xlfn._xlws.FILTER(M54:CF54,ISTEXT(M54:CF54))))) ->  | G54: 0 | H54: =IF(G54>0,(Tableau4[[#This Row],[clics / cm]]-$E$15)*CG54,0) -> 0 | I54: =Tableau4[[#This Row],[kgMS / ha]]*Tableau4[[#This Row],[Surface (ha)]] -> 0 | J54: =Tableau4[[#This Row],[kgMS / parcelle]]/($E$10*$K$16) -> 0 | K54: -23.625 | CG54: ='Pousse de l''herbe'!BX39 -> 
D55: =IF(COUNTA(M55:CF55)=0, "", INDEX(_xlfn._xlws.FILTER(M55:CF55,ISTEXT(M55:CF55)), COUNTA(_xlfn._xlws.FILTER(M55:CF55,ISTEXT(M55:CF55))))) ->  | G55: 0 | H55: =IF(G55>0,(Tableau4[[#This Row],[clics / cm]]-$E$15)*CG55,0) -> 0 | I55: =Tableau4[[#This Row],[kgMS / ha]]*Tableau4[[#This Row],[Surface (ha)]] -> 0 | J55: =Tableau4[[#This Row],[kgMS / parcelle]]/($E$10*$K$16) -> 0 | K55: -24.75 | CG55: ='Pousse de l''herbe'!BX40 -> 
D56: =IF(COUNTA(M56:CF56)=0, "", INDEX(_xlfn._xlws.FILTER(M56:CF56,ISTEXT(M56:CF56)), COUNTA(_xlfn._xlws.FILTER(M56:CF56,ISTEXT(M56:CF56))))) ->  | G56: 0 | H56: =IF(G56>0,(Tableau4[[#This Row],[clics / cm]]-$E$15)*CG56,0) -> 0 | I56: =Tableau4[[#This Row],[kgMS / ha]]*Tableau4[[#This Row],[Surface (ha)]] -> 0 | J56: =Tableau4[[#This Row],[kgMS / parcelle]]/($E$10*$K$16) -> 0 | K56: -25.875 | CG56: ='Pousse de l''herbe'!BX41 -> 
D57: =IF(COUNTA(M57:CF57)=0, "", INDEX(_xlfn._xlws.FILTER(M57:CF57,ISTEXT(M57:CF57)), COUNTA(_xlfn._xlws.FILTER(M57:CF57,ISTEXT(M57:CF57))))) ->  | G57: 0 | H57: =IF(G57>0,(Tableau4[[#This Row],[clics / cm]]-$E$15)*CG57,0) -> 0 | I57: =Tableau4[[#This Row],[kgMS / ha]]*Tableau4[[#This Row],[Surface (ha)]] -> 0 | J57: =Tableau4[[#This Row],[kgMS / parcelle]]/($E$10*$K$16) -> 0 | K57: -27 | CG57: ='Pousse de l''herbe'!BX42 -> 
D58: =IF(COUNTA(M58:CF58)=0, "", INDEX(_xlfn._xlws.FILTER(M58:CF58,ISTEXT(M58:CF58)), COUNTA(_xlfn._xlws.FILTER(M58:CF58,ISTEXT(M58:CF58))))) ->  | G58: 0 | H58: =IF(G58>0,(Tableau4[[#This Row],[clics / cm]]-$E$15)*CG58,0) -> 0 | I58: =Tableau4[[#This Row],[kgMS / ha]]*Tableau4[[#This Row],[Surface (ha)]] -> 0 | J58: =Tableau4[[#This Row],[kgMS / parcelle]]/($E$10*$K$16) -> 0 | K58: -28.125 | CG58: ='Pousse de l''herbe'!BX43 -> 
D59: =IF(COUNTA(M59:CF59)=0, "", INDEX(_xlfn._xlws.FILTER(M59:CF59,ISTEXT(M59:CF59)), COUNTA(_xlfn._xlws.FILTER(M59:CF59,ISTEXT(M59:CF59))))) ->  | G59: 0 | H59: =IF(G59>0,(Tableau4[[#This Row],[clics / cm]]-$E$15)*CG59,0) -> 0 | I59: =Tableau4[[#This Row],[kgMS / ha]]*Tableau4[[#This Row],[Surface (ha)]] -> 0 | J59: =Tableau4[[#This Row],[kgMS / parcelle]]/($E$10*$K$16) -> 0 | K59: -29.25 | CG59: ='Pousse de l''herbe'!BX44 -> 
D60: =IF(COUNTA(M60:CF60)=0, "", INDEX(_xlfn._xlws.FILTER(M60:CF60,ISTEXT(M60:CF60)), COUNTA(_xlfn._xlws.FILTER(M60:CF60,ISTEXT(M60:CF60))))) ->  | G60: 0 | H60: =IF(G60>0,(Tableau4[[#This Row],[clics / cm]]-$E$15)*CG60,0) -> 0 | I60: =Tableau4[[#This Row],[kgMS / ha]]*Tableau4[[#This Row],[Surface (ha)]] -> 0 | J60: =Tableau4[[#This Row],[kgMS / parcelle]]/($E$10*$K$16) -> 0 | K60: -30.375 | CG60: ='Pousse de l''herbe'!BX45 -> 
D61: =IF(COUNTA(M61:CF61)=0, "", INDEX(_xlfn._xlws.FILTER(M61:CF61,ISTEXT(M61:CF61)), COUNTA(_xlfn._xlws.FILTER(M61:CF61,ISTEXT(M61:CF61))))) ->  | G61: 0 | H61: =IF(G61>0,(Tableau4[[#This Row],[clics / cm]]-$E$15)*CG61,0) -> 0 | I61: =Tableau4[[#This Row],[kgMS / ha]]*Tableau4[[#This Row],[Surface (ha)]] -> 0 | J61: =Tableau4[[#This Row],[kgMS / parcelle]]/($E$10*$K$16) -> 0 | K61: -31.5 | CG61: ='Pousse de l''herbe'!BX46 -> 
D62: =IF(COUNTA(M62:CF62)=0, "", INDEX(_xlfn._xlws.FILTER(M62:CF62,ISTEXT(M62:CF62)), COUNTA(_xlfn._xlws.FILTER(M62:CF62,ISTEXT(M62:CF62))))) ->  | G62: 0 | H62: =IF(G62>0,(Tableau4[[#This Row],[clics / cm]]-$E$15)*CG62,0) -> 0 | I62: =Tableau4[[#This Row],[kgMS / ha]]*Tableau4[[#This Row],[Surface (ha)]] -> 0 | J62: =Tableau4[[#This Row],[kgMS / parcelle]]/($E$10*$K$16) -> 0 | K62: -32.625 | CG62: ='Pousse de l''herbe'!BX47 -> 
D63: =IF(COUNTA(M63:CF63)=0, "", INDEX(_xlfn._xlws.FILTER(M63:CF63,ISTEXT(M63:CF63)), COUNTA(_xlfn._xlws.FILTER(M63:CF63,ISTEXT(M63:CF63))))) ->  | G63: 0 | H63: =IF(G63>0,(Tableau4[[#This Row],[clics / cm]]-$E$15)*CG63,0) -> 0 | I63: =Tableau4[[#This Row],[kgMS / ha]]*Tableau4[[#This Row],[Surface (ha)]] -> 0 | J63: =Tableau4[[#This Row],[kgMS / parcelle]]/($E$10*$K$16) -> 0 | K63: -33.75 | CG63: ='Pousse de l''herbe'!BX48 -> 
D64: =IF(COUNTA(M64:CF64)=0, "", INDEX(_xlfn._xlws.FILTER(M64:CF64,ISTEXT(M64:CF64)), COUNTA(_xlfn._xlws.FILTER(M64:CF64,ISTEXT(M64:CF64))))) ->  | G64: 0 | H64: =IF(G64>0,(Tableau4[[#This Row],[clics / cm]]-$E$15)*CG64,0) -> 0 | I64: =Tableau4[[#This Row],[kgMS / ha]]*Tableau4[[#This Row],[Surface (ha)]] -> 0 | J64: =Tableau4[[#This Row],[kgMS / parcelle]]/($E$10*$K$16) -> 0 | K64: -34.875 | CG64: ='Pousse de l''herbe'!BX49 -> 
D65: =IF(COUNTA(M65:CF65)=0, "", INDEX(_xlfn._xlws.FILTER(M65:CF65,ISTEXT(M65:CF65)), COUNTA(_xlfn._xlws.FILTER(M65:CF65,ISTEXT(M65:CF65))))) ->  | G65: 0 | H65: =IF(G65>0,(Tableau4[[#This Row],[clics / cm]]-$E$15)*CG65,0) -> 0 | I65: =Tableau4[[#This Row],[kgMS / ha]]*Tableau4[[#This Row],[Surface (ha)]] -> 0 | J65: =Tableau4[[#This Row],[kgMS / parcelle]]/($E$10*$K$16) -> 0 | K65: -36 | CG65: ='Pousse de l''herbe'!BX50 -> 
D66: =IF(COUNTA(M66:CF66)=0, "", INDEX(_xlfn._xlws.FILTER(M66:CF66,ISTEXT(M66:CF66)), COUNTA(_xlfn._xlws.FILTER(M66:CF66,ISTEXT(M66:CF66))))) ->  | G66: 0 | H66: =IF(G66>0,(Tableau4[[#This Row],[clics / cm]]-$E$15)*CG66,0) -> 0 | I66: =Tableau4[[#This Row],[kgMS / ha]]*Tableau4[[#This Row],[Surface (ha)]] -> 0 | J66: =Tableau4[[#This Row],[kgMS / parcelle]]/($E$10*$K$16) -> 0 | K66: -37.125 | CG66: ='Pousse de l''herbe'!BX51 -> 
D67: =IF(COUNTA(M67:CF67)=0, "", INDEX(_xlfn._xlws.FILTER(M67:CF67,ISTEXT(M67:CF67)), COUNTA(_xlfn._xlws.FILTER(M67:CF67,ISTEXT(M67:CF67))))) ->  | G67: 0 | H67: =IF(G67>0,(Tableau4[[#This Row],[clics / cm]]-$E$15)*CG67,0) -> 0 | I67: =Tableau4[[#This Row],[kgMS / ha]]*Tableau4[[#This Row],[Surface (ha)]] -> 0 | J67: =Tableau4[[#This Row],[kgMS / parcelle]]/($E$10*$K$16) -> 0 | K67: -38.25 | CG67: ='Pousse de l''herbe'!BX52 -> 
D68: =IF(COUNTA(M68:CF68)=0, "", INDEX(_xlfn._xlws.FILTER(M68:CF68,ISTEXT(M68:CF68)), COUNTA(_xlfn._xlws.FILTER(M68:CF68,ISTEXT(M68:CF68))))) ->  | G68: 0 | H68: =IF(G68>0,(Tableau4[[#This Row],[clics / cm]]-$E$15)*CG68,0) -> 0 | I68: =Tableau4[[#This Row],[kgMS / ha]]*Tableau4[[#This Row],[Surface (ha)]] -> 0 | J68: =Tableau4[[#This Row],[kgMS / parcelle]]/($E$10*$K$16) -> 0 | K68: -39.375 | CG68: ='Pousse de l''herbe'!BX53 -> 
B69: =SUMIF(Tableau4[Action], "<>Sortie du tournus (stock sur pied/fauche)", Tableau4[Surface (ha)]) -> 8 | C69: =SUMIF(Tableau4[Action], "<>Sortie du tournus (stock sur pied/fauche)", Tableau4[Jours]) -> 21 | I69: =SUMPRODUCT((Tableau4[kgMS / parcelle]<>0)*Tableau4[kgMS / parcelle]) / SUMPRODUCT((Tableau4[Surface (ha)]<>0)*Tableau4[Surface (ha)]) -> 701.25 | J69: =IF(COUNTIF(J25:J68,">0")>0,SUMIF(J25:J68,">0"),"") -> 20.25270758 | L69: Hauteur moyenne : | M69: =SUMPRODUCT((M25:M68<>0)*M25:M68*$B$25:$B$68) / SUMPRODUCT(($B$25:$B$68<>0)*$B$25:$B$68) -> 5.4375 | O69: =SUMPRODUCT((O25:O68<>0)*O25:O68*$B$25:$B$68) / SUMPRODUCT(($B$25:$B$68<>0)*$B$25:$B$68) -> 7.6875 | Q69: =SUMPRODUCT((Q25:Q68<>0)*Q25:Q68*$B$25:$B$68) / SUMPRODUCT(($B$25:$B$68<>0)*$B$25:$B$68) -> 0 | S69: =SUMPRODUCT((S25:S68<>0)*S25:S68*$B$25:$B$68) / SUMPRODUCT(($B$25:$B$68<>0)*$B$25:$B$68) -> 0 | U69: =SUMPRODUCT((U25:U68<>0)*U25:U68*$B$25:$B$68) / SUMPRODUCT(($B$25:$B$68<>0)*$B$25:$B$68) -> 0 | W69: =SUMPRODUCT((W25:W68<>0)*W25:W68*$B$25:$B$68) / SUMPRODUCT(($B$25:$B$68<>0)*$B$25:$B$68) -> 0 | Y69: =SUMPRODUCT((Y25:Y68<>0)*Y25:Y68*$B$25:$B$68) / SUMPRODUCT(($B$25:$B$68<>0)*$B$25:$B$68) -> 0 | AA69: =SUMPRODUCT((AA25:AA68<>0)*AA25:AA68*$B$25:$B$68) / SUMPRODUCT(($B$25:$B$68<>0)*$B$25:$B$68) -> 0 | AC69: =SUMPRODUCT((AC25:AC68<>0)*AC25:AC68*$B$25:$B$68) / SUMPRODUCT(($B$25:$B$68<>0)*$B$25:$B$68) -> 0 | AE69: =SUMPRODUCT((AE25:AE68<>0)*AE25:AE68*$B$25:$B$68) / SUMPRODUCT(($B$25:$B$68<>0)*$B$25:$B$68) -> 0 | AG69: =SUMPRODUCT((AG25:AG68<>0)*AG25:AG68*$B$25:$B$68) / SUMPRODUCT(($B$25:$B$68<>0)*$B$25:$B$68) -> 0 | AI69: =SUMPRODUCT((AI25:AI68<>0)*AI25:AI68*$B$25:$B$68) / SUMPRODUCT(($B$25:$B$68<>0)*$B$25:$B$68) -> 0 | AK69: =SUMPRODUCT((AK25:AK68<>0)*AK25:AK68*$B$25:$B$68) / SUMPRODUCT(($B$25:$B$68<>0)*$B$25:$B$68) -> 0 | AM69: =SUMPRODUCT((AM25:AM68<>0)*AM25:AM68*$B$25:$B$68) / SUMPRODUCT(($B$25:$B$68<>0)*$B$25:$B$68) -> 0 | AO69: =SUMPRODUCT((AO25:AO68<>0)*AO25:AO68*$B$25:$B$68) / SUMPRODUCT(($B$25:$B$68<>0)*$B$25:$B$68) -> 0 | AQ69: =SUMPRODUCT((AQ25:AQ68<>0)*AQ25:AQ68*$B$25:$B$68) / SUMPRODUCT(($B$25:$B$68<>0)*$B$25:$B$68) -> 0 | AS69: =SUMPRODUCT((AS25:AS68<>0)*AS25:AS68*$B$25:$B$68) / SUMPRODUCT(($B$25:$B$68<>0)*$B$25:$B$68) -> 0 | AU69: =SUMPRODUCT((AU25:AU68<>0)*AU25:AU68*$B$25:$B$68) / SUMPRODUCT(($B$25:$B$68<>0)*$B$25:$B$68) -> 0 | AW69: =SUMPRODUCT((AW25:AW68<>0)*AW25:AW68*$B$25:$B$68) / SUMPRODUCT(($B$25:$B$68<>0)*$B$25:$B$68) -> 0 | AY69: =SUMPRODUCT((AY25:AY68<>0)*AY25:AY68*$B$25:$B$68) / SUMPRODUCT(($B$25:$B$68<>0)*$B$25:$B$68) -> 0 | BA69: =SUMPRODUCT((BA25:BA68<>0)*BA25:BA68*$B$25:$B$68) / SUMPRODUCT(($B$25:$B$68<>0)*$B$25:$B$68) -> 0 | BC69: =SUMPRODUCT((BC25:BC68<>0)*BC25:BC68*$B$25:$B$68) / SUMPRODUCT(($B$25:$B$68<>0)*$B$25:$B$68) -> 0 | BE69: =SUMPRODUCT((BE25:BE68<>0)*BE25:BE68*$B$25:$B$68) / SUMPRODUCT(($B$25:$B$68<>0)*$B$25:$B$68) -> 0 | BG69: =SUMPRODUCT((BG25:BG68<>0)*BG25:BG68*$B$25:$B$68) / SUMPRODUCT(($B$25:$B$68<>0)*$B$25:$B$68) -> 0 | BI69: =SUMPRODUCT((BI25:BI68<>0)*BI25:BI68*$B$25:$B$68) / SUMPRODUCT(($B$25:$B$68<>0)*$B$25:$B$68) -> 0 | BK69: =SUMPRODUCT((BK25:BK68<>0)*BK25:BK68*$B$25:$B$68) / SUMPRODUCT(($B$25:$B$68<>0)*$B$25:$B$68) -> 0 | BM69: =SUMPRODUCT((BM25:BM68<>0)*BM25:BM68*$B$25:$B$68) / SUMPRODUCT(($B$25:$B$68<>0)*$B$25:$B$68) -> 0 | BO69: =SUMPRODUCT((BO25:BO68<>0)*BO25:BO68*$B$25:$B$68) / SUMPRODUCT(($B$25:$B$68<>0)*$B$25:$B$68) -> 0 | BQ69: =SUMPRODUCT((BQ25:BQ68<>0)*BQ25:BQ68*$B$25:$B$68) / SUMPRODUCT(($B$25:$B$68<>0)*$B$25:$B$68) -> 0 | BS69: =SUMPRODUCT((BS25:BS68<>0)*BS25:BS68*$B$25:$B$68) / SUMPRODUCT(($B$25:$B$68<>0)*$B$25:$B$68) -> 0 | BU69: =SUMPRODUCT((BU25:BU68<>0)*BU25:BU68*$B$25:$B$68) / SUMPRODUCT(($B$25:$B$68<>0)*$B$25:$B$68) -> 0 | BW69: =SUMPRODUCT((BW25:BW68<>0)*BW25:BW68*$B$25:$B$68) / SUMPRODUCT(($B$25:$B$68<>0)*$B$25:$B$68) -> 0 | BY69: =SUMPRODUCT((BY25:BY68<>0)*BY25:BY68*$B$25:$B$68) / SUMPRODUCT(($B$25:$B$68<>0)*$B$25:$B$68) -> 0 | CA69: =SUMPRODUCT((CA25:CA68<>0)*CA25:CA68*$B$25:$B$68) / SUMPRODUCT(($B$25:$B$68<>0)*$B$25:$B$68) -> 0 | CC69: =SUMPRODUCT((CC25:CC68<>0)*CC25:CC68*$B$25:$B$68) / SUMPRODUCT(($B$25:$B$68<>0)*$B$25:$B$68) -> 0 | CE69: =SUMPRODUCT((CE25:CE68<>0)*CE25:CE68*$B$25:$B$68) / SUMPRODUCT(($B$25:$B$68<>0)*$B$25:$B$68) -> 0
L70: Pousse de l'herbe : | O70: =IF('Pousse de l''herbe'!F54>0,'Pousse de l''herbe'!F54,"") -> 69.14285714 | Q70: =IF('Pousse de l''herbe'!H54>0,'Pousse de l''herbe'!H54,"") ->  | S70: =IF('Pousse de l''herbe'!J54>0,'Pousse de l''herbe'!J54,"") ->  | U70: =IF('Pousse de l''herbe'!L54>0,'Pousse de l''herbe'!L54,"") ->  | W70: =IF('Pousse de l''herbe'!N54>0,'Pousse de l''herbe'!N54,"") ->  | Y70: =IF('Pousse de l''herbe'!P54>0,'Pousse de l''herbe'!P54,"") ->  | AA70: =IF('Pousse de l''herbe'!R54>0,'Pousse de l''herbe'!R54,"") ->  | AC70: =IF('Pousse de l''herbe'!T54>0,'Pousse de l''herbe'!T54,"") ->  | AE70: =IF('Pousse de l''herbe'!V54>0,'Pousse de l''herbe'!V54,"") ->  | AG70: =IF('Pousse de l''herbe'!X54>0,'Pousse de l''herbe'!X54,"") ->  | AI70: =IF('Pousse de l''herbe'!Z54>0,'Pousse de l''herbe'!Z54,"") ->  | AK70: =IF('Pousse de l''herbe'!AB54>0,'Pousse de l''herbe'!AB54,"") ->  | AM70: =IF('Pousse de l''herbe'!AD54>0,'Pousse de l''herbe'!AD54,"") ->  | AO70: =IF('Pousse de l''herbe'!AF54>0,'Pousse de l''herbe'!AF54,"") ->  | AQ70: =IF('Pousse de l''herbe'!AH54>0,'Pousse de l''herbe'!AH54,"") ->  | AS70: =IF('Pousse de l''herbe'!AJ54>0,'Pousse de l''herbe'!AJ54,"") ->  | AU70: =IF('Pousse de l''herbe'!AL54>0,'Pousse de l''herbe'!AL54,"") ->  | AW70: =IF('Pousse de l''herbe'!AN54>0,'Pousse de l''herbe'!AN54,"") ->  | AY70: =IF('Pousse de l''herbe'!AP54>0,'Pousse de l''herbe'!AP54,"") ->  | BA70: =IF('Pousse de l''herbe'!AR54>0,'Pousse de l''herbe'!AR54,"") ->  | BC70: =IF('Pousse de l''herbe'!AT54>0,'Pousse de l''herbe'!AT54,"") ->  | BE70: =IF('Pousse de l''herbe'!AV54>0,'Pousse de l''herbe'!AV54,"") ->  | BG70: =IF('Pousse de l''herbe'!AX54>0,'Pousse de l''herbe'!AX54,"") ->  | BI70: =IF('Pousse de l''herbe'!AZ54>0,'Pousse de l''herbe'!AZ54,"") ->  | BK70: =IF('Pousse de l''herbe'!BB54>0,'Pousse de l''herbe'!BB54,"") ->  | BM70: =IF('Pousse de l''herbe'!BD54>0,'Pousse de l''herbe'!BD54,"") ->  | BO70: =IF('Pousse de l''herbe'!BF54>0,'Pousse de l''herbe'!BF54,"") ->  | BQ70: =IF('Pousse de l''herbe'!BH54>0,'Pousse de l''herbe'!BH54,"") ->  | BS70: =IF('Pousse de l''herbe'!BJ54>0,'Pousse de l''herbe'!BJ54,"") ->  | BU70: =IF('Pousse de l''herbe'!BL54>0,'Pousse de l''herbe'!BL54,"") ->  | BW70: =IF('Pousse de l''herbe'!BN54>0,'Pousse de l''herbe'!BN54,"") ->  | BY70: =IF('Pousse de l''herbe'!BP54>0,'Pousse de l''herbe'!BP54,"") ->  | CA70: =IF('Pousse de l''herbe'!BR54>0,'Pousse de l''herbe'!BR54,"") ->  | CC70: =IF('Pousse de l''herbe'!BT54>0,'Pousse de l''herbe'!BT54,"") ->  | CE70: =IF('Pousse de l''herbe'!BV54>0,'Pousse de l''herbe'!BV54,"") -> 
A72: Mettre à jour le graphique après midifications :
A73: Onglet Données --> Trier et filtrer --> Réappliquer filtre (appliquer une/deux fois)
A76: Parcelles/Parcs pâturages | B76: Hauteur d'herbe | C76: Utilisation | D76: Courbe de cohérence
A77: =IF(A25<>"",A25,"") -> 5 | B77: =IF(G25<>"",G25,NA()) -> 9 | C77: =IF(D25<>"",D25,"Sortie du tournus (stock sur pied/fauche)") -> Rien | D77: =IF(K25<>"",K25,NA()) -> 9
A78: =IF(A26<>"",A26,"") -> 4 | B78: =IF(G26<>"",G26,NA()) -> 8 | C78: Rien | D78: =IF(K26<>"",K26,NA()) -> 7.875
A79: 1 | B79: 7 | C79: Rien | D79: 6.75
A80: 3 | B80: 7 | C80: Rien | D80: 5.625
A81: 2 | B81: 7 | C81: Rien | D81: 4.5
B82: 0 | C82: Sortie du tournus (stock sur pied/fauche) | D82: 3.375
B83: 0 | C83: Sortie du tournus (stock sur pied/fauche) | D83: 2.25
B84: 0 | C84: Sortie du tournus (stock sur pied/fauche) | D84: 1.125
B85: 0 | C85: Sortie du tournus (stock sur pied/fauche) | D85: 0
B86: 0 | C86: Sortie du tournus (stock sur pied/fauche) | D86: -1.125
B87: 0 | C87: Sortie du tournus (stock sur pied/fauche) | D87: -2.25
B88: 0 | C88: Sortie du tournus (stock sur pied/fauche) | D88: -3.375
B89: 0 | C89: Sortie du tournus (stock sur pied/fauche) | D89: -4.5
B90: 0 | C90: Sortie du tournus (stock sur pied/fauche) | D90: -5.625
B91: 0 | C91: Sortie du tournus (stock sur pied/fauche) | D91: -6.75
B92: 0 | C92: Sortie du tournus (stock sur pied/fauche) | D92: -7.875
B93: 0 | C93: Sortie du tournus (stock sur pied/fauche) | D93: -9
B94: 0 | C94: Sortie du tournus (stock sur pied/fauche) | D94: -10.125
B95: 0 | C95: Sortie du tournus (stock sur pied/fauche) | D95: -11.25
B96: 0 | C96: Sortie du tournus (stock sur pied/fauche) | D96: -12.375
B97: 0 | C97: Sortie du tournus (stock sur pied/fauche) | D97: -13.5
B98: 0 | C98: Sortie du tournus (stock sur pied/fauche) | D98: -14.625
B99: 0 | C99: Sortie du tournus (stock sur pied/fauche) | D99: -15.75
B100: 0 | C100: Sortie du tournus (stock sur pied/fauche) | D100: -16.875
B101: 0 | C101: Sortie du tournus (stock sur pied/fauche) | D101: -18
B102: 0 | C102: Sortie du tournus (stock sur pied/fauche) | D102: -19.125
B103: 0 | C103: Sortie du tournus (stock sur pied/fauche) | D103: -20.25
B104: 0 | C104: Sortie du tournus (stock sur pied/fauche) | D104: -21.375
B105: 0 | C105: Sortie du tournus (stock sur pied/fauche) | D105: -22.5
B106: 0 | C106: Sortie du tournus (stock sur pied/fauche) | D106: -23.625
B107: 0 | C107: Sortie du tournus (stock sur pied/fauche) | D107: -24.75
B108: 0 | C108: Sortie du tournus (stock sur pied/fauche) | D108: -25.875
B109: 0 | C109: Sortie du tournus (stock sur pied/fauche) | D109: -27
B110: 0 | C110: Sortie du tournus (stock sur pied/fauche) | D110: -28.125
B111: 0 | C111: Sortie du tournus (stock sur pied/fauche) | D111: -29.25
B112: 0 | C112: Sortie du tournus (stock sur pied/fauche) | D112: -30.375
B113: 0 | C113: Sortie du tournus (stock sur pied/fauche) | D113: -31.5
B114: 0 | C114: Sortie du tournus (stock sur pied/fauche) | D114: -32.625
B115: 0 | C115: Sortie du tournus (stock sur pied/fauche) | D115: -33.75
B116: 0 | C116: Sortie du tournus (stock sur pied/fauche) | D116: -34.875
B117: 0 | C117: Sortie du tournus (stock sur pied/fauche) | D117: -36
B118: 0 | C118: Sortie du tournus (stock sur pied/fauche) | D118: -37.125
B119: 0 | C119: Sortie du tournus (stock sur pied/fauche) | D119: -38.25
B120: 0 | C120: Sortie du tournus (stock sur pied/fauche) | D120: -39.375
C124: Tableau de bord (données essentielles de la semaine)
C127: Date : | F127: =LOOKUP(9^9,M23:AV23) -> 2025-03-11 | H127: Jours de réserve : | K127: =TEXT(J69,"0") & " jours" -> 20 jours
C128: Semaine de l'année : | F128: =WEEKNUM(F127) -> 11 | H128: Densité de l'herbe moyenne (kgMS/unitée) : | K128: =LOOKUP(9^9,'Pousse de l''herbe'!F55:AN55) -> 220
C129: Pousse de l'herbe : | F129: =TEXT(LOOKUP(9^9,M70:CF70),"0.0") & " kgMS/ha/j" -> 69.1 kgMS/ha/j | H129: Quantité d’herbe disponible (AFC) : | K129: =TEXT($I$69,"0") & " kgMS/ha" -> 701 kgMS/ha
G146: Jours de réserve conseillés (jours)
E147: Altitude | F147: Pluviométrie | G147: avril-mai | H147: juin-août | I147: sept-nov
E148: < 900 m | F148: humide | G148: 10 | H148: 15 | I148: 20
F149: sec | G149: 15 | H149: 25 | I149: 20
E150: > 900 m | F150: humide | G150: 15 | H150: 20 | I150: 25
F151: sec | G151: 20 | H151: 30 | I151: 25
C153: Actions à prendre
C156: Je modifie mes surfaces pâturables | H156: J'adapte mes quantités affouragées
C158: Surfaces à modifier | H158: Quantités à affourager | K158: kgMF/jour
C159: Augmenter surface paturable (ha) | F159: =IF($K$13<$K$18, "+" & TEXT(($K$18-$K$13)/100*$E$6,"0.00"),"") ->  | H159: =N13 -> Foin G 5 | K159: =IF(OR($Q$6="Quantités affouragées fixes", $K$15>$E$10), "", ((($E$10-$K$15)*$U13)/($Q13/100))) -> 
C160: Diminuer surface paturable (ha) | F160: =IF($K$13>$K$18,TEXT(($K$18-$K$13)/100*$E$6,"0.0"),"") -> -4.0 | H160: =N14 -> Ensilage d'herbe ER 1 | K160: =IF(OR($Q$6="Quantités affouragées fixes", $K$15>$E$10), "", ((($E$10-$K$15)*$U14)/($Q14/100))) -> 
H161: =N15 -> - | K161: =IF(OR($Q$6="Quantités affouragées fixes", $K$15>$E$10), "", ((($E$10-$K$15)*$U15)/($Q15/100))) -> 
H162: =N16 -> - | K162: =IF(OR($Q$6="Quantités affouragées fixes", $K$15>$E$10), "", ((($E$10-$K$15)*$U16)/($Q16/100))) -> 
H163: =N17 -> - | K163: =IF(OR($Q$6="Quantités affouragées fixes", $K$15>$E$10), "", ((($E$10-$K$15)*$U17)/($Q17/100))) -> 
C165: Surface journalière du parc avec le plus de disponibilité (ha / j) : | F165: =$E$10*$K$16/(((MAX(Tableau4[clics / cm])-$E$15)*K128)) -> 0.2797979798
C168: Durée de repos calculée (jours) : | F168: =E18 -> 16.8 | H168: Durée de repos conseillée (jours)
H169: Printemps | I169: 15 - 20
H170: Eté | I170: 20 - 30 (35 si sechrèsse)
H171: Automne | I171: > 30

Sheet Jours de pâture (hidden)
E1: Rotation des parcs | N1: Date :
B3: Consignes: Cochez la parcelle sur laquelle les vaches ont pâturés
C4: Notez le nombre de vaches du troupeau
C5: Complétez la colonne pâture: J =jour, N = Nuit , NJ = jour et nuit
A7: Date | B7: A | C7: B | D7: C | E7: D | F7: E | G7: F | H7: G | I7: H | J7: I | K7: J | L7: K | M7: Nb vaches | N7: Pâture J/N/NJ
A8: 2016-08-10
A9: 2016-08-11
A10: 2016-08-12
A11: 2016-08-13
A12: 2016-08-14
A13: 2016-08-15
A14: 2016-08-16
A15: 2016-08-17
A16: 2016-08-18
A17: 2016-08-19
A18: 2016-08-20
A19: 2016-08-21
A20: 2016-08-22
A21: 2016-08-23
A22: 2016-08-24
A23: 2016-08-25
A24: 2016-08-26
A25: 2016-08-27
A26: 2016-08-28
A27: 2016-08-29
A28: 2016-08-30
A29: 2016-08-31
A30: 2016-09-01
A31: 2016-09-02
A32: 2016-09-03
A33: 2016-09-04
A34: 2016-09-05
A35: 2016-09-06
A36: 2016-09-07
A37: 2016-09-08
A38: 2016-09-09
A39: 2016-09-10
E40: Rotation des parcs Thubert | N40: 2016-08-11
B42: Consignes: Cochez la parcelle sur laquelle les vaches ont pâturés
C43: Notez le nombre de vaches du troupeau
C44: Complétez la colonne pâture: J =jour, N = Nuit , NJ = jour et nuit
A46: Date | B46: A | C46: B | D46: C | E46: D | F46: E | G46: F | H46: G | I46: H | J46: I | K46: J | L46: K | M46: Nb vaches | N46: Pâture J/N/NJ
A47: 2016-09-11
A48: 2016-09-12
A49: 2016-09-13
A50: 2016-09-14
A51: 2016-09-15
A52: 2016-09-16
A53: 2016-09-17
A54: 2016-09-18
A55: 2016-09-19
A56: 2016-09-20
A57: 2016-09-21
A58: 2016-09-22
A59: 2016-09-23
A60: 2016-09-24
A61: 2016-09-25
A62: 2016-09-26
A63: 2016-09-27
A64: 2016-09-28
A65: 2016-09-29
A66: 2016-09-30
A67: 2016-10-01
A68: 2016-10-02
A69: 2016-10-03
A70: 2016-10-04
A71: 2016-10-05
A72: 2016-10-06
A73: 2016-10-07
A74: 2016-10-08
A75: 2016-10-09
A76: 2016-10-10
A77: 2016-10-11
A78: 2016-10-12

Sheet Pousse de l'herbe
B6: Parcelles/Parcs pâture | F6: Semaine de l'année
B7: ='Relevé pâture'!A24 -> n° / nom | C7: =Tableau4[[#Headers],[Surface (ha)]] -> Surface (ha) | D7: =Tableau4[[#Headers],[Action]] -> Action | F7: ='Relevé pâture'!O23 -> 2025-03-11 | H7: ='Relevé pâture'!Q23 -> 00:00:00 | J7: ='Relevé pâture'!S23 -> 00:00:00 | L7: ='Relevé pâture'!U23 -> 00:00:00 | N7: ='Relevé pâture'!W23 -> 00:00:00 | P7: ='Relevé pâture'!Y23 -> 00:00:00 | R7: ='Relevé pâture'!AA23 -> 00:00:00 | T7: ='Relevé pâture'!AC23 -> 00:00:00 | V7: ='Relevé pâture'!AE23 -> 00:00:00 | X7: ='Relevé pâture'!AG23 -> 00:00:00 | Z7: ='Relevé pâture'!AI23 -> 00:00:00 | AB7: ='Relevé pâture'!AK23 -> 00:00:00 | AD7: ='Relevé pâture'!AM23 -> 00:00:00 | AF7: ='Relevé pâture'!AO23 -> 00:00:00 | AH7: ='Relevé pâture'!AQ23 -> 00:00:00 | AJ7: ='Relevé pâture'!AS23 -> 00:00:00 | AL7: ='Relevé pâture'!AU23 -> 00:00:00 | AN7: ='Relevé pâture'!AW23 -> 00:00:00 | AP7: ='Relevé pâture'!AY23 -> 00:00:00 | AR7: ='Relevé pâture'!BA23 -> 00:00:00 | AT7: ='Relevé pâture'!BC23 -> 00:00:00 | AV7: ='Relevé pâture'!BE23 -> 00:00:00 | AX7: ='Relevé pâture'!BG23 -> 00:00:00 | AZ7: ='Relevé pâture'!BI23 -> 00:00:00 | BB7: ='Relevé pâture'!BK23 -> 00:00:00 | BD7: ='Relevé pâture'!BM23 -> 00:00:00 | BF7: ='Relevé pâture'!BO23 -> 00:00:00 | BH7: ='Relevé pâture'!BQ23 -> 00:00:00 | BJ7: ='Relevé pâture'!BS23 -> 00:00:00 | BL7: ='Relevé pâture'!BU23 -> 00:00:00 | BN7: ='Relevé pâture'!BW23 -> 00:00:00 | BP7: ='Relevé pâture'!BY23 -> 00:00:00 | BR7: ='Relevé pâture'!CA23 -> 00:00:00 | BT7: ='Relevé pâture'!CC23 -> 00:00:00 | BV7: ='Relevé pâture'!CE23 -> 00:00:00 | BX7: Dernière densité
F8: =MONTH(F7) -> 3 | H8: =MONTH(H7) -> 1 | J8: =MONTH(J7) -> 1 | L8: =MONTH(L7) -> 1 | N8: =MONTH(N7) -> 1 | P8: 1 | R8: =MONTH(R7) -> 1 | T8: =MONTH(T7) -> 1 | V8: =MONTH(V7) -> 1 | X8: =MONTH(X7) -> 1 | Z8: =MONTH(Z7) -> 1 | AB8: =MONTH(AB7) -> 1 | AD8: =MONTH(AD7) -> 1 | AF8: =MONTH(AF7) -> 1 | AH8: =MONTH(AH7) -> 1 | AJ8: =MONTH(AJ7) -> 1 | AL8: =MONTH(AL7) -> 1 | AN8: =MONTH(AN7) -> 1 | AP8: =MONTH(AP7) -> 1 | AR8: =MONTH(AR7) -> 1 | AT8: =MONTH(AT7) -> 1 | AV8: =MONTH(AV7) -> 1 | AX8: =MONTH(AX7) -> 1 | AZ8: =MONTH(AZ7) -> 1 | BB8: =MONTH(BB7) -> 1 | BD8: =MONTH(BD7) -> 1 | BF8: =MONTH(BF7) -> 1 | BH8: =MONTH(BH7) -> 1 | BJ8: =MONTH(BJ7) -> 1 | BL8: =MONTH(BL7) -> 1 | BN8: =MONTH(BN7) -> 1 | BP8: =MONTH(BP7) -> 1 | BR8: =MONTH(BR7) -> 1 | BT8: =MONTH(BT7) -> 1 | BV8: =MONTH(BV7) -> 1
F9: Pousse (en cm) | G9: Densité (en kgMS/cm) | H9: Pousse (en cm) | I9: Densité (en kgMS/cm) | J9: Pousse (en cm) | K9: Densité (en kgMS/cm) | L9: Pousse (en cm) | M9: Densité (en kgMS/cm) | N9: Pousse (en cm) | O9: Densité (en kgMS/cm) | P9: Pousse (en cm) | Q9: Densité (en kgMS/cm) | R9: Pousse (en cm) | S9: Densité (en kgMS/cm) | T9: Pousse (en cm) | U9: Densité (en kgMS/cm) | V9: Pousse (en cm) | W9: Densité (en kgMS/cm) | X9: Pousse (en cm) | Y9: Densité (en kgMS/cm) | Z9: Pousse (en cm) | AA9: Densité (en kgMS/cm) | AB9: Pousse (en cm) | AC9: Densité (en kgMS/cm) | AD9: Pousse (en cm) | AE9: Densité (en kgMS/cm) | AF9: Pousse (en cm) | AG9: Densité (en kgMS/cm) | AH9: Pousse (en cm) | AI9: Densité (en kgMS/cm) | AJ9: Pousse (en cm) | AK9: Densité (en kgMS/cm) | AL9: Pousse (en cm) | AM9: Densité (en kgMS/cm) | AN9: Pousse (en cm) | AO9: Densité (en kgMS/cm) | AP9: Pousse (en cm) | AQ9: Densité (en kgMS/cm) | AR9: Pousse (en cm) | AS9: Densité (en kgMS/cm) | AT9: Pousse (en cm) | AU9: Densité (en kgMS/cm) | AV9: Pousse (en cm) | AW9: Densité (en kgMS/cm) | AX9: Pousse (en cm) | AY9: Densité (en kgMS/cm) | AZ9: Pousse (en cm) | BA9: Densité (en kgMS/cm) | BB9: Pousse (en cm) | BC9: Densité (en kgMS/cm) | BD9: Pousse (en cm) | BE9: Densité (en kgMS/cm) | BF9: Pousse (en cm) | BG9: Densité (en kgMS/cm) | BH9: Pousse (en cm) | BI9: Densité (en kgMS/cm) | BJ9: Pousse (en cm) | BK9: Densité (en kgMS/cm) | BL9: Pousse (en cm) | BM9: Densité (en kgMS/cm) | BN9: Pousse (en cm) | BO9: Densité (en kgMS/cm) | BP9: Pousse (en cm) | BQ9: Densité (en kgMS/cm) | BR9: Pousse (en cm) | BS9: Densité (en kgMS/cm) | BT9: Pousse (en cm) | BU9: Densité (en kgMS/cm) | BV9: Pousse (en cm) | BW9: Densité (en kgMS/cm)
B10: ='Relevé pâture'!A25 -> 5 | C10: ='Relevé pâture'!B25 -> 2 | D10: ='Relevé pâture'!#REF! ->  | F10: =IF(AND('Relevé pâture'!P25="Rien", 'Relevé pâture'!O25>'Relevé pâture'!M25, ('Relevé pâture'!O25-'Relevé pâture'!M25)<>0), ('Relevé pâture'!O25-'Relevé pâture'!M25)/('Relevé pâture'!O$23-'Relevé pâture'!M$23)*G10, "" ) -> 94.28571429 | G10: =_xlfn.IFS( AND('Relevé pâture'!$E$13="Herbomètre (cm)",'Relevé pâture'!$E25="> 70%", 'Relevé pâture'!$F25="Gazon", OR(F$8=3, F$8=4,F$8=5, F$8=6)), 220, AND('Relevé pâture'!$E$13="Herbomètre (cm)",'Relevé pâture'!$E25="> 70%", 'Relevé pâture'!$F25="Gazon", OR(F$8=6, F$8=7, F$8=8)), 260, AND('Relevé pâture'!$E$13="Herbomètre (cm)",'Relevé pâture'!$E25="> 70%", 'Relevé pâture'!$F25="Gazon", OR(F$8=9, F$8=10, F$8=11)), 200, AND('Relevé pâture'!$E$13="Herbomètre (cm)",'Relevé pâture'!$E25="> 70%", 'Relevé pâture'!$F25="Touffes", OR(F$8=3, F$8=4,F$8=5, F$8=6)), 180, AND('Relevé pâture'!$E$13="Herbomètre (cm)",'Relevé pâture'!$E25="> 70%", 'Relevé pâture'!$F25="Touffes", OR(F$8=6, F$8=7, F$8=8)), 220, AND('Relevé pâture'!$E$13="Herbomètre (cm)",'Relevé pâture'!$E25="> 70%", 'Relevé pâture'!$F25="Touffes", OR(F$8=9, F$8=10, F$8=11)), 160, AND('Relevé pâture'!$E$13="Herbomètre (cm)",'Relevé pâture'!$E25="< 70%", 'Relevé pâture'!$F25="Gazon", OR(F$8=3, F$8=4,F$8=5, F$8=6)), 200, AND('Relevé pâture'!$E$13="Herbomètre (cm)",'Relevé pâture'!$E25="< 70%", 'Relevé pâture'!$F25="Gazon", OR(F$8=6, F$8=7, F$8=8)), 240, AND('Relevé pâture'!$E$13="Herbomètre (cm)",'Relevé pâture'!$E25="< 70%", 'Relevé pâture'!$F25="Gazon", OR(F$8=9, F$8=10, F$8=11)), 180, AND('Relevé pâture'!$E$13="Herbomètre (cm)",'Relevé pâture'!$E25="< 70%", 'Relevé pâture'!$F25="Touffes", OR(F$8=3, F$8=4,F$8=5, F$8=6)), 160, AND('Relevé pâture'!$E$13="Herbomètre (cm)",'Relevé pâture'!$E25="< 70%", 'Relevé pâture'!$F25="Touffes", OR(F$8=6, F$8=7, F$8=8)), 200, AND('Relevé pâture'!$E$13="Herbomètre (cm)",'Relevé pâture'!$E25="< 70%", 'Relevé pâture'!$F25="Touffes", OR(F$8=9, F$8=10, F$8=11)), 140, AND('Relevé pâture'!$E$13="Double mètre (cm)",'Relevé pâture'!$E25="> 70%", 'Relevé pâture'!$F25="Gazon", OR(F$8=3, F$8=4,F$8=5, F$8=6)), 220*0.6, AND('Relevé pâture'!$E$13="Double mètre (cm)",'Relevé pâture'!$E25="> 70%", 'Relevé pâture'!$F25="Gazon", OR(F$8=6, F$8=7, F$8=8)), 260*0.6, AND('Relevé pâture'!$E$13="Double mètre (cm)",'Relevé pâture'!$E25="> 70%", 'Relevé pâture'!$F25="Gazon", OR(F$8=9, F$8=10, F$8=11)), 200*0.6, AND('Relevé pâture'!$E$13="Double mètre (cm)",'Relevé pâture'!$E25="> 70%", 'Relevé pâture'!$F25="Touffes", OR(F$8=3, F$8=4,F$8=5, F$8=6)), 180*0.6, AND('Relevé pâture'!$E$13="Double mètre (cm)",'Relevé pâture'!$E25="> 70%", 'Relevé pâture'!$F25="Touffes", OR(F$8=6, F$8=7, F$8=8)), 220*0.6, AND('Relevé pâture'!$E$13="Double mètre (cm)",'Relevé pâture'!$E25="> 70%", 'Relevé pâture'!$F25="Touffes", OR(F$8=9, F$8=10, F$8=11)), 160*0.6, AND('Relevé pâture'!$E$13="Double mètre (cm)",'Relevé pâture'!$E25="< 70%", 'Relevé pâture'!$F25="Gazon", OR(F$8=3, F$8=4,F$8=5, F$8=6)), 200*0.6, AND('Relevé pâture'!$E$13="Double mètre (cm)",'Relevé pâture'!$E25="< 70%", 'Relevé pâture'!$F25="Gazon", OR(F$8=6, F$8=7, F$8=8)), 240*0.6, AND('Relevé pâture'!$E$13="Double mètre (cm)",'Relevé pâture'!$E25="< 70%", 'Relevé pâture'!$F25="Gazon", OR(F$8=9, F$8=10, F$8=11)), 180*0.6, AND('Relevé pâture'!$E$13="Double mètre (cm)",'Relevé pâture'!$E25="< 70%", 'Relevé pâture'!$F25="Touffes", OR(F$8=3, F$8=4,F$8=5, F$8=6)), 160*0.6, AND('Relevé pâture'!$E$13="Double mètre (cm)",'Relevé pâture'!$E25="< 70%", 'Relevé pâture'!$F25="Touffes", OR(F$8=6, F$8=7, F$8=8)), 200*0.6, AND('Relevé pâture'!$E$13="Double mètre (cm)",'Relevé pâture'!$E25="< 70%", 'Relevé pâture'!$F25="Touffes", OR(F$8=9, F$8=10, F$8=11)), 140*0.6, AND('Relevé pâture'!$E$13="Herbomètre (clics)",'Relevé pâture'!$E25="> 70%", 'Relevé pâture'!$F25="Gazon", OR(F$8=3, F$8=4,F$8=5, F$8=6)), 220*0.5, AND('Relevé pâture'!$E$13="Herbomètre (clics)",'Relevé pâture'!$E25="> 70%", 'Relevé pâture'!$F25="Gazon", OR(F$8=6, F$8=7, F$8=8)), 260*0.5, AND('Relevé pâture'!$E$13="Herbomètre (clics)",'Relevé pâture'!$E25="> 70%", 'Relevé pâture'!$F25="Gazon", OR(F$8=9, F$8=10, F$8=11)), 200*0.5, AND('Relevé pâture'!$E$13="Herbomètre (clics)",'Relevé pâture'!$E25="> 70%", 'Relevé pâture'!$F25="Touffes", OR(F$8=3, F$8=4,F$8=5, F$8=6)), 180*0.5, AND('Relevé pâture'!$E$13="Herbomètre (clics)",'Relevé pâture'!$E25="> 70%", 'Relevé pâture'!$F25="Touffes", OR(F$8=6, F$8=7, F$8=8)), 220*0.5, AND('Relevé pâture'!$E$13="Herbomètre (clics)",'Relevé pâture'!$E25="> 70%", 'Relevé pâture'!$F25="Touffes", OR(F$8=9, F$8=10, F$8=11)), 160*0.5, AND('Relevé pâture'!$E$13="Herbomètre (clics)",'Relevé pâture'!$E25="< 70%", 'Relevé pâture'!$F25="Gazon", OR(F$8=3, F$8=4,F$8=5, F$8=6)), 200*0.5, AND('Relevé pâture'!$E$13="Herbomètre (clics)",'Relevé pâture'!$E25="< 70%", 'Relevé pâture'!$F25="Gazon", OR(F$8=6, F$8=7, F$8=8)), 240*0.5, AND('Relevé pâture'!$E$13="Herbomètre (clics)",'Relevé pâture'!$E25="< 70%", 'Relevé pâture'!$F25="Gazon", OR(F$8=9, F$8=10, F$8=11)), 180*0.5, AND('Relevé pâture'!$E$13="Herbomètre (clics)",'Relevé pâture'!$E25="< 70%", 'Relevé pâture'!$F25="Touffes", OR(F$8=3, F$8=4,F$8=5, F$8=6)), 160*0.5, AND('Relevé pâture'!$E$13="Herbomètre (clics)",'Relevé pâture'!$E25="< 70%", 'Relevé pâture'!$F25="Touffes", OR(F$8=6, F$8=7, F$8=8)), 200*0.5, AND('Relevé pâture'!$E$13="Herbomètre (clics)",'Relevé pâture'!$E25="< 70%", 'Relevé pâture'!$F25="Touffes", OR(F$8=9, F$8=10, F$8=11)), 140*0.5, TRUE," " ) -> 220 | H10: =IF(AND('Relevé pâture'!R25="Rien", 'Relevé pâture'!Q25>'Relevé pâture'!O25, ('Relevé pâture'!Q25-'Relevé pâture'!O25)<>0), ('Relevé pâture'!Q25-'Relevé pâture'!O25)/('Relevé pâture'!Q$23-'Relevé pâture'!O$23)*I10, "" ) ->  | I10: =_xlfn.IFS( AND('Relevé pâture'!$E$13="Herbomètre (cm)",'Relevé pâture'!$E25="> 70%", 'Relevé pâture'!$F25="Gazon", OR(H$8=3, H$8=4,H$8=5, H$8=6)), 220, AND('Relevé pâture'!$E$13="Herbomètre (cm)",'Relevé pâture'!$E25="> 70%", 'Relevé pâture'!$F25="Gazon", OR(H$8=6, H$8=7, H$8=8)), 260, AND('Relevé pâture'!$E$13="Herbomètre (cm)",'Relevé pâture'!$E25="> 70%", 'Relevé pâture'!$F25="Gazon", OR(H$8=9, H$8=10, H$8=11)), 200, AND('Relevé pâture'!$E$13="Herbomètre (cm)",'Relevé pâture'!$E25="> 70%", 'Relevé pâture'!$F25="Touffes", OR(H$8=3, H$8=4,H$8=5, H$8=6)), 180, AND('Relevé pâture'!$E$13="Herbomètre (cm)",'Relevé pâture'!$E25="> 70%", 'Relevé pâture'!$F25="Touffes", OR(H$8=6, H$8=7, H$8=8)), 220, AND('Relevé pâture'!$E$13="Herbomètre (cm)",'Relevé pâture'!$E25="> 70%", 'Relevé pâture'!$F25="Touffes", OR(H$8=9, H$8=10, H$8=11)), 160, AND('Relevé pâture'!$E$13="Herbomètre (cm)",'Relevé pâture'!$E25="< 70%", 'Relevé pâture'!$F25="Gazon", OR(H$8=3, H$8=4,H$8=5, H$8=6)), 200, AND('Relevé pâture'!$E$13="Herbomètre (cm)",'Relevé pâture'!$E25="< 70%", 'Relevé pâture'!$F25="Gazon", OR(H$8=6, H$8=7, H$8=8)), 240, AND('Relevé pâture'!$E$13="Herbomètre (cm)",'Relevé pâture'!$E25="< 70%", 'Relevé pâture'!$F25="Gazon", OR(H$8=9, H$8=10, H$8=11)), 180, AND('Relevé pâture'!$E$13="Herbomètre (cm)",'Relevé pâture'!$E25="< 70%", 'Relevé pâture'!$F25="Touffes", OR(H$8=3, H$8=4,H$8=5, H$8=6)), 160, AND('Relevé pâture'!$E$13="Herbomètre (cm)",'Relevé pâture'!$E25="< 70%", 'Relevé pâture'!$F25="Touffes", OR(H$8=6, H$8=7, H$8=8)), 200, AND('Relevé pâture'!$E$13="Herbomètre (cm)",'Relevé pâture'!$E25="< 70%", 'Relevé pâture'!$F25="Touffes", OR(H$8=9, H$8=10, H$8=11)), 140, AND('Relevé pâture'!$E$13="Double mètre (cm)",'Relevé pâture'!$E25="> 70%", 'Relevé pâture'!$F25="Gazon", OR(H$8=3, H$8=4,H$8=5, H$8=6)), 220*0.6, AND('Relevé pâture'!$E$13="Double mètre (cm)",'Relevé pâture'!$E25="> 70%", 'Relevé pâture'!$F25="Gazon", OR(H$8=6, H$8=7, H$8=8)), 260*0.6, AND('Relevé pâture'!$E$13="Double mètre (cm)",'Relevé pâture'!$E25="> 70%", 'Relevé pâture'!$F25="Gazon", OR(H$8=9, H$8=10, H$8=11)), 200*0.6, AND('Relevé pâture'!$E$13="Double mètre (cm)",'Relevé pâture'!$E25="> 70%", 'Relevé pâture'!$F25="Touffes", OR(H$8=3, H$8=4,H$8=5, H$8=6)), 180*0.6, AND('Relevé pâture'!$E$13="Double mètre (cm)",'Relevé pâture'!$E25="> 70%", 'Relevé pâture'!$F25="Touffes", OR(H$8=6, H$8=7, H$8=8)), 220*0.6, AND('Relevé pâture'!$E$13="Double mètre (cm)",'Relevé pâture'!$E25="> 70%", 'Relevé pâture'!$F25="Touffes", OR(H$8=9, H$8=10, H$8=11)), 160*0.6, AND('Relevé pâture'!$E$13="Double mètre (cm)",'Relevé pâture'!$E25="< 70%", 'Relevé pâture'!$F25="Gazon", OR(H$8=3, H$8=4,H$8=5, H$8=6)), 200*0.6, AND('Relevé pâture'!$E$13="Double mètre (cm)",'Relevé pâture'!$E25="< 70%", 'Relevé pâture'!$F25="Gazon", OR(H$8=6, H$8=7, H$8=8)), 240*0.6, AND('Relevé pâture'!$E$13="Double mètre (cm)",'Relevé pâture'!$E25="< 70%", 'Relevé pâture'!$F25="Gazon", OR(H$8=9, H$8=10, H$8=11)), 180*0.6, AND('Relevé pâture'!$E$13="Double mètre (cm)",'Relevé pâture'!$E25="< 70%", 'Relevé pâture'!$F25="Touffes", OR(H$8=3, H$8=4,H$8=5, H$8=6)), 160*0.6, AND('Relevé pâture'!$E$13="Double mètre (cm)",'Relevé pâture'!$E25="< 70%", 'Relevé pâture'!$F25="Touffes", OR(H$8=6, H$8=7, H$8=8)), 200*0.6, AND('Relevé pâture'!$E$13="Double mètre (cm)",'Relevé pâture'!$E25="< 70%", 'Relevé pâture'!$F25="Touffes", OR(H$8=9, H$8=10, H$8=11)), 140*0.6, AND('Relevé pâture'!$E$13="Herbomètre (clics)",'Relevé pâture'!$E25="> 70%", 'Relevé pâture'!$F25="Gazon", OR(H$8=3, H$8=4,H$8=5, H$8=6)), 220*0.5, AND('Relevé pâture'!$E$13="Herbomètre (clics)",'Relevé pâture'!$E25="> 70%", 'Relevé pâture'!$F25="Gazon", OR(H$8=6, H$8=7, H$8=8)), 260*0.5, AND('Relevé pâture'!$E$13="Herbomètre (clics)",'Relevé pâture'!$E25="> 70%", 'Relevé pâture'!$F25="Gazon", OR(H$8=9, H$8=10, H$8=11)), 200*0.5, AND('Relevé pâture'!$E$13="Herbomètre (clics)",'Relevé pâture'!$E25="> 70%", 'Relevé pâture'!$F25="Touffes", OR(H$8=3, H$8=4,H$8=5, H$8=6)), 180*0.5, AND('Relevé pâture'!$E$13="Herbomètre (clics)",'Relevé pâture'!$E25="> 70%", 'Relevé pâture'!$F25="Touffes", OR(H$8=6, H$8=7, H$8=8)), 220*0.5, AND('Relevé pâture'!$E$13="Herbomètre (clics)",'Relevé pâture'!$E25="> 70%", 'Relevé pâture'!$F25="Touffes", OR(H$8=9, H$8=10, H$8=11)), 160*0.5, AND('Relevé pâture'!$E$13="Herbomètre (clics)",'Relevé pâture'!$E25="< 70%", 'Relevé pâture'!$F25="Gazon", OR(H$8=3, H$8=4,H$8=5, H$8=6)), 200*0.5, AND('Relevé pâture'!$E$13="Herbomètre (clics)",'Relevé pâture'!$E25="< 70%", 'Relevé pâture'!$F25="Gazon", OR(H$8=6, H$8=7, H$8=8)), 240*0.5, AND('Relevé pâture'!$E$13="Herbomètre (clics)",'Relevé pâture'!$E25="< 70%", 'Relevé pâture'!$F25="Gazon", OR(H$8=9, H$8=10, H$8=11)), 180*0.5, AND('Relevé pâture'!$E$13="Herbomètre (clics)",'Relevé pâture'!$E25="< 70%", 'Relevé pâture'!$F25="Touffes", OR(H$8=3, H$8=4,H$8=5, H$8=6)), 160*0.5, AND('Relevé pâture'!$E$13="Herbomètre (clics)",'Relevé pâture'!$E25="< 70%", 'Relevé pâture'!$F25="Touffes", OR(H$8=6, H$8=7, H$8=8)), 200*0.5, AND('Relevé pâture'!$E$13="Herbomètre (clics)",'Relevé pâture'!$E25="< 70%", 'Relevé pâture'!$F25="Touffes", OR(H$8=9, H$8=10, H$8=11)), 140*0.5, TRUE," " ) ->  | J10: =IF(AND('Relevé pâture'!T25="Rien", 'Relevé pâture'!S25>'Relevé pâture'!Q25, ('Relevé pâture'!S25-'Relevé pâture'!Q25)<>0), ('Relevé pâture'!S25-'Relevé pâture'!Q25)/('Relevé pâture'!S$23-'Relevé pâture'!Q$23)*K10, "" ) ->  | K10: =_xlfn.IFS( AND('Relevé pâture'!$E$13="Herbomètre (cm)",'Relevé pâture'!$E25="> 70%", 'Relevé pâture'!$F25="Gazon", OR(J$8=3, J$8=4,J$8=5, J$8=6)), 220, AND('Relevé pâture'!$E$13="Herbomètre (cm)",'Relevé pâture'!$E25="> 70%", 'Relevé pâture'!$F25="Gazon", OR(J$8=6, J$8=7, J$8=8)), 260, AND('Relevé pâture'!$E$13="Herbomètre (cm)",'Relevé pâture'!$E25="> 70%", 'Relevé pâture'!$F25="Gazon", OR(J$8=9, J$8=10, J$8=11)), 200, AND('Relevé pâture'!$E$13="Herbomètre (cm)",'Relevé pâture'!$E25="> 70%", 'Relevé pâture'!$F25="Touffes", OR(J$8=3, J$8=4,J$8=5, J$8=6)), 180, AND('Relevé pâture'!$E$13="Herbomètre (cm)",'Relevé pâture'!$E25="> 70%", 'Relevé pâture'!$F25="Touffes", OR(J$8=6, J$8=7, J$8=8)), 220, AND('Relevé pâture'!$E$13="Herbomètre (cm)",'Relevé pâture'!$E25="> 70%", 'Relevé pâture'!$F25="Touffes", OR(J$8=9, J$8=10, J$8=11)), 160, AND('Relevé pâture'!$E$13="Herbomètre (cm)",'Relevé pâture'!$E25="< 70%", 'Relevé pâture'!$F25="Gazon", OR(J$8=3, J$8=4,J$8=5, J$8=6)), 200, AND('Relevé pâture'!$E$13="Herbomètre (cm)",'Relevé pâture'!$E25="< 70%", 'Relevé pâture'!$F25="Gazon", OR(J$8=6, J$8=7, J$8=8)), 240, AND('Relevé pâture'!$E$13="Herbomètre (cm)",'Relevé pâture'!$E25="< 70%", 'Relevé pâture'!$F25="Gazon", OR(J$8=9, J$8=10, J$8=11)), 180, AND('Relevé pâture'!$E$13="Herbomètre (cm)",'Relevé pâture'!$E25="< 70%", 'Relevé pâture'!$F25="Touffes", OR(J$8=3, J$8=4,J$8=5, J$8=6)), 160, AND('Relevé pâture'!$E$13="Herbomètre (cm)",'Relevé pâture'!$E25="< 70%", 'Relevé pâture'!$F25="Touffes", OR(J$8=6, J$8=7, J$8=8)), 200, AND('Relevé pâture'!$E$13="Herbomètre (cm)",'Relevé pâture'!$E25="< 70%", 'Relevé pâture'!$F25="Touffes", OR(J$8=9, J$8=10, J$8=11)), 140, AND('Relevé pâture'!$E$13="Double mètre (cm)",'Relevé pâture'!$E25="> 70%", 'Relevé pâture'!$F25="Gazon", OR(J$8=3, J$8=4,J$8=5, J$8=6)), 220*0.6, AND('Relevé pâture'!$E$13="Double mètre (cm)",'Relevé pâture'!$E25="> 70%", 'Relevé pâture'!$F25="Gazon", OR(J$8=6, J$8=7, J$8=8)), 260*0.6, AND('Relevé pâture'!$E$13="Double mètre (cm)",'Relevé pâture'!$E25="> 70%", 'Relevé pâture'!$F25="Gazon", OR(J$8=9, J$8=10, J$8=11)), 200*0.6, AND('Relevé pâture'!$E$13="Double mètre (cm)",'Relevé pâture'!$E25="> 70%", 'Relevé pâture'!$F25="Touffes", OR(J$8=3, J$8=4,J$8=5, J$8=6)), 180*0.6, AND('Relevé pâture'!$E$13="Double mètre (cm)",'Relevé pâture'!$E25="> 70%", 'Relevé pâture'!$F25="Touffes", OR(J$8=6, J$8=7, J$8=8)), 220*0.6, AND('Relevé pâture'!$E$13="Double mètre (cm)",'Relevé pâture'!$E25="> 70%", 'Relevé pâture'!$F25="Touffes", OR(J$8=9, J$8=10, J$8=11)), 160*0.6, AND('Relevé pâture'!$E$13="Double mètre (cm)",'Relevé pâture'!$E25="< 70%", 'Relevé pâture'!$F25="Gazon", OR(J$8=3, J$8=4,J$8=5, J$8=6)), 200*0.6, AND('Relevé pâture'!$E$13="Double mètre (cm)",'Relevé pâture'!$E25="< 70%", 'Relevé pâture'!$F25="Gazon", OR(J$8=6, J$8=7, J$8=8)), 240*0.6, AND('Relevé pâture'!$E$13="Double mètre (cm)",'Relevé pâture'!$E25="< 70%", 'Relevé pâture'!$F25="Gazon", OR(J$8=9, J$8=10, J$8=11)), 180*0.6, AND('Relevé pâture'!$E$13="Double mètre (cm)",'Relevé pâture'!$E25="< 70%", 'Relevé pâture'!$F25="Touffes", OR(J$8=3, J$8=4,J$8=5, J$8=6)), 160*0.6, AND('Relevé pâture'!$E$13="Double mètre (cm)",'Relevé pâture'!$E25="< 70%", 'Relevé pâture'!$F25="Touffes", OR(J$8=6, J$8=7, J$8=8)), 200*0.6, AND('Relevé pâture'!$E$13="Double mètre (cm)",'Relevé pâture'!$E25="< 70%", 'Relevé pâture'!$F25="Touffes", OR(J$8=9, J$8=10, J$8=11)), 140*0.6, AND('Relevé pâture'!$E$13="Herbomètre (clics)",'Relevé pâture'!$E25="> 70%", 'Relevé pâture'!$F25="Gazon", OR(J$8=3, J$8=4,J$8=5, J$8=6)), 220*0.5, AND('Relevé pâture'!$E$13="Herbomètre (clics)",'Relevé pâture'!$E25="> 70%", 'Relevé pâture'!$F25="Gazon", OR(J$8=6, J$8=7, J$8=8)), 260*0.5, AND('Relevé pâture'!$E$13="Herbomètre (clics)",'Relevé pâture'!$E25="> 70%", 'Relevé pâture'!$F25="Gazon", OR(J$8=9, J$8=10, J$8=11)), 200*0.5, AND('Relevé pâture'!$E$13="Herbomètre (clics)",'Relevé pâture'!$E25="> 70%", 'Relevé pâture'!$F25="Touffes", OR(J$8=3, J$8=4,J$8=5, J$8=6)), 180*0.5, AND('Relevé pâture'!$E$13="Herbomètre (clics)",'Relevé pâture'!$E25="> 70%", 'Relevé pâture'!$F25="Touffes", OR(J$8=6, J$8=7, J$8=8)), 220*0.5, AND('Relevé pâture'!$E$13="Herbomètre (clics)",'Relevé pâture'!$E25="> 70%", 'Relevé pâture'!$F25="Touffes", OR(J$8=9, J$8=10, J$8=11)), 160*0.5, AND('Relevé pâture'!$E$13="Herbomètre (clics)",'Relevé pâture'!$E25="< 70%", 'Relevé pâture'!$F25="Gazon", OR(J$8=3, J$8=4,J$8=5, J$8=6)), 200*0.5, AND('Relevé pâture'!$E$13="Herbomètre (clics)",'Relevé pâture'!$E25="< 70%", 'Relevé pâture'!$F25="Gazon", OR(J$8=6, J$8=7, J$8=8)), 240*0.5, AND('Relevé pâture'!$E$13="Herbomètre (clics)",'Relevé pâture'!$E25="< 70%", 'Relevé pâture'!$F25="Gazon", OR(J$8=9, J$8=10, J$8=11)), 180*0.5, AND('Relevé pâture'!$E$13="Herbomètre (clics)",'Relevé pâture'!$E25="< 70%", 'Relevé pâture'!$F25="Touffes", OR(J$8=3, J$8=4,J$8=5, J$8=6)), 160*0.5, AND('Relevé pâture'!$E$13="Herbomètre (clics)",'Relevé pâture'!$E25="< 70%", 'Relevé pâture'!$F25="Touffes", OR(J$8=6, J$8=7, J$8=8)), 200*0.5, AND('Relevé pâture'!$E$13="Herbomètre (clics)",'Relevé pâture'!$E25="< 70%", 'Relevé pâture'!$F25="Touffes", OR(J$8=9, J$8=10, J$8=11)), 140*0.5, TRUE," " ) ->  | L10: =IF(AND('Relevé pâture'!V25="Rien", 'Relevé pâture'!U25>'Relevé pâture'!S25, ('Relevé pâture'!U25-'Relevé pâture'!S25)<>0), ('Relevé pâture'!U25-'Relevé pâture'!S25)/('Relevé pâture'!U$23-'Relevé pâture'!S$23)*M10, "" ) ->  | M10: =_xlfn.IFS( AND('Relevé pâture'!$E$13="Herbomètre (cm)",'Relevé pâture'!$E25="> 70%", 'Relevé pâture'!$F25="Gazon", OR(L$8=3, L$8=4,L$8=5, L$8=6)), 220, AND('Relevé pâture'!$E$13="Herbomètre (cm)",'Relevé pâture'!$E25="> 70%", 'Relevé pâture'!$F25="Gazon", OR(L$8=6, L$8=7, L$8=8)), 260, AND('Relevé pâture'!$E$13="Herbomètre (cm)",'Relevé pâture'!$E25="> 70%", 'Relevé pâture'!$F25="Gazon", OR(L$8=9, L$8=10, L$8=11)), 200, AND('Relevé pâture'!$E$13="Herbomètre (cm)",'Relevé pâture'!$E25="> 70%", 'Relevé pâture'!$F25="Touffes", OR(L$8=3, L$8=4,L$8=5, L$8=6)), 180, AND('Relevé pâture'!$E$13="Herbomètre (cm)",'Relevé pâture'!$E25="> 70%", 'Relevé pâture'!$F25="Touffes", OR(L$8=6, L$8=7, L$8=8)), 220, AND('Relevé pâture'!$E$13="Herbomètre (cm)",'Relevé pâture'!$E25="> 70%", 'Relevé pâture'!$F25="Touffes", OR(L$8=9, L$8=10, L$8=11)), 160, AND('Relevé pâture'!$E$13="Herbomètre (cm)",'Relevé pâture'!$E25="< 70%", 'Relevé pâture'!$F25="Gazon", OR(L$8=3, L$8=4,L$8=5, L$8=6)), 200, AND('Relevé pâture'!$E$13="Herbomètre (cm)",'Relevé pâture'!$E25="< 70%", 'Relevé pâture'!$F25="Gazon", OR(L$8=6, L$8=7, L$8=8)), 240, AND('Relevé pâture'!$E$13="Herbomètre (cm)",'Relevé pâture'!$E25="< 70%", 'Relevé pâture'!$F25="Gazon", OR(L$8=9, L$8=10, L$8=11)), 180, AND('Relevé pâture'!$E$13="Herbomètre (cm)",'Relevé pâture'!$E25="< 70%", 'Relevé pâture'!$F25="Touffes", OR(L$8=3, L$8=4,L$8=5, L$8=6)), 160, AND('Relevé pâture'!$E$13="Herbomètre (cm)",'Relevé pâture'!$E25="< 70%", 'Relevé pâture'!$F25="Touffes", OR(L$8=6, L$8=7, L$8=8)), 200, AND('Relevé pâture'!$E$13="Herbomètre (cm)",'Relevé pâture'!$E25="< 70%", 'Relevé pâture'!$F25="Touffes", OR(L$8=9, L$8=10, L$8=11)), 140, AND('Relevé pâture'!$E$13="Double mètre (cm)",'Relevé pâture'!$E25="> 70%", 'Relevé pâture'!$F25="Gazon", OR(L$8=3, L$8=4,L$8=5, L$8=6)), 220*0.6, AND('Relevé pâture'!$E$13="Double mètre (cm)",'Relevé pâture'!$E25="> 70%", 'Relevé pâture'!$F25="Gazon", OR(L$8=6, L$8=7, L$8=8)), 260*0.6, AND('Relevé pâture'!$E$13="Double mètre (cm)",'Relevé pâture'!$E25="> 70%", 'Relevé pâture'!$F25="Gazon", OR(L$8=9, L$8=10, L$8=11)), 200*0.6, AND('Relevé pâture'!$E$13="Double mètre (cm)",'Relevé pâture'!$E25="> 70%", 'Relevé pâture'!$F25="Touffes", OR(L$8=3, L$8=4,L$8=5, L$8=6)), 180*0.6, AND('Relevé pâture'!$E$13="Double mètre (cm)",'Relevé pâture'!$E25="> 70%", 'Relevé pâture'!$F25="Touffes", OR(L$8=6, L$8=7, L$8=8)), 220*0.6, AND('Relevé pâture'!$E$13="Double mètre (cm)",'Relevé pâture'!$E25="> 70%", 'Relevé pâture'!$F25="Touffes", OR(L$8=9, L$8=10, L$8=11)), 160*0.6, AND('Relevé pâture'!$E$13="Double mètre (cm)",'Relevé pâture'!$E25="< 70%", 'Relevé pâture'!$F25="Gazon", OR(L$8=3, L$8=4,L$8=5, L$8=6)), 200*0.6, AND('Relevé pâture'!$E$13="Double mètre (cm)",'Relevé pâture'!$E25="< 70%", 'Relevé pâture'!$F25="Gazon", OR(L$8=6, L$8=7, L$8=8)), 240*0.6, AND('Relevé pâture'!$E$13="Double mètre (cm)",'Relevé pâture'!$E25="< 70%", 'Relevé pâture'!$F25="Gazon", OR(L$8=9, L$8=10, L$8=11)), 180*0.6, AND('Relevé pâture'!$E$13="Double mètre (cm)",'Relevé pâture'!$E25="< 70%", 'Relevé pâture'!$F25="Touffes", OR(L$8=3, L$8=4,L$8=5, L$8=6)), 160*0.6, AND('Relevé pâture'!$E$13="Double mètre (cm)",'Relevé pâture'!$E25="< 70%", 'Relevé pâture'!$F25="Touffes", OR(L$8=6, L$8=7, L$8=8)), 200*0.6, AND('Relevé pâture'!$E$13="Double mètre (cm)",'Relevé pâture'!$E25="< 70%", 'Relevé pâture'!$F25="Touffes", OR(L$8=9, L$8=10, L$8=11)), 140*0.6, AND('Relevé pâture'!$E$13="Herbomètre (clics)",'Relevé pâture'!$E25="> 70%", 'Relevé pâture'!$F25="Gazon", OR(L$8=3, L$8=4,L$8=5, L$8=6)), 220*0.5, AND('Relevé pâture'!$E$13="Herbomètre (clics)",'Relevé pâture'!$E25="> 70%", 'Relevé pâture'!$F25="Gazon", OR(L$8=6, L$8=7, L$8=8)), 260*0.5, AND('Relevé pâture'!$E$13="Herbomètre (clics)",'Relevé pâture'!$E25="> 70%", 'Relevé pâture'!$F25="Gazon", OR(L$8=9, L$8=10, L$8=11)), 200*0.5, AND('Relevé pâture'!$E$13="Herbomètre (clics)",'Relevé pâture'!$E25="> 70%", 'Relevé pâture'!$F25="Touffes", OR(L$8=3, L$8=4,L$8=5, L$8=6)), 180*0.5, AND('Relevé pâture'!$E$13="Herbomètre (clics)",'Relevé pâture'!$E25="> 70%", 'Relevé pâture'!$F25="Touffes", OR(L$8=6, L$8=7, L$8=8)), 220*0.5, AND('Relevé pâture'!$E$13="Herbomètre (clics)",'Relevé pâture'!$E25="> 70%", 'Relevé pâture'!$F25="Touffes", OR(L$8=9, L$8=10, L$8=11)), 160*0.5, AND('Relevé pâture'!$E$13="Herbomètre (clics)",'Relevé pâture'!$E25="< 70%", 'Relevé pâture'!$F25="Gazon", OR(L$8=3, L$8=4,L$8=5, L$8=6)), 200*0.5, AND('Relevé pâture'!$E$13="Herbomètre (clics)",'Relevé pâture'!$E25="< 70%", 'Relevé pâture'!$F25="Gazon", OR(L$8=6, L$8=7, L$8=8)), 240*0.5, AND('Relevé pâture'!$E$13="Herbomètre (clics)",'Relevé pâture'!$E25="< 70%", 'Relevé pâture'!$F25="Gazon", OR(L$8=9, L$8=10, L$8=11)), 180*0.5, AND('Relevé pâture'!$E$13="Herbomètre (clics)",'Relevé pâture'!$E25="< 70%", 'Relevé pâture'!$F25="Touffes", OR(L$8=3, L$8=4,L$8=5, L$8=6)), 160*0.5, AND('Relevé pâture'!$E$13="Herbomètre (clics)",'Relevé pâture'!$E25="< 70%", 'Relevé pâture'!$F25="Touffes", OR(L$8=6, L$8=7, L$8=8)), 200*0.5, AND('Relevé pâture'!$E$13="Herbomètre (clics)",'Relevé pâture'!$E25="< 70%", 'Relevé pâture'!$F25="Touffes", OR(L$8=9, L$8=10, L$8=11)), 140*0.5, TRUE," " ) ->  | N10: =IF(AND('Relevé pâture'!X25="Rien", 'Relevé pâture'!W25>'Relevé pâture'!U25, ('Relevé pâture'!W25-'Relevé pâture'!U25)<>0), ('Relevé pâture'!W25-'Relevé pâture'!U25)/('Relevé pâture'!W$23-'Relevé pâture'!U$23)*O10, "" ) ->  | O10: =_xlfn.IFS( AND('Relevé pâture'!$E$13="Herbomètre (cm)",'Relevé pâture'!$E25="> 70%", 'Relevé pâture'!$F25="Gazon", OR(N$8=3, N$8=4,N$8=5, N$8=6)), 220, AND('Relevé pâture'!$E$13="Herbomètre (cm)",'Relevé pâture'!$E25="> 70%", 'Relevé pâture'!$F25="Gazon", OR(N$8=6, N$8=7, N$8=8)), 260, AND('Relevé pâture'!$E$13="Herbomètre (cm)",'Relevé pâture'!$E25="> 70%", 'Relevé pâture'!$F25="Gazon", OR(N$8=9, N$8=10, N$8=11)), 200, AND('Relevé pâture'!$E$13="Herbomètre (cm)",'Relevé pâture'!$E25="> 70%", 'Relevé pâture'!$F25="Touffes", OR(N$8=3, N$8=4,N$8=5, N$8=6)), 180, AND('Relevé pâture'!$E$13="Herbomètre (cm)",'Relevé pâture'!$E25="> 70%", 'Relevé pâture'!$F25="Touffes", OR(N$8=6, N$8=7, N$8=8)), 220, AND('Relevé pâture'!$E$13="Herbomètre (cm)",'Relevé pâture'!$E25="> 70%", 'Relevé pâture'!$F25="Touffes", OR(N$8=9, N$8=10, N$8=11)), 160, AND('Relevé pâture'!$E$13="Herbomètre (cm)",'Relevé pâture'!$E25="< 70%", 'Relevé pâture'!$F25="Gazon", OR(N$8=3, N$8=4,N$8=5, N$8=6)), 200, AND('Relevé pâture'!$E$13="Herbomètre (cm)",'Relevé pâture'!$E25="< 70%", 'Relevé pâture'!$F25="Gazon", OR(N$8=6, N$8=7, N$8=8)), 240, AND('Relevé pâture'!$E$13="Herbomètre (cm)",'Relevé pâture'!$E25="< 70%", 'Relevé pâture'!$F25="Gazon", OR(N$8=9, N$8=10, N$8=11)), 180, AND('Relevé pâture'!$E$13="Herbomètre (cm)",'Relevé pâture'!$E25="< 70%", 'Relevé pâture'!$F25="Touffes", OR(N$8=3, N$8=4,N$8=5, N$8=6)), 160, AND('Relevé pâture'!$E$13="Herbomètre (cm)",'Relevé pâture'!$E25="< 70%", 'Relevé pâture'!$F25="Touffes", OR(N$8=6, N$8=7, N$8=8)), 200, AND('Relevé pâture'!$E$13="Herbomètre (cm)",'Relevé pâture'!$E25="< 70%", 'Relevé pâture'!$F25="Touffes", OR(N$8=9, N$8=10, N$8=11)), 140, AND('Relevé pâture'!$E$13="Double mètre (cm)",'Relevé pâture'!$E25="> 70%", 'Relevé pâture'!$F25="Gazon", OR(N$8=3, N$8=4,N$8=5, N$8=6)), 220*0.6, AND('Relevé pâture'!$E$13="Double mètre (cm)",'Relevé pâture'!$E25="> 70%", 'Relevé pâture'!$F25="Gazon", OR(N$8=6, N$8=7, N$8=8)), 260*0.6, AND('Relevé pâture'!$E$13="Double mètre (cm)",'Relevé pâture'!$E25="> 70%", 'Relevé pâture'!$F25="Gazon", OR(N$8=9, N$8=10, N$8=11)), 200*0.6, AND('Relevé pâture'!$E$13="Double mètre (cm)",'Relevé pâture'!$E25="> 70%", 'Relevé pâture'!$F25="Touffes", OR(N$8=3, N$8=4,N$8=5, N$8=6)), 180*0.6, AND('Relevé pâture'!$E$13="Double mètre (cm)",'Relevé pâture'!$E25="> 70%", 'Relevé pâture'!$F25="Touffes", OR(N$8=6, N$8=7, N$8=8)), 220*0.6, AND('Relevé pâture'!$E$13="Double mètre (cm)",'Relevé pâture'!$E25="> 70%", 'Relevé pâture'!$F25="Touffes", OR(N$8=9, N$8=10, N$8=11)), 160*0.6, AND('Relevé pâture'!$E$13="Double mètre (cm)",'Relevé pâture'!$E25="< 70%", 'Relevé pâture'!$F25="Gazon", OR(N$8=3, N$8=4,N$8=5, N$8=6)), 200*0.6, AND('Relevé pâture'!$E$13="Double mètre (cm)",'Relevé pâture'!$E25="< 70%", 'Relevé pâture'!$F25="Gazon", OR(N$8=6, N$8=7, N$8=8)), 240*0.6, AND('Relevé pâture'!$E$13="Double mètre (cm)",'Relevé pâture'!$E25="< 70%", 'Relevé pâture'!$F25="Gazon", OR(N$8=9, N$8=10, N$8=11)), 180*0.6, AND('Relevé pâture'!$E$13="Double mètre (cm)",'Relevé pâture'!$E25="< 70%", 'Relevé pâture'!$F25="Touffes", OR(N$8=3, N$8=4,N$8=5, N$8=6)), 160*0.6, AND('Relevé pâture'!$E$13="Double mètre (cm)",'Relevé pâture'!$E25="< 70%", 'Relevé pâture'!$F25="Touffes", OR(N$8=6, N$8=7, N$8=8)), 200*0.6, AND('Relevé pâture'!$E$13="Double mètre (cm)",'Relevé pâture'!$E25="< 70%", 'Relevé pâture'!$F25="Touffes", OR(N$8=9, N$8=10, N$8=11)), 140*0.6, AND('Relevé pâture'!$E$13="Herbomètre (clics)",'Relevé pâture'!$E25="> 70%", 'Relevé pâture'!$F25="Gazon", OR(N$8=3, N$8=4,N$8=5, N$8=6)), 220*0.5, AND('Relevé pâture'!$E$13="Herbomètre (clics)",'Relevé pâture'!$E25="> 70%", 'Relevé pâture'!$F25="Gazon", OR(N$8=6, N$8=7, N$8=8)), 260*0.5, AND('Relevé pâture'!$E$13="Herbomètre (clics)",'Relevé pâture'!$E25="> 70%", 'Relevé pâture'!$F25="Gazon", OR(N$8=9, N$8=10, N$8=11)), 200*0.5, AND('Relevé pâture'!$E$13="Herbomètre (clics)",'Relevé pâture'!$E25="> 70%", 'Relevé pâture'!$F25="Touffes", OR(N$8=3, N$8=4,N$8=5, N$8=6)), 180*0.5, AND('Relevé pâture'!$E$13="Herbomètre (clics)",'Relevé pâture'!$E25="> 70%", 'Relevé pâture'!$F25="Touffes", OR(N$8=6, N$8=7, N$8=8)), 220*0.5, AND('Relevé pâture'!$E$13="Herbomètre (clics)",'Relevé pâture'!$E25="> 70%", 'Relevé pâture'!$F25="Touffes", OR(N$8=9, N$8=10, N$8=11)), 160*0.5, AND('Relevé pâture'!$E$13="Herbomètre (clics)",'Relevé pâture'!$E25="< 70%", 'Relevé pâture'!$F25="Gazon", OR(N$8=3, N$8=4,N$8=5, N$8=6)), 200*0.5, AND('Relevé pâture'!$E$13="Herbomètre (clics)",'Relevé pâture'!$E25="< 70%", 'Relevé pâture'!$F25="Gazon", OR(N$8=6, N$8=7, N$8=8)), 240*0.5, AND('Relevé pâture'!$E$13="Herbomètre (clics)",'Relevé pâture'!$E25="< 70%", 'Relevé pâture'!$F25="Gazon", OR(N$8=9, N$8=10, N$8=11)), 180*0.5, AND('Relevé pâture'!$E$13="Herbomètre (clics)",'Relevé pâture'!$E25="< 70%", 'Relevé pâture'!$F25="Touffes", OR(N$8=3, N$8=4,N$8=5, N$8=6)), 160*0.5, AND('Relevé pâture'!$E$13="Herbomètre (clics)",'Relevé pâture'!$E25="< 70%", 'Relevé pâture'!$F25="Touffes", OR(N$8=6, N$8=7, N$8=8)), 200*0.5, AND('Relevé pâture'!$E$13="Herbomètre (clics)",'Relevé pâture'!$E25="< 70%", 'Relevé pâture'!$F25="Touffes", OR(N$8=9, N$8=10, N$8=11)), 140*0.5, TRUE," " ) ->  | P10: =IF(AND('Relevé pâture'!Z25="Rien", 'Relevé pâture'!Y25>'Relevé pâture'!W25, ('Relevé pâture'!Y25-'Relevé pâture'!W25)<>0), ('Relevé pâture'!Y25-'Relevé pâture'!W25)/('Relevé pâture'!Y$23-'Relevé pâture'!W$23)*Q10, "" ) ->  | Q10: =_xlfn.IFS( AND('Relevé pâture'!$E$13="Herbomètre (cm)",'Relevé pâture'!$E25="> 70%", 'Relevé pâture'!$F25="Gazon", OR(P$8=3, P$8=4,P$8=5, P$8=6)), 220, AND('Relevé pâture'!$E$13="Herbomètre (cm)",'Relevé pâture'!$E25="> 70%", 'Relevé pâture'!$F25="Gazon", OR(P$8=6, P$8=7, P$8=8)), 260, AND('Relevé pâture'!$E$13="Herbomètre (cm)",'Relevé pâture'!$E25="> 70%", 'Relevé pâture'!$F25="Gazon", OR(P$8=9, P$8=10, P$8=11)), 200, AND('Relevé pâture'!$E$13="Herbomètre (cm)",'Relevé pâture'!$E25="> 70%", 'Relevé pâture'!$F25="Touffes", OR(P$8=3, P$8=4,P$8=5, P$8=6)), 180, AND('Relevé pâture'!$E$13="Herbomètre (cm)",'Relevé pâture'!$E25="> 70%", 'Relevé pâture'!$F25="Touffes", OR(P$8=6, P$8=7, P$8=8)), 220, AND('Relevé pâture'!$E$13="Herbomètre (cm)",'Relevé pâture'!$E25="> 70%", 'Relevé pâture'!$F25="Touffes", OR(P$8=9, P$8=10, P$8=11)), 160, AND('Relevé pâture'!$E$13="Herbomètre (cm)",'Relevé pâture'!$E25="< 70%", 'Relevé pâture'!$F25="Gazon", OR(P$8=3, P$8=4,P$8=5, P$8=6)), 200, AND('Relevé pâture'!$E$13="Herbomètre (cm)",'Relevé pâture'!$E25="< 70%", 'Relevé pâture'!$F25="Gazon", OR(P$8=6, P$8=7, P$8=8)), 240, AND('Relevé pâture'!$E$13="Herbomètre (cm)",'Relevé pâture'!$E25="< 70%", 'Relevé pâture'!$F25="Gazon", OR(P$8=9, P$8=10, P$8=11)), 180, AND('Relevé pâture'!$E$13="Herbomètre (cm)",'Relevé pâture'!$E25="< 70%", 'Relevé pâture'!$F25="Touffes", OR(P$8=3, P$8=4,P$8=5, P$8=6)), 160, AND('Relevé pâture'!$E$13="Herbomètre (cm)",'Relevé pâture'!$E25="< 70%", 'Relevé pâture'!$F25="Touffes", OR(P$8=6, P$8=7, P$8=8)), 200, AND('Relevé pâture'!$E$13="Herbomètre (cm)",'Relevé pâture'!$E25="< 70%", 'Relevé pâture'!$F25="Touffes", OR(P$8=9, P$8=10, P$8=11)), 140, AND('Relevé pâture'!$E$13="Double mètre (cm)",'Relevé pâture'!$E25="> 70%", 'Relevé pâture'!$F25="Gazon", OR(P$8=3, P$8=4,P$8=5, P$8=6)), 220*0.6, AND('Relevé pâture'!$E$13="Double mètre (cm)",'Relevé pâture'!$E25="> 70%", 'Relevé pâture'!$F25="Gazon", OR(P$8=6, P$8=7, P$8=8)), 260*0.6, AND('Relevé pâture'!$E$13="Double mètre (cm)",'Relevé pâture'!$E25="> 70%", 'Relevé pâture'!$F25="Gazon", OR(P$8=9, P$8=10, P$8=11)), 200*0.6, AND('Relevé pâture'!$E$13="Double mètre (cm)",'Relevé pâture'!$E25="> 70%", 'Relevé pâture'!$F25="Touffes", OR(P$8=3, P$8=4,P$8=5, P$8=6)), 180*0.6, AND('Relevé pâture'!$E$13="Double mètre (cm)",'Relevé pâture'!$E25="> 70%", 'Relevé pâture'!$F25="Touffes", OR(P$8=6, P$8=7, P$8=8)), 220*0.6, AND('Relevé pâture'!$E$13="Double mètre (cm)",'Relevé pâture'!$E25="> 70%", 'Relevé pâture'!$F25="Touffes", OR(P$8=9, P$8=10, P$8=11)), 160*0.6, AND('Relevé pâture'!$E$13="Double mètre (cm)",'Relevé pâture'!$E25="< 70%", 'Relevé pâture'!$F25="Gazon", OR(P$8=3, P$8=4,P$8=5, P$8=6)), 200*0.6, AND('Relevé pâture'!$E$13="Double mètre (cm)",'Relevé pâture'!$E25="< 70%", 'Relevé pâture'!$F25="Gazon", OR(P$8=6, P$8=7, P$8=8)), 240*0.6, AND('Relevé pâture'!$E$13="Double mètre (cm)",'Relevé pâture'!$E25="< 70%", 'Relevé pâture'!$F25="Gazon", OR(P$8=9, P$8=10, P$8=11)), 180*0.6, AND('Relevé pâture'!$E$13="Double mètre (cm)",'Relevé pâture'!$E25="< 70%", 'Relevé pâture'!$F25="Touffes", OR(P$8=3, P$8=4,P$8=5, P$8=6)), 160*0.6, AND('Relevé pâture'!$E$13="Double mètre (cm)",'Relevé pâture'!$E25="< 70%", 'Relevé pâture'!$F25="Touffes", OR(P$8=6, P$8=7, P$8=8)), 200*0.6, AND('Relevé pâture'!$E$13="Double mètre (cm)",'Relevé pâture'!$E25="< 70%", 'Relevé pâture'!$F25="Touffes", OR(P$8=9, P$8=10, P$8=11)), 140*0.6, AND('Relevé pâture'!$E$13="Herbomètre (clics)",'Relevé pâture'!$E25="> 70%", 'Relevé pâture'!$F25="Gazon", OR(P$8=3, P$8=4,P$8=5, P$8=6)), 220*0.5, AND('Relevé pâture'!$E$13="Herbomètre (clics)",'Relevé pâture'!$E25="> 70%", 'Relevé pâture'!$F25="Gazon", OR(P$8=6, P$8=7, P$8=8)), 260*0.5, AND('Relevé pâture'!$E$13="Herbomètre (clics)",'Relevé pâture'!$E25="> 70%", 'Relevé pâture'!$F25="Gazon", OR(P$8=9, P$8=10, P$8=11)), 200*0.5, AND('Relevé pâture'!$E$13="Herbomètre (clics)",'Relevé pâture'!$E25="> 70%", 'Relevé pâture'!$F25="Touffes", OR(P$8=3, P$8=4,P$8=5, P$8=6)), 180*0.5, AND('Relevé pâture'!$E$13="Herbomètre (clics)",'Relevé pâture'!$E25="> 70%", 'Relevé pâture'!$F25="Touffes", OR(P$8=6, P$8=7, P$8=8)), 220*0.5, AND('Relevé pâture'!$E$13="Herbomètre (clics)",'Relevé pâture'!$E25="> 70%", 'Relevé pâture'!$F25="Touffes", OR(P$8=9, P$8=10, P$8=11)), 160*0.5, AND('Relevé pâture'!$E$13="Herbomètre (clics)",'Relevé pâture'!$E25="< 70%", 'Relevé pâture'!$F25="Gazon", OR(P$8=3, P$8=4,P$8=5, P$8=6)), 200*0.5, AND('Relevé pâture'!$E$13="Herbomètre (clics)",'Relevé pâture'!$E25="< 70%", 'Relevé pâture'!$F25="Gazon", OR(P$8=6, P$8=7, P$8=8)), 240*0.5, AND('Relevé pâture'!$E$13="Herbomètre (clics)",'Relevé pâture'!$E25="< 70%", 'Relevé pâture'!$F25="Gazon", OR(P$8=9, P$8=10, P$8=11)), 180*0.5, AND('Relevé pâture'!$E$13="Herbomètre (clics)",'Relevé pâture'!$E25="< 70%", 'Relevé pâture'!$F25="Touffes", OR(P$8=3, P$8=4,P$8=5, P$8=6)), 160*0.5, AND('Relevé pâture'!$E$13="Herbomètre (clics)",'Relevé pâture'!$E25="< 70%", 'Relevé pâture'!$F25="Touffes", OR(P$8=6, P$8=7, P$8=8)), 200*0.5, AND('Relevé pâture'!$E$13="Herbomètre (clics)",'Relevé pâture'!$E25="< 70%", 'Relevé pâture'!$F25="Touffes", OR(P$8=9, P$8=10, P$8=11)), 140*0.5, TRUE," " ) ->  | R10: =IF(AND('Relevé pâture'!AB25="Rien", 'Relevé pâture'!AA25>'Relevé pâture'!Y25, ('Relevé pâture'!AA25-'Relevé pâture'!Y25)<>0), ('Relevé pâture'!AA25-'Relevé pâture'!Y25)/('Relevé pâture'!AA$23-'Relevé pâture'!Y$23)*S10, "" ) ->  | S10: =_xlfn.IFS( AND('Relevé pâture'!$E$13="Herbomètre (cm)",'Relevé pâture'!$E25="> 70%", 'Relevé pâture'!$F25="Gazon", OR(R$8=3, R$8=4,R$8=5, R$8=6)), 220, AND('Relevé pâture'!$E$13="Herbomètre (cm)",'Relevé pâture'!$E25="> 70%", 'Relevé pâture'!$F25="Gazon", OR(R$8=6, R$8=7, R$8=8)), 260, AND('Relevé pâture'!$E$13="Herbomètre (cm)",'Relevé pâture'!$E25="> 70%", 'Relevé pâture'!$F25="Gazon", OR(R$8=9, R$8=10, R$8=11)), 200, AND('Relevé pâture'!$E$13="Herbomètre (cm)",'Relevé pâture'!$E25="> 70%", 'Relevé pâture'!$F25="Touffes", OR(R$8=3, R$8=4,R$8=5, R$8=6)), 180, AND('Relevé pâture'!$E$13="Herbomètre (cm)",'Relevé pâture'!$E25="> 70%", 'Relevé pâture'!$F25="Touffes", OR(R$8=6, R$8=7, R$8=8)), 220, AND('Relevé pâture'!$E$13="Herbomètre (cm)",'Relevé pâture'!$E25="> 70%", 'Relevé pâture'!$F25="Touffes", OR(R$8=9, R$8=10, R$8=11)), 160, AND('Relevé pâture'!$E$13="Herbomètre (cm)",'Relevé pâture'!$E25="< 70%", 'Relevé pâture'!$F25="Gazon", OR(R$8=3, R$8=4,R$8=5, R$8=6)), 200, AND('Relevé pâture'!$E$13="Herbomètre (cm)",'Relevé pâture'!$E25="< 70%", 'Relevé pâture'!$F25="Gazon", OR(R$8=6, R$8=7, R$8=8)), 240, AND('Relevé pâture'!$E$13="Herbomètre (cm)",'Relevé pâture'!$E25="< 70%", 'Relevé pâture'!$F25="Gazon", OR(R$8=9, R$8=10, R$8=11)), 180, AND('Relevé pâture'!$E$13="Herbomètre (cm)",'Relevé pâture'!$E25="< 70%", 'Relevé pâture'!$F25="Touffes", OR(R$8=3, R$8=4,R$8=5, R$8=6)), 160, AND('Relevé pâture'!$E$13="Herbomètre (cm)",'Relevé pâture'!$E25="< 70%", 'Relevé pâture'!$F25="Touffes", OR(R$8=6, R$8=7, R$8=8)), 200, AND('Relevé pâture'!$E$13="Herbomètre (cm)",'Relevé pâture'!$E25="< 70%", 'Relevé pâture'!$F25="Touffes", OR(R$8=9, R$8=10, R$8=11)), 140, AND('Relevé pâture'!$E$13="Double mètre (cm)",'Relevé pâture'!$E25="> 70%", 'Relevé pâture'!$F25="Gazon", OR(R$8=3, R$8=4,R$8=5, R$8=6)), 220*0.6, AND('Relevé pâture'!$E$13="Double mètre (cm)",'Relevé pâture'!$E25="> 70%", 'Relevé pâture'!$F25="Gazon", OR(R$8=6, R$8=7, R$8=8)), 260*0.6, AND('Relevé pâture'!$E$13="Double mètre (cm)",'Relevé pâture'!$E25="> 70%", 'Relevé pâture'!$F25="Gazon", OR(R$8=9, R$8=10, R$8=11)), 200*0.6, AND('Relevé pâture'!$E$13="Double mètre (cm)",'Relevé pâture'!$E25="> 70%", 'Relevé pâture'!$F25="Touffes", OR(R$8=3, R$8=4,R$8=5, R$8=6)), 180*0.6, AND('Relevé pâture'!$E$13="Double mètre (cm)",'Relevé pâture'!$E25="> 70%", 'Relevé pâture'!$F25="Touffes", OR(R$8=6, R$8=7, R$8=8)), 220*0.6, AND('Relevé pâture'!$E$13="Double mètre (cm)",'Relevé pâture'!$E25="> 70%", 'Relevé pâture'!$F25="Touffes", OR(R$8=9, R$8=10, R$8=11)), 160*0.6, AND('Relevé pâture'!$E$13="Double mètre (cm)",'Relevé pâture'!$E25="< 70%", 'Relevé pâture'!$F25="Gazon", OR(R$8=3, R$8=4,R$8=5, R$8=6)), 200*0.6, AND('Relevé pâture'!$E$13="Double mètre (cm)",'Relevé pâture'!$E25="< 70%", 'Relevé pâture'!$F25="Gazon", OR(R$8=6, R$8=7, R$8=8)), 240*0.6, AND('Relevé pâture'!$E$13="Double mètre (cm)",'Relevé pâture'!$E25="< 70%", 'Relevé pâture'!$F25="Gazon", OR(R$8=9, R$8=10, R$8=11)), 180*0.6, AND('Relevé pâture'!$E$13="Double mètre (cm)",'Relevé pâture'!$E25="< 70%", 'Relevé pâture'!$F25="Touffes", OR(R$8=3, R$8=4,R$8=5, R$8=6)), 160*0.6, AND('Relevé pâture'!$E$13="Double mètre (cm)",'Relevé pâture'!$E25="< 70%", 'Relevé pâture'!$F25="Touffes", OR(R$8=6, R$8=7, R$8=8)), 200*0.6, AND('Relevé pâture'!$E$13="Double mètre (cm)",'Relevé pâture'!$E25="< 70%", 'Relevé pâture'!$F25="Touffes", OR(R$8=9, R$8=10, R$8=11)), 140*0.6, AND('Relevé pâture'!$E$13="Herbomètre (clics)",'Relevé pâture'!$E25="> 70%", 'Relevé pâture'!$F25="Gazon", OR(R$8=3, R$8=4,R$8=5, R$8=6)), 220*0.5, AND('Relevé pâture'!$E$13="Herbomètre (clics)",'Relevé pâture'!$E25="> 70%", 'Relevé pâture'!$F25="Gazon", OR(R$8=6, R$8=7, R$8=8)), 260*0.5, AND('Relevé pâture'!$E$13="Herbomètre (clics)",'Relevé pâture'!$E25="> 70%", 'Relevé pâture'!$F25="Gazon", OR(R$8=9, R$8=10, R$8=11)), 200*0.5, AND('Relevé pâture'!$E$13="Herbomètre (clics)",'Relevé pâture'!$E25="> 70%", 'Relevé pâture'!$F25="Touffes", OR(R$8=3, R$8=4,R$8=5, R$8=6)), 180*0.5, AND('Relevé pâture'!$E$13="Herbomètre (clics)",'Relevé pâture'!$E25="> 70%", 'Relevé pâture'!$F25="Touffes", OR(R$8=6, R$8=7, R$8=8)), 220*0.5, AND('Relevé pâture'!$E$13="Herbomètre (clics)",'Relevé pâture'!$E25="> 70%", 'Relevé pâture'!$F25="Touffes", OR(R$8=9, R$8=10, R$8=11)), 160*0.5, AND('Relevé pâture'!$E$13="Herbomètre (clics)",'Relevé pâture'!$E25="< 70%", 'Relevé pâture'!$F25="Gazon", OR(R$8=3, R$8=4,R$8=5, R$8=6)), 200*0.5, AND('Relevé pâture'!$E$13="Herbomètre (clics)",'Relevé pâture'!$E25="< 70%", 'Relevé pâture'!$F25="Gazon", OR(R$8=6, R$8=7, R$8=8)), 240*0.5, AND('Relevé pâture'!$E$13="Herbomètre (clics)",'Relevé pâture'!$E25="< 70%", 'Relevé pâture'!$F25="Gazon", OR(R$8=9, R$8=10, R$8=11)), 180*0.5, AND('Relevé pâture'!$E$13="Herbomètre (clics)",'Relevé pâture'!$E25="< 70%", 'Relevé pâture'!$F25="Touffes", OR(R$8=3, R$8=4,R$8=5, R$8=6)), 160*0.5, AND('Relevé pâture'!$E$13="Herbomètre (clics)",'Relevé pâture'!$E25="< 70%", 'Relevé pâture'!$F25="Touffes", OR(R$8=6, R$8=7, R$8=8)), 200*0.5, AND('Relevé pâture'!$E$13="Herbomètre (clics)",'Relevé pâture'!$E25="< 70%", 'Relevé pâture'!$F25="Touffes", OR(R$8=9, R$8=10, R$8=11)), 140*0.5, TRUE," " ) ->  | T10: =IF(AND('Relevé pâture'!AD25="Rien", 'Relevé pâture'!AC25>'Relevé pâture'!AA25, ('Relevé pâture'!AC25-'Relevé pâture'!AA25)<>0), ('Relevé pâture'!AC25-'Relevé pâture'!AA25)/('Relevé pâture'!AC$23-'Relevé pâture'!AA$23)*U10, "" ) ->  | U10: =_xlfn.IFS( AND('Relevé pâture'!$E$13="Herbomètre (cm)",'Relevé pâture'!$E25="> 70%", 'Relevé pâture'!$F25="Gazon", OR(T$8=3, T$8=4,T$8=5, T$8=6)), 220, AND('Relevé pâture'!$E$13="Herbomètre (cm)",'Relevé pâture'!$E25="> 70%", 'Relevé pâture'!$F25="Gazon", OR(T$8=6, T$8=7, T$8=8)), 260, AND('Relevé pâture'!$E$13="Herbomètre (cm)",'Relevé pâture'!$E25="> 70%", 'Relevé pâture'!$F25="Gazon", OR(T$8=9, T$8=10, T$8=11)), 200, AND('Relevé pâture'!$E$13="Herbomètre (cm)",'Relevé pâture'!$E25="> 70%", 'Relevé pâture'!$F25="Touffes", OR(T$8=3, T$8=4,T$8=5, T$8=6)), 180, AND('Relevé pâture'!$E$13="Herbomètre (cm)",'Relevé pâture'!$E25="> 70%", 'Relevé pâture'!$F25="Touffes", OR(T$8=6, T$8=7, T$8=8)), 220, AND('Relevé pâture'!$E$13="Herbomètre (cm)",'Relevé pâture'!$E25="> 70%", 'Relevé pâture'!$F25="Touffes", OR(T$8=9, T$8=10, T$8=11)), 160, AND('Relevé pâture'!$E$13="Herbomètre (cm)",'Relevé pâture'!$E25="< 70%", 'Relevé pâture'!$F25="Gazon", OR(T$8=3, T$8=4,T$8=5, T$8=6)), 200, AND('Relevé pâture'!$E$13="Herbomètre (cm)",'Relevé pâture'!$E25="< 70%", 'Relevé pâture'!$F25="Gazon", OR(T$8=6, T$8=7, T$8=8)), 240, AND('Relevé pâture'!$E$13="Herbomètre (cm)",'Relevé pâture'!$E25="< 70%", 'Relevé pâture'!$F25="Gazon", OR(T$8=9, T$8=10, T$8=11)), 180, AND('Relevé pâture'!$E$13="Herbomètre (cm)",'Relevé pâture'!$E25="< 70%", 'Relevé pâture'!$F25="Touffes", OR(T$8=3, T$8=4,T$8=5, T$8=6)), 160, AND('Relevé pâture'!$E$13="Herbomètre (cm)",'Relevé pâture'!$E25="< 70%", 'Relevé pâture'!$F25="Touffes", OR(T$8=6, T$8=7, T$8=8)), 200, AND('Relevé pâture'!$E$13="Herbomètre (cm)",'Relevé pâture'!$E25="< 70%", 'Relevé pâture'!$F25="Touffes", OR(T$8=9, T$8=10, T$8=11)), 140, AND('Relevé pâture'!$E$13="Double mètre (cm)",'Relevé pâture'!$E25="> 70%", 'Relevé pâture'!$F25="Gazon", OR(T$8=3, T$8=4,T$8=5, T$8=6)), 220*0.6, AND('Relevé pâture'!$E$13="Double mètre (cm)",'Relevé pâture'!$E25="> 70%", 'Relevé pâture'!$F25="Gazon", OR(T$8=6, T$8=7, T$8=8)), 260*0.6, AND('Relevé pâture'!$E$13="Double mètre (cm)",'Relevé pâture'!$E25="> 70%", 'Relevé pâture'!$F25="Gazon", OR(T$8=9, T$8=10, T$8=11)), 200*0.6, AND('Relevé pâture'!$E$13="Double mètre (cm)",'Relevé pâture'!$E25="> 70%", 'Relevé pâture'!$F25="Touffes", OR(T$8=3, T$8=4,T$8=5, T$8=6)), 180*0.6, AND('Relevé pâture'!$E$13="Double mètre (cm)",'Relevé pâture'!$E25="> 70%", 'Relevé pâture'!$F25="Touffes", OR(T$8=6, T$8=7, T$8=8)), 220*0.6, AND('Relevé pâture'!$E$13="Double mètre (cm)",'Relevé pâture'!$E25="> 70%", 'Relevé pâture'!$F25="Touffes", OR(T$8=9, T$8=10, T$8=11)), 160*0.6, AND('Relevé pâture'!$E$13="Double mètre (cm)",'Relevé pâture'!$E25="< 70%", 'Relevé pâture'!$F25="Gazon", OR(T$8=3, T$8=4,T$8=5, T$8=6)), 200*0.6, AND('Relevé pâture'!$E$13="Double mètre (cm)",'Relevé pâture'!$E25="< 70%", 'Relevé pâture'!$F25="Gazon", OR(T$8=6, T$8=7, T$8=8)), 240*0.6, AND('Relevé pâture'!$E$13="Double mètre (cm)",'Relevé pâture'!$E25="< 70%", 'Relevé pâture'!$F25="Gazon", OR(T$8=9, T$8=10, T$8=11)), 180*0.6, AND('Relevé pâture'!$E$13="Double mètre (cm)",'Relevé pâture'!$E25="< 70%", 'Relevé pâture'!$F25="Touffes", OR(T$8=3, T$8=4,T$8=5, T$8=6)), 160*0.6, AND('Relevé pâture'!$E$13="Double mètre (cm)",'Relevé pâture'!$E25="< 70%", 'Relevé pâture'!$F25="Touffes", OR(T$8=6, T$8=7, T$8=8)), 200*0.6, AND('Relevé pâture'!$E$13="Double mètre (cm)",'Relevé pâture'!$E25="< 70%", 'Relevé pâture'!$F25="Touffes", OR(T$8=9, T$8=10, T$8=11)), 140*0.6, AND('Relevé pâture'!$E$13="Herbomètre (clics)",'Relevé pâture'!$E25="> 70%", 'Relevé pâture'!$F25="Gazon", OR(T$8=3, T$8=4,T$8=5, T$8=6)), 220*0.5, AND('Relevé pâture'!$E$13="Herbomètre (clics)",'Relevé pâture'!$E25="> 70%", 'Relevé pâture'!$F25="Gazon", OR(T$8=6, T$8=7, T$8=8)), 260*0.5, AND('Relevé pâture'!$E$13="Herbomètre (clics)",'Relevé pâture'!$E25="> 70%", 'Relevé pâture'!$F25="Gazon", OR(T$8=9, T$8=10, T$8=11)), 200*0.5, AND('Relevé pâture'!$E$13="Herbomètre (clics)",'Relevé pâture'!$E25="> 70%", 'Relevé pâture'!$F25="Touffes", OR(T$8=3, T$8=4,T$8=5, T$8=6)), 180*0.5, AND('Relevé pâture'!$E$13="Herbomètre (clics)",'Relevé pâture'!$E25="> 70%", 'Relevé pâture'!$F25="Touffes", OR(T$8=6, T$8=7, T$8=8)), 220*0.5, AND('Relevé pâture'!$E$13="Herbomètre (clics)",'Relevé pâture'!$E25="> 70%", 'Relevé pâture'!$F25="Touffes", OR(T$8=9, T$8=10, T$8=11)), 160*0.5, AND('Relevé pâture'!$E$13="Herbomètre (clics)",'Relevé pâture'!$E25="< 70%", 'Relevé pâture'!$F25="Gazon", OR(T$8=3, T$8=4,T$8=5, T$8=6)), 200*0.5, AND('Relevé pâture'!$E$13="Herbomètre (clics)",'Relevé pâture'!$E25="< 70%", 'Relevé pâture'!$F25="Gazon", OR(T$8=6, T$8=7, T$8=8)), 240*0.5, AND('Relevé pâture'!$E$13="Herbomètre (clics)",'Relevé pâture'!$E25="< 70%", 'Relevé pâture'!$F25="Gazon", OR(T$8=9, T$8=10, T$8=11)), 180*0.5, AND('Relevé pâture'!$E$13="Herbomètre (clics)",'Relevé pâture'!$E25="< 70%", 'Relevé pâture'!$F25="Touffes", OR(T$8=3, T$8=4,T$8=5, T$8=6)), 160*0.5, AND('Relevé pâture'!$E$13="Herbomètre (clics)",'Relevé pâture'!$E25="< 70%", 'Relevé pâture'!$F25="Touffes", OR(T$8=6, T$8=7, T$8=8)), 200*0.5, AND('Relevé pâture'!$E$13="Herbomètre (clics)",'Relevé pâture'!$E25="< 70%", 'Relevé pâture'!$F25="Touffes", OR(T$8=9, T$8=10, T$8=11)), 140*0.5, TRUE," " ) ->  | V10: =IF(AND('Relevé pâture'!AF25="Rien", 'Relevé pâture'!AE25>'Relevé pâture'!AC25, ('Relevé pâture'!AE25-'Relevé pâture'!AC25)<>0), ('Relevé pâture'!AE25-'Relevé pâture'!AC25)/('Relevé pâture'!AE$23-'Relevé pâture'!AC$23)*W10, "" ) ->  | W10: =_xlfn.IFS( AND('Relevé pâture'!$E$13="Herbomètre (cm)",'Relevé pâture'!$E25="> 70%", 'Relevé pâture'!$F25="Gazon", OR(V$8=3, V$8=4,V$8=5, V$8=6)), 220, AND('Relevé pâture'!$E$13="Herbomètre (cm)",'Relevé pâture'!$E25="> 70%", 'Relevé pâture'!$F25="Gazon", OR(V$8=6, V$8=7, V$8=8)), 260, AND('Relevé pâture'!$E$13="Herbomètre (cm)",'Relevé pâture'!$E25="> 70%", 'Relevé pâture'!$F25="Gazon", OR(V$8=9, V$8=10, V$8=11)), 200, AND('Relevé pâture'!$E$13="Herbomètre (cm)",'Relevé pâture'!$E25="> 70%", 'Relevé pâture'!$F25="Touffes", OR(V$8=3, V$8=4,V$8=5, V$8=6)), 180, AND('Relevé pâture'!$E$13="Herbomètre (cm)",'Relevé pâture'!$E25="> 70%", 'Relevé pâture'!$F25="Touffes", OR(V$8=6, V$8=7, V$8=8)), 220, AND('Relevé pâture'!$E$13="Herbomètre (cm)",'Relevé pâture'!$E25="> 70%", 'Relevé pâture'!$F25="Touffes", OR(V$8=9, V$8=10, V$8=11)), 160, AND('Relevé pâture'!$E$13="Herbomètre (cm)",'Relevé pâture'!$E25="< 70%", 'Relevé pâture'!$F25="Gazon", OR(V$8=3, V$8=4,V$8=5, V$8=6)), 200, AND('Relevé pâture'!$E$13="Herbomètre (cm)",'Relevé pâture'!$E25="< 70%", 'Relevé pâture'!$F25="Gazon", OR(V$8=6, V$8=7, V$8=8)), 240, AND('Relevé pâture'!$E$13="Herbomètre (cm)",'Relevé pâture'!$E25="< 70%", 'Relevé pâture'!$F25="Gazon", OR(V$8=9, V$8=10, V$8=11)), 180, AND('Relevé pâture'!$E$13="Herbomètre (cm)",'Relevé pâture'!$E25="< 70%", 'Relevé pâture'!$F25="Touffes", OR(V$8=3, V$8=4,V$8=5, V$8=6)), 160, AND('Relevé pâture'!$E$13="Herbomètre (cm)",'Relevé pâture'!$E25="< 70%", 'Relevé pâture'!$F25="Touffes", OR(V$8=6, V$8=7, V$8=8)), 200, AND('Relevé pâture'!$E$13="Herbomètre (cm)",'Relevé pâture'!$E25="< 70%", 'Relevé pâture'!$F25="Touffes", OR(V$8=9, V$8=10, V$8=11)), 140, AND('Relevé pâture'!$E$13="Double mètre (cm)",'Relevé pâture'!$E25="> 70%", 'Relevé pâture'!$F25="Gazon", OR(V$8=3, V$8=4,V$8=5, V$8=6)), 220*0.6, AND('Relevé pâture'!$E$13="Double mètre (cm)",'Relevé pâture'!$E25="> 70%", 'Relevé pâture'!$F25="Gazon", OR(V$8=6, V$8=7, V$8=8)), 260*0.6, AND('Relevé pâture'!$E$13="Double mètre (cm)",'Relevé pâture'!$E25="> 70%", 'Relevé pâture'!$F25="Gazon", OR(V$8=9, V$8=10, V$8=11)), 200*0.6, AND('Relevé pâture'!$E$13="Double mètre (cm)",'Relevé pâture'!$E25="> 70%", 'Relevé pâture'!$F25="Touffes", OR(V$8=3, V$8=4,V$8=5, V$8=6)), 180*0.6, AND('Relevé pâture'!$E$13="Double mètre (cm)",'Relevé pâture'!$E25="> 70%", 'Relevé pâture'!$F25="Touffes", OR(V$8=6, V$8=7, V$8=8)), 220*0.6, AND('Relevé pâture'!$E$13="Double mètre (cm)",'Relevé pâture'!$E25="> 70%", 'Relevé pâture'!$F25="Touffes", OR(V$8=9, V$8=10, V$8=11)), 160*0.6, AND('Relevé pâture'!$E$13="Double mètre (cm)",'Relevé pâture'!$E25="< 70%", 'Relevé pâture'!$F25="Gazon", OR(V$8=3, V$8=4,V$8=5, V$8=6)), 200*0.6, AND('Relevé pâture'!$E$13="Double mètre (cm)",'Relevé pâture'!$E25="< 70%", 'Relevé pâture'!$F25="Gazon", OR(V$8=6, V$8=7, V$8=8)), 240*0.6, AND('Relevé pâture'!$E$13="Double mètre (cm)",'Relevé pâture'!$E25="< 70%", 'Relevé pâture'!$F25="Gazon", OR(V$8=9, V$8=10, V$8=11)), 180*0.6, AND('Relevé pâture'!$E$13="Double mètre (cm)",'Relevé pâture'!$E25="< 70%", 'Relevé pâture'!$F25="Touffes", OR(V$8=3, V$8=4,V$8=5, V$8=6)), 160*0.6, AND('Relevé pâture'!$E$13="Double mètre (cm)",'Relevé pâture'!$E25="< 70%", 'Relevé pâture'!$F25="Touffes", OR(V$8=6, V$8=7, V$8=8)), 200*0.6, AND('Relevé pâture'!$E$13="Double mètre (cm)",'Relevé pâture'!$E25="< 70%", 'Relevé pâture'!$F25="Touffes", OR(V$8=9, V$8=10, V$8=11)), 140*0.6, AND('Relevé pâture'!$E$13="Herbomètre (clics)",'Relevé pâture'!$E25="> 70%", 'Relevé pâture'!$F25="Gazon", OR(V$8=3, V$8=4,V$8=5, V$8=6)), 220*0.5, AND('Relevé pâture'!$E$13="Herbomètre (clics)",'Relevé pâture'!$E25="> 70%", 'Relevé pâture'!$F25="Gazon", OR(V$8=6, V$8=7, V$8=8)), 260*0.5, AND('Relevé pâture'!$E$13="Herbomètre (clics)",'Relevé pâture'!$E25="> 70%", 'Relevé pâture'!$F25="Gazon", OR(V$8=9, V$8=10, V$8=11)), 200*0.5, AND('Relevé pâture'!$E$13="Herbomètre (clics)",'Relevé pâture'!$E25="> 70%", 'Relevé pâture'!$F25="Touffes", OR(V$8=3, V$8=4,V$8=5, V$8=6)), 180*0.5, AND('Relevé pâture'!$E$13="Herbomètre (clics)",'Relevé pâture'!$E25="> 70%", 'Relevé pâture'!$F25="Touffes", OR(V$8=6, V$8=7, V$8=8)), 220*0.5, AND('Relevé pâture'!$E$13="Herbomètre (clics)",'Relevé pâture'!$E25="> 70%", 'Relevé pâture'!$F25="Touffes", OR(V$8=9, V$8=10, V$8=11)), 160*0.5, AND('Relevé pâture'!$E$13="Herbomètre (clics)",'Relevé pâture'!$E25="< 70%", 'Relevé pâture'!$F25="Gazon", OR(V$8=3, V$8=4,V$8=5, V$8=6)), 200*0.5, AND('Relevé pâture'!$E$13="Herbomètre (clics)",'Relevé pâture'!$E25="< 70%", 'Relevé pâture'!$F25="Gazon", OR(V$8=6, V$8=7, V$8=8)), 240*0.5, AND('Relevé pâture'!$E$13="Herbomètre (clics)",'Relevé pâture'!$E25="< 70%", 'Relevé pâture'!$F25="Gazon", OR(V$8=9, V$8=10, V$8=11)), 180*0.5, AND('Relevé pâture'!$E$13="Herbomètre (clics)",'Relevé pâture'!$E25="< 70%", 'Relevé pâture'!$F25="Touffes", OR(V$8=3, V$8=4,V$8=5, V$8=6)), 160*0.5, AND('Relevé pâture'!$E$13="Herbomètre (clics)",'Relevé pâture'!$E25="< 70%", 'Relevé pâture'!$F25="Touffes", OR(V$8=6, V$8=7, V$8=8)), 200*0.5, AND('Relevé pâture'!$E$13="Herbomètre (clics)",'Relevé pâture'!$E25="< 70%", 'Relevé pâture'!$F25="Touffes", OR(V$8=9, V$8=10, V$8=11)), 140*0.5, TRUE," " ) ->  | X10: =IF(AND('Relevé pâture'!AH25="Rien", 'Relevé pâture'!AG25>'Relevé pâture'!AE25, ('Relevé pâture'!AG25-'Relevé pâture'!AE25)<>0), ('Relevé pâture'!AG25-'Relevé pâture'!AE25)/('Relevé pâture'!AG$23-'Relevé pâture'!AE$23)*Y10, "" ) ->  | Y10: =_xlfn.IFS( AND('Relevé pâture'!$E$13="Herbomètre (cm)",'Relevé pâture'!$E25="> 70%", 'Relevé pâture'!$F25="Gazon", OR(X$8=3, X$8=4,X$8=5, X$8=6)), 220, AND('Relevé pâture'!$E$13="Herbomètre (cm)",'Relevé pâture'!$E25="> 70%", 'Relevé pâture'!$F25="Gazon", OR(X$8=6, X$8=7, X$8=8)), 260, AND('Relevé pâture'!$E$13="Herbomètre (cm)",'Relevé pâture'!$E25="> 70%", 'Relevé pâture'!$F25="Gazon", OR(X$8=9, X$8=10, X$8=11)), 200, AND('Relevé pâture'!$E$13="Herbomètre (cm)",'Relevé pâture'!$E25="> 70%", 'Relevé pâture'!$F25="Touffes", OR(X$8=3, X$8=4,X$8=5, X$8=6)), 180, AND('Relevé pâture'!$E$13="Herbomètre (cm)",'Relevé pâture'!$E25="> 70%", 'Relevé pâture'!$F25="Touffes", OR(X$8=6, X$8=7, X$8=8)), 220, AND('Relevé pâture'!$E$13="Herbomètre (cm)",'Relevé pâture'!$E25="> 70%", 'Relevé pâture'!$F25="Touffes", OR(X$8=9, X$8=10, X$8=11)), 160, AND('Relevé pâture'!$E$13="Herbomètre (cm)",'Relevé pâture'!$E25="< 70%", 'Relevé pâture'!$F25="Gazon", OR(X$8=3, X$8=4,X$8=5, X$8=6)), 200, AND('Relevé pâture'!$E$13="Herbomètre (cm)",'Relevé pâture'!$E25="< 70%", 'Relevé pâture'!$F25="Gazon", OR(X$8=6, X$8=7, X$8=8)), 240, AND('Relevé pâture'!$E$13="Herbomètre (cm)",'Relevé pâture'!$E25="< 70%", 'Relevé pâture'!$F25="Gazon", OR(X$8=9, X$8=10, X$8=11)), 180, AND('Relevé pâture'!$E$13="Herbomètre (cm)",'Relevé pâture'!$E25="< 70%", 'Relevé pâture'!$F25="Touffes", OR(X$8=3, X$8=4,X$8=5, X$8=6)), 160, AND('Relevé pâture'!$E$13="Herbomètre (cm)",'Relevé pâture'!$E25="< 70%", 'Relevé pâture'!$F25="Touffes", OR(X$8=6, X$8=7, X$8=8)), 200, AND('Relevé pâture'!$E$13="Herbomètre (cm)",'Relevé pâture'!$E25="< 70%", 'Relevé pâture'!$F25="Touffes", OR(X$8=9, X$8=10, X$8=11)), 140, AND('Relevé pâture'!$E$13="Double mètre (cm)",'Relevé pâture'!$E25="> 70%", 'Relevé pâture'!$F25="Gazon", OR(X$8=3, X$8=4,X$8=5, X$8=6)), 220*0.6, AND('Relevé pâture'!$E$13="Double mètre (cm)",'Relevé pâture'!$E25="> 70%", 'Relevé pâture'!$F25="Gazon", OR(X$8=6, X$8=7, X$8=8)), 260*0.6, AND('Relevé pâture'!$E$13="Double mètre (cm)",'Relevé pâture'!$E25="> 70%", 'Relevé pâture'!$F25="Gazon", OR(X$8=9, X$8=10, X$8=11)), 200*0.6, AND('Relevé pâture'!$E$13="Double mètre (cm)",'Relevé pâture'!$E25="> 70%", 'Relevé pâture'!$F25="Touffes", OR(X$8=3, X$8=4,X$8=5, X$8=6)), 180*0.6, AND('Relevé pâture'!$E$13="Double mètre (cm)",'Relevé pâture'!$E25="> 70%", 'Relevé pâture'!$F25="Touffes", OR(X$8=6, X$8=7, X$8=8)), 220*0.6, AND('Relevé pâture'!$E$13="Double mètre (cm)",'Relevé pâture'!$E25="> 70%", 'Relevé pâture'!$F25="Touffes", OR(X$8=9, X$8=10, X$8=11)), 160*0.6, AND('Relevé pâture'!$E$13="Double mètre (cm)",'Relevé pâture'!$E25="< 70%", 'Relevé pâture'!$F25="Gazon", OR(X$8=3, X$8=4,X$8=5, X$8=6)), 200*0.6, AND('Relevé pâture'!$E$13="Double mètre (cm)",'Relevé pâture'!$E25="< 70%", 'Relevé pâture'!$F25="Gazon", OR(X$8=6, X$8=7, X$8=8)), 240*0.6, AND('Relevé pâture'!$E$13="Double mètre (cm)",'Relevé pâture'!$E25="< 70%", 'Relevé pâture'!$F25="Gazon", OR(X$8=9, X$8=10, X$8=11)), 180*0.6, AND('Relevé pâture'!$E$13="Double mètre (cm)",'Relevé pâture'!$E25="< 70%", 'Relevé pâture'!$F25="Touffes", OR(X$8=3, X$8=4,X$8=5, X$8=6)), 160*0.6, AND('Relevé pâture'!$E$13="Double mètre (cm)",'Relevé pâture'!$E25="< 70%", 'Relevé pâture'!$F25="Touffes", OR(X$8=6, X$8=7, X$8=8)), 200*0.6, AND('Relevé pâture'!$E$13="Double mètre (cm)",'Relevé pâture'!$E25="< 70%", 'Relevé pâture'!$F25="Touffes", OR(X$8=9, X$8=10, X$8=11)), 140*0.6, AND('Relevé pâture'!$E$13="Herbomètre (clics)",'Relevé pâture'!$E25="> 70%", 'Relevé pâture'!$F25="Gazon", OR(X$8=3, X$8=4,X$8=5, X$8=6)), 220*0.5, AND('Relevé pâture'!$E$13="Herbomètre (clics)",'Relevé pâture'!$E25="> 70%", 'Relevé pâture'!$F25="Gazon", OR(X$8=6, X$8=7, X$8=8)), 260*0.5, AND('Relevé pâture'!$E$13="Herbomètre (clics)",'Relevé pâture'!$E25="> 70%", 'Relevé pâture'!$F25="Gazon", OR(X$8=9, X$8=10, X$8=11)), 200*0.5, AND('Relevé pâture'!$E$13="Herbomètre (clics)",'Relevé pâture'!$E25="> 70%", 'Relevé pâture'!$F25="Touffes", OR(X$8=3, X$8=4,X$8=5, X$8=6)), 180*0.5, AND('Relevé pâture'!$E$13="Herbomètre (clics)",'Relevé pâture'!$E25="> 70%", 'Relevé pâture'!$F25="Touffes", OR(X$8=6, X$8=7, X$8=8)), 220*0.5, AND('Relevé pâture'!$E$13="Herbomètre (clics)",'Relevé pâture'!$E25="> 70%", 'Relevé pâture'!$F25="Touffes", OR(X$8=9, X$8=10, X$8=11)), 160*0.5, AND('Relevé pâture'!$E$13="Herbomètre (clics)",'Relevé pâture'!$E25="< 70%", 'Relevé pâture'!$F25="Gazon", OR(X$8=3, X$8=4,X$8=5, X$8=6)), 200*0.5, AND('Relevé pâture'!$E$13="Herbomètre (clics)",'Relevé pâture'!$E25="< 70%", 'Relevé pâture'!$F25="Gazon", OR(X$8=6, X$8=7, X$8=8)), 240*0.5, AND('Relevé pâture'!$E$13="Herbomètre (clics)",'Relevé pâture'!$E25="< 70%", 'Relevé pâture'!$F25="Gazon", OR(X$8=9, X$8=10, X$8=11)), 180*0.5, AND('Relevé pâture'!$E$13="Herbomètre (clics)",'Relevé pâture'!$E25="< 70%", 'Relevé pâture'!$F25="Touffes", OR(X$8=3, X$8=4,X$8=5, X$8=6)), 160*0.5, AND('Relevé pâture'!$E$13="Herbomètre (clics)",'Relevé pâture'!$E25="< 70%", 'Relevé pâture'!$F25="Touffes", OR(X$8=6, X$8=7, X$8=8)), 200*0.5, AND('Relevé pâture'!$E$13="Herbomètre (clics)",'Relevé pâture'!$E25="< 70%", 'Relevé pâture'!$F25="Touffes", OR(X$8=9, X$8=10, X$8=11)), 140*0.5, TRUE," " ) ->  | Z10: =IF(AND('Relevé pâture'!AJ25="Rien", 'Relevé pâture'!AI25>'Relevé pâture'!AG25, ('Relevé pâture'!AI25-'Relevé pâture'!AG25)<>0), ('Relevé pâture'!AI25-'Relevé pâture'!AG25)/('Relevé pâture'!AI$23-'Relevé pâture'!AG$23)*AA10, "" ) ->  | AA10: =_xlfn.IFS( AND('Relevé pâture'!$E$13="Herbomètre (cm)",'Relevé pâture'!$E25="> 70%", 'Relevé pâture'!$F25="Gazon", OR(Z$8=3, Z$8=4,Z$8=5, Z$8=6)), 220, AND('Relevé pâture'!$E$13="Herbomètre (cm)",'Relevé pâture'!$E25="> 70%", 'Relevé pâture'!$F25="Gazon", OR(Z$8=6, Z$8=7, Z$8=8)), 260, AND('Relevé pâture'!$E$13="Herbomètre (cm)",'Relevé pâture'!$E25="> 70%", 'Relevé pâture'!$F25="Gazon", OR(Z$8=9, Z$8=10, Z$8=11)), 200, AND('Relevé pâture'!$E$13="Herbomètre (cm)",'Relevé pâture'!$E25="> 70%", 'Relevé pâture'!$F25="Touffes", OR(Z$8=3, Z$8=4,Z$8=5, Z$8=6)), 180, AND('Relevé pâture'!$E$13="Herbomètre (cm)",'Relevé pâture'!$E25="> 70%", 'Relevé pâture'!$F25="Touffes", OR(Z$8=6, Z$8=7, Z$8=8)), 220, AND('Relevé pâture'!$E$13="Herbomètre (cm)",'Relevé pâture'!$E25="> 70%", 'Relevé pâture'!$F25="Touffes", OR(Z$8=9, Z$8=10, Z$8=11)), 160, AND('Relevé pâture'!$E$13="Herbomètre (cm)",'Relevé pâture'!$E25="< 70%", 'Relevé pâture'!$F25="Gazon", OR(Z$8=3, Z$8=4,Z$8=5, Z$8=6)), 200, AND('Relevé pâture'!$E$13="Herbomètre (cm)",'Relevé pâture'!$E25="< 70%", 'Relevé pâture'!$F25="Gazon", OR(Z$8=6, Z$8=7, Z$8=8)), 240, AND('Relevé pâture'!$E$13="Herbomètre (cm)",'Relevé pâture'!$E25="< 70%", 'Relevé pâture'!$F25="Gazon", OR(Z$8=9, Z$8=10, Z$8=11)), 180, AND('Relevé pâture'!$E$13="Herbomètre (cm)",'Relevé pâture'!$E25="< 70%", 'Relevé pâture'!$F25="Touffes", OR(Z$8=3, Z$8=4,Z$8=5, Z$8=6)), 160, AND('Relevé pâture'!$E$13="Herbomètre (cm)",'Relevé pâture'!$E25="< 70%", 'Relevé pâture'!$F25="Touffes", OR(Z$8=6, Z$8=7, Z$8=8)), 200, AND('Relevé pâture'!$E$13="Herbomètre (cm)",'Relevé pâture'!$E25="< 70%", 'Relevé pâture'!$F25="Touffes", OR(Z$8=9, Z$8=10, Z$8=11)), 140, AND('Relevé pâture'!$E$13="Double mètre (cm)",'Relevé pâture'!$E25="> 70%", 'Relevé pâture'!$F25="Gazon", OR(Z$8=3, Z$8=4,Z$8=5, Z$8=6)), 220*0.6, AND('Relevé pâture'!$E$13="Double mètre (cm)",'Relevé pâture'!$E25="> 70%", 'Relevé pâture'!$F25="Gazon", OR(Z$8=6, Z$8=7, Z$8=8)), 260*0.6, AND('Relevé pâture'!$E$13="Double mètre (cm)",'Relevé pâture'!$E25="> 70%", 'Relevé pâture'!$F25="Gazon", OR(Z$8=9, Z$8=10, Z$8=11)), 200*0.6, AND('Relevé pâture'!$E$13="Double mètre (cm)",'Relevé pâture'!$E25="> 70%", 'Relevé pâture'!$F25="Touffes", OR(Z$8=3, Z$8=4,Z$8=5, Z$8=6)), 180*0.6, AND('Relevé pâture'!$E$13="Double mètre (cm)",'Relevé pâture'!$E25="> 70%", 'Relevé pâture'!$F25="Touffes", OR(Z$8=6, Z$8=7, Z$8=8)), 220*0.6, AND('Relevé pâture'!$E$13="Double mètre (cm)",'Relevé pâture'!$E25="> 70%", 'Relevé pâture'!$F25="Touffes", OR(Z$8=9, Z$8=10, Z$8=11)), 160*0.6, AND('Relevé pâture'!$E$13="Double mètre (cm)",'Relevé pâture'!$E25="< 70%", 'Relevé pâture'!$F25="Gazon", OR(Z$8=3, Z$8=4,Z$8=5, Z$8=6)), 200*0.6, AND('Relevé pâture'!$E$13="Double mètre (cm)",'Relevé pâture'!$E25="< 70%", 'Relevé pâture'!$F25="Gazon", OR(Z$8=6, Z$8=7, Z$8=8)), 240*0.6, AND('Relevé pâture'!$E$13="Double mètre (cm)",'Relevé pâture'!$E25="< 70%", 'Relevé pâture'!$F25="Gazon", OR(Z$8=9, Z$8=10, Z$8=11)), 180*0.6, AND('Relevé pâture'!$E$13="Double mètre (cm)",'Relevé pâture'!$E25="< 70%", 'Relevé pâture'!$F25="Touffes", OR(Z$8=3, Z$8=4,Z$8=5, Z$8=6)), 160*0.6, AND('Relevé pâture'!$E$13="Double mètre (cm)",'Relevé pâture'!$E25="< 70%", 'Relevé pâture'!$F25="Touffes", OR(Z$8=6, Z$8=7, Z$8=8)), 200*0.6, AND('Relevé pâture'!$E$13="Double mètre (cm)",'Relevé pâture'!$E25="< 70%", 'Relevé pâture'!$F25="Touffes", OR(Z$8=9, Z$8=10, Z$8=11)), 140*0.6, AND('Relevé pâture'!$E$13="Herbomètre (clics)",'Relevé pâture'!$E25="> 70%", 'Relevé pâture'!$F25="Gazon", OR(Z$8=3, Z$8=4,Z$8=5, Z$8=6)), 220*0.5, AND('Relevé pâture'!$E$13="Herbomètre (clics)",'Relevé pâture'!$E25="> 70%", 'Relevé pâture'!$F25="Gazon", OR(Z$8=6, Z$8=7, Z$8=8)), 260*0.5, AND('Relevé pâture'!$E$13="Herbomètre (clics)",'Relevé pâture'!$E25="> 70%", 'Relevé pâture'!$F25="Gazon", OR(Z$8=9, Z$8=10, Z$8=11)), 200*0.5, AND('Relevé pâture'!$E$13="Herbomètre (clics)",'Relevé pâture'!$E25="> 70%", 'Relevé pâture'!$F25="Touffes", OR(Z$8=3, Z$8=4,Z$8=5, Z$8=6)), 180*0.5, AND('Relevé pâture'!$E$13="Herbomètre (clics)",'Relevé pâture'!$E25="> 70%", 'Relevé pâture'!$F25="Touffes", OR(Z$8=6, Z$8=7, Z$8=8)), 220*0.5, AND('Relevé pâture'!$E$13="Herbomètre (clics)",'Relevé pâture'!$E25="> 70%", 'Relevé pâture'!$F25="Touffes", OR(Z$8=9, Z$8=10, Z$8=11)), 160*0.5, AND('Relevé pâture'!$E$13="Herbomètre (clics)",'Relevé pâture'!$E25="< 70%", 'Relevé pâture'!$F25="Gazon", OR(Z$8=3, Z$8=4,Z$8=5, Z$8=6)), 200*0.5, AND('Relevé pâture'!$E$13="Herbomètre (clics)",'Relevé pâture'!$E25="< 70%", 'Relevé pâture'!$F25="Gazon", OR(Z$8=6, Z$8=7, Z$8=8)), 240*0.5, AND('Relevé pâture'!$E$13="Herbomètre (clics)",'Relevé pâture'!$E25="< 70%", 'Relevé pâture'!$F25="Gazon", OR(Z$8=9, Z$8=10, Z$8=11)), 180*0.5, AND('Relevé pâture'!$E$13="Herbomètre (clics)",'Relevé pâture'!$E25="< 70%", 'Relevé pâture'!$F25="Touffes", OR(Z$8=3, Z$8=4,Z$8=5, Z$8=6)), 160*0.5, AND('Relevé pâture'!$E$13="Herbomètre (clics)",'Relevé pâture'!$E25="< 70%", 'Relevé pâture'!$F25="Touffes", OR(Z$8=6, Z$8=7, Z$8=8)), 200*0.5, AND('Relevé pâture'!$E$13="Herbomètre (clics)",'Relevé pâture'!$E25="< 70%", 'Relevé pâture'!$F25="Touffes", OR(Z$8=9, Z$8=10, Z$8=11)), 140*0.5, TRUE," " ) ->  | AB10: =IF(AND('Relevé pâture'!AL25="Rien", 'Relevé pâture'!AK25>'Relevé pâture'!AI25, ('Relevé pâture'!AK25-'Relevé pâture'!AI25)<>0), ('Relevé pâture'!AK25-'Relevé pâture'!AI25)/('Relevé pâture'!AK$23-'Relevé pâture'!AI$23)*AC10, "" ) ->  | AC10: =_xlfn.IFS( AND('Relevé pâture'!$E$13="Herbomètre (cm)",'Relevé pâture'!$E25="> 70%", 'Relevé pâture'!$F25="Gazon", OR(AB$8=3, AB$8=4,AB$8=5, AB$8=6)), 220, AND('Relevé pâture'!$E$13="Herbomètre (cm)",'Relevé pâture'!$E25="> 70%", 'Relevé pâture'!$F25="Gazon", OR(AB$8=6, AB$8=7, AB$8=8)), 260, AND('Relevé pâture'!$E$13="Herbomètre (cm)",'Relevé pâture'!$E25="> 70%", 'Relevé pâture'!$F25="Gazon", OR(AB$8=9, AB$8=10, AB$8=11)), 200, AND('Relevé pâture'!$E$13="Herbomètre (cm)",'Relevé pâture'!$E25="> 70%", 'Relevé pâture'!$F25="Touffes", OR(AB$8=3, AB$8=4,AB$8=5, AB$8=6)), 180, AND('Relevé pâture'!$E$13="Herbomètre (cm)",'Relevé pâture'!$E25="> 70%", 'Relevé pâture'!$F25="Touffes", OR(AB$8=6, AB$8=7, AB$8=8)), 220, AND('Relevé pâture'!$E$13="Herbomètre (cm)",'Relevé pâture'!$E25="> 70%", 'Relevé pâture'!$F25="Touffes", OR(AB$8=9, AB$8=10, AB$8=11)), 160, AND('Relevé pâture'!$E$13="Herbomètre (cm)",'Relevé pâture'!$E25="< 70%", 'Relevé pâture'!$F25="Gazon", OR(AB$8=3, AB$8=4,AB$8=5, AB$8=6)), 200, AND('Relevé pâture'!$E$13="Herbomètre (cm)",'Relevé pâture'!$E25="< 70%", 'Relevé pâture'!$F25="Gazon", OR(AB$8=6, AB$8=7, AB$8=8)), 240, AND('Relevé pâture'!$E$13="Herbomètre (cm)",'Relevé pâture'!$E25="< 70%", 'Relevé pâture'!$F25="Gazon", OR(AB$8=9, AB$8=10, AB$8=11)), 180, AND('Relevé pâture'!$E$13="Herbomètre (cm)",'Relevé pâture'!$E25="< 70%", 'Relevé pâture'!$F25="Touffes", OR(AB$8=3, AB$8=4,AB$8=5, AB$8=6)), 160, AND('Relevé pâture'!$E$13="Herbomètre (cm)",'Relevé pâture'!$E25="< 70%", 'Relevé pâture'!$F25="Touffes", OR(AB$8=6, AB$8=7, AB$8=8)), 200, AND('Relevé pâture'!$E$13="Herbomètre (cm)",'Relevé pâture'!$E25="< 70%", 'Relevé pâture'!$F25="Touffes", OR(AB$8=9, AB$8=10, AB$8=11)), 140, AND('Relevé pâture'!$E$13="Double mètre (cm)",'Relevé pâture'!$E25="> 70%", 'Relevé pâture'!$F25="Gazon", OR(AB$8=3, AB$8=4,AB$8=5, AB$8=6)), 220*0.6, AND('Relevé pâture'!$E$13="Double mètre (cm)",'Relevé pâture'!$E25="> 70%", 'Relevé pâture'!$F25="Gazon", OR(AB$8=6, AB$8=7, AB$8=8)), 260*0.6, AND('Relevé pâture'!$E$13="Double mètre (cm)",'Relevé pâture'!$E25="> 70%", 'Relevé pâture'!$F25="Gazon", OR(AB$8=9, AB$8=10, AB$8=11)), 200*0.6, AND('Relevé pâture'!$E$13="Double mètre (cm)",'Relevé pâture'!$E25="> 70%", 'Relevé pâture'!$F25="Touffes", OR(AB$8=3, AB$8=4,AB$8=5, AB$8=6)), 180*0.6, AND('Relevé pâture'!$E$13="Double mètre (cm)",'Relevé pâture'!$E25="> 70%", 'Relevé pâture'!$F25="Touffes", OR(AB$8=6, AB$8=7, AB$8=8)), 220*0.6, AND('Relevé pâture'!$E$13="Double mètre (cm)",'Relevé pâture'!$E25="> 70%", 'Relevé pâture'!$F25="Touffes", OR(AB$8=9, AB$8=10, AB$8=11)), 160*0.6, AND('Relevé pâture'!$E$13="Double mètre (cm)",'Relevé pâture'!$E25="< 70%", 'Relevé pâture'!$F25="Gazon", OR(AB$8=3, AB$8=4,AB$8=5, AB$8=6)), 200*0.6, AND('Relevé pâture'!$E$13="Double mètre (cm)",'Relevé pâture'!$E25="< 70%", 'Relevé pâture'!$F25="Gazon", OR(AB$8=6, AB$8=7, AB$8=8)), 240*0.6, AND('Relevé pâture'!$E$13="Double mètre (cm)",'Relevé pâture'!$E25="< 70%", 'Relevé pâture'!$F25="Gazon", OR(AB$8=9, AB$8=10, AB$8=11)), 180*0.6, AND('Relevé pâture'!$E$13="Double mètre (cm)",'Relevé pâture'!$E25="< 70%", 'Relevé pâture'!$F25="Touffes", OR(AB$8=3, AB$8=4,AB$8=5, AB$8=6)), 160*0.6, AND('Relevé pâture'!$E$13="Double mètre (cm)",'Relevé pâture'!$E25="< 70%", 'Relevé pâture'!$F25="Touffes", OR(AB$8=6, AB$8=7, AB$8=8)), 200*0.6, AND('Relevé pâture'!$E$13="Double mètre (cm)",'Relevé pâture'!$E25="< 70%", 'Relevé pâture'!$F25="Touffes", OR(AB$8=9, AB$8=10, AB$8=11)), 140*0.6, AND('Relevé pâture'!$E$13="Herbomètre (clics)",'Relevé pâture'!$E25="> 70%", 'Relevé pâture'!$F25="Gazon", OR(AB$8=3, AB$8=4,AB$8=5, AB$8=6)), 220*0.5, AND('Relevé pâture'!$E$13="Herbomètre (clics)",'Relevé pâture'!$E25="> 70%", 'Relevé pâture'!$F25="Gazon", OR(AB$8=6, AB$8=7, AB$8=8)), 260*0.5, AND('Relevé pâture'!$E$13="Herbomètre (clics)",'Relevé pâture'!$E25="> 70%", 'Relevé pâture'!$F25="Gazon", OR(AB$8=9, AB$8=10, AB$8=11)), 200*0.5, AND('Relevé pâture'!$E$13="Herbomètre (clics)",'Relevé pâture'!$E25="> 70%", 'Relevé pâture'!$F25="Touffes", OR(AB$8=3, AB$8=4,AB$8=5, AB$8=6)), 180*0.5, AND('Relevé pâture'!$E$13="Herbomètre (clics)",'Relevé pâture'!$E25="> 70%", 'Relevé pâture'!$F25="Touffes", OR(AB$8=6, AB$8=7, AB$8=8)), 220*0.5, AND('Relevé pâture'!$E$13="Herbomètre (clics)",'Relevé pâture'!$E25="> 70%", 'Relevé pâture'!$F25="Touffes", OR(AB$8=9, AB$8=10, AB$8=11)), 160*0.5, AND('Relevé pâture'!$E$13="Herbomètre (clics)",'Relevé pâture'!$E25="< 70%", 'Relevé pâture'!$F25="Gazon", OR(AB$8=3, AB$8=4,AB$8=5, AB$8=6)), 200*0.5, AND('Relevé pâture'!$E$13="Herbomètre (clics)",'Relevé pâture'!$E25="< 70%", 'Relevé pâture'!$F25="Gazon", OR(AB$8=6, AB$8=7, AB$8=8)), 240*0.5, AND('Relevé pâture'!$E$13="Herbomètre (clics)",'Relevé pâture'!$E25="< 70%", 'Relevé pâture'!$F25="Gazon", OR(AB$8=9, AB$8=10, AB$8=11)), 180*0.5, AND('Relevé pâture'!$E$13="Herbomètre (clics)",'Relevé pâture'!$E25="< 70%", 'Relevé pâture'!$F25="Touffes", OR(AB$8=3, AB$8=4,AB$8=5, AB$8=6)), 160*0.5, AND('Relevé pâture'!$E$13="Herbomètre (clics)",'Relevé pâture'!$E25="< 70%", 'Relevé pâture'!$F25="Touffes", OR(AB$8=6, AB$8=7, AB$8=8)), 200*0.5, AND('Relevé pâture'!$E$13="Herbomètre (clics)",'Relevé pâture'!$E25="< 70%", 'Relevé pâture'!$F25="Touffes", OR(AB$8=9, AB$8=10, AB$8=11)), 140*0.5, TRUE," " ) ->  | AD10: =IF(AND('Relevé pâture'!AN25="Rien", 'Relevé pâture'!AM25>'Relevé pâture'!AK25, ('Relevé pâture'!AM25-'Relevé pâture'!AK25)<>0), ('Relevé pâture'!AM25-'Relevé pâture'!AK25)/('Relevé pâture'!AM$23-'Relevé pâture'!AK$23)*AE10, "" ) ->  | AE10: =_xlfn.IFS( AND('Relevé pâture'!$E$13="Herbomètre (cm)",'Relevé pâture'!$E25="> 70%", 'Relevé pâture'!$F25="Gazon", OR(AD$8=3, AD$8=4,AD$8=5, AD$8=6)), 220, AND('Relevé pâture'!$E$13="Herbomètre (cm)",'Relevé pâture'!$E25="> 70%", 'Relevé pâture'!$F25="Gazon", OR(AD$8=6, AD$8=7, AD$8=8)), 260, AND('Relevé pâture'!$E$13="Herbomètre (cm)",'Relevé pâture'!$E25="> 70%", 'Relevé pâture'!$F25="Gazon", OR(AD$8=9, AD$8=10, AD$8=11)), 200, AND('Relevé pâture'!$E$13="Herbomètre (cm)",'Relevé pâture'!$E25="> 70%", 'Relevé pâture'!$F25="Touffes", OR(AD$8=3, AD$8=4,AD$8=5, AD$8=6)), 180, AND('Relevé pâture'!$E$13="Herbomètre (cm)",'Relevé pâture'!$E25="> 70%", 'Relevé pâture'!$F25="Touffes", OR(AD$8=6, AD$8=7, AD$8=8)), 220, AND('Relevé pâture'!$E$13="Herbomètre (cm)",'Relevé pâture'!$E25="> 70%", 'Relevé pâture'!$F25="Touffes", OR(AD$8=9, AD$8=10, AD$8=11)), 160, AND('Relevé pâture'!$E$13="Herbomètre (cm)",'Relevé pâture'!$E25="< 70%", 'Relevé pâture'!$F25="Gazon", OR(AD$8=3, AD$8=4,AD$8=5, AD$8=6)), 200, AND('Relevé pâture'!$E$13="Herbomètre (cm)",'Relevé pâture'!$E25="< 70%", 'Relevé pâture'!$F25="Gazon", OR(AD$8=6, AD$8=7, AD$8=8)), 240, AND('Relevé pâture'!$E$13="Herbomètre (cm)",'Relevé pâture'!$E25="< 70%", 'Relevé pâture'!$F25="Gazon", OR(AD$8=9, AD$8=10, AD$8=11)), 180, AND('Relevé pâture'!$E$13="Herbomètre (cm)",'Relevé pâture'!$E25="< 70%", 'Relevé pâture'!$F25="Touffes", OR(AD$8=3, AD$8=4,AD$8=5, AD$8=6)), 160, AND('Relevé pâture'!$E$13="Herbomètre (cm)",'Relevé pâture'!$E25="< 70%", 'Relevé pâture'!$F25="Touffes", OR(AD$8=6, AD$8=7, AD$8=8)), 200, AND('Relevé pâture'!$E$13="Herbomètre (cm)",'Relevé pâture'!$E25="< 70%", 'Relevé pâture'!$F25="Touffes", OR(AD$8=9, AD$8=10, AD$8=11)), 140, AND('Relevé pâture'!$E$13="Double mètre (cm)",'Relevé pâture'!$E25="> 70%", 'Relevé pâture'!$F25="Gazon", OR(AD$8=3, AD$8=4,AD$8=5, AD$8=6)), 220*0.6, AND('Relevé pâture'!$E$13="Double mètre (cm)",'Relevé pâture'!$E25="> 70%", 'Relevé pâture'!$F25="Gazon", OR(AD$8=6, AD$8=7, AD$8=8)), 260*0.6, AND('Relevé pâture'!$E$13="Double mètre (cm)",'Relevé pâture'!$E25="> 70%", 'Relevé pâture'!$F25="Gazon", OR(AD$8=9, AD$8=10, AD$8=11)), 200*0.6, AND('Relevé pâture'!$E$13="Double mètre (cm)",'Relevé pâture'!$E25="> 70%", 'Relevé pâture'!$F25="Touffes", OR(AD$8=3, AD$8=4,AD$8=5, AD$8=6)), 180*0.6, AND('Relevé pâture'!$E$13="Double mètre (cm)",'Relevé pâture'!$E25="> 70%", 'Relevé pâture'!$F25="Touffes", OR(AD$8=6, AD$8=7, AD$8=8)), 220*0.6, AND('Relevé pâture'!$E$13="Double mètre (cm)",'Relevé pâture'!$E25="> 70%", 'Relevé pâture'!$F25="Touffes", OR(AD$8=9, AD$8=10, AD$8=11)), 160*0.6, AND('Relevé pâture'!$E$13="Double mètre (cm)",'Relevé pâture'!$E25="< 70%", 'Relevé pâture'!$F25="Gazon", OR(AD$8=3, AD$8=4,AD$8=5, AD$8=6)), 200*0.6, AND('Relevé pâture'!$E$13="Double mètre (cm)",'Relevé pâture'!$E25="< 70%", 'Relevé pâture'!$F25="Gazon", OR(AD$8=6, AD$8=7, AD$8=8)), 240*0.6, AND('Relevé pâture'!$E$13="Double mètre (cm)",'Relevé pâture'!$E25="< 70%", 'Relevé pâture'!$F25="Gazon", OR(AD$8=9, AD$8=10, AD$8=11)), 180*0.6, AND('Relevé pâture'!$E$13="Double mètre (cm)",'Relevé pâture'!$E25="< 70%", 'Relevé pâture'!$F25="Touffes", OR(AD$8=3, AD$8=4,AD$8=5, AD$8=6)), 160*0.6, AND('Relevé pâture'!$E$13="Double mètre (cm)",'Relevé pâture'!$E25="< 70%", 'Relevé pâture'!$F25="Touffes", OR(AD$8=6, AD$8=7, AD$8=8)), 200*0.6, AND('Relevé pâture'!$E$13="Double mètre (cm)",'Relevé pâture'!$E25="< 70%", 'Relevé pâture'!$F25="Touffes", OR(AD$8=9, AD$8=10, AD$8=11)), 140*0.6, AND('Relevé pâture'!$E$13="Herbomètre (clics)",'Relevé pâture'!$E25="> 70%", 'Relevé pâture'!$F25="Gazon", OR(AD$8=3, AD$8=4,AD$8=5, AD$8=6)), 220*0.5, AND('Relevé pâture'!$E$13="Herbomètre (clics)",'Relevé pâture'!$E25="> 70%", 'Relevé pâture'!$F25="Gazon", OR(AD$8=6, AD$8=7, AD$8=8)), 260*0.5, AND('Relevé pâture'!$E$13="Herbomètre (clics)",'Relevé pâture'!$E25="> 70%", 'Relevé pâture'!$F25="Gazon", OR(AD$8=9, AD$8=10, AD$8=11)), 200*0.5, AND('Relevé pâture'!$E$13="Herbomètre (clics)",'Relevé pâture'!$E25="> 70%", 'Relevé pâture'!$F25="Touffes", OR(AD$8=3, AD$8=4,AD$8=5, AD$8=6)), 180*0.5, AND('Relevé pâture'!$E$13="Herbomètre (clics)",'Relevé pâture'!$E25="> 70%", 'Relevé pâture'!$F25="Touffes", OR(AD$8=6, AD$8=7, AD$8=8)), 220*0.5, AND('Relevé pâture'!$E$13="Herbomètre (clics)",'Relevé pâture'!$E25="> 70%", 'Relevé pâture'!$F25="Touffes", OR(AD$8=9, AD$8=10, AD$8=11)), 160*0.5, AND('Relevé pâture'!$E$13="Herbomètre (clics)",'Relevé pâture'!$E25="< 70%", 'Relevé pâture'!$F25="Gazon", OR(AD$8=3, AD$8=4,AD$8=5, AD$8=6)), 200*0.5, AND('Relevé pâture'!$E$13="Herbomètre (clics)",'Relevé pâture'!$E25="< 70%", 'Relevé pâture'!$F25="Gazon", OR(AD$8=6, AD$8=7, AD$8=8)), 240*0.5, AND('Relevé pâture'!$E$13="Herbomètre (clics)",'Relevé pâture'!$E25="< 70%", 'Relevé pâture'!$F25="Gazon", OR(AD$8=9, AD$8=10, AD$8=11)), 180*0.5, AND('Relevé pâture'!$E$13="Herbomètre (clics)",'Relevé pâture'!$E25="< 70%", 'Relevé pâture'!$F25="Touffes", OR(AD$8=3, AD$8=4,AD$8=5, AD$8=6)), 160*0.5, AND('Relevé pâture'!$E$13="Herbomètre (clics)",'Relevé pâture'!$E25="< 70%", 'Relevé pâture'!$F25="Touffes", OR(AD$8=6, AD$8=7, AD$8=8)), 200*0.5, AND('Relevé pâture'!$E$13="Herbomètre (clics)",'Relevé pâture'!$E25="< 70%", 'Relevé pâture'!$F25="Touffes", OR(AD$8=9, AD$8=10, AD$8=11)), 140*0.5, TRUE," " ) ->  | AF10: =IF(AND('Relevé pâture'!AP25="Rien", 'Relevé pâture'!AO25>'Relevé pâture'!AM25, ('Relevé pâture'!AO25-'Relevé pâture'!AM25)<>0), ('Relevé pâture'!AO25-'Relevé pâture'!AM25)/('Relevé pâture'!AO$23-'Relevé pâture'!AM$23)*AG10, "" ) ->  | AG10: =_xlfn.IFS( AND('Relevé pâture'!$E$13="Herbomètre (cm)",'Relevé pâture'!$E25="> 70%", 'Relevé pâture'!$F25="Gazon", OR(AF$8=3, AF$8=4,AF$8=5, AF$8=6)), 220, AND('Relevé pâture'!$E$13="Herbomètre (cm)",'Relevé pâture'!$E25="> 70%", 'Relevé pâture'!$F25="Gazon", OR(AF$8=6, AF$8=7, AF$8=8)), 260, AND('Relevé pâture'!$E$13="Herbomètre (cm)",'Relevé pâture'!$E25="> 70%", 'Relevé pâture'!$F25="Gazon", OR(AF$8=9, AF$8=10, AF$8=11)), 200, AND('Relevé pâture'!$E$13="Herbomètre (cm)",'Relevé pâture'!$E25="> 70%", 'Relevé pâture'!$F25="Touffes", OR(AF$8=3, AF$8=4,AF$8=5, AF$8=6)), 180, AND('Relevé pâture'!$E$13="Herbomètre (cm)",'Relevé pâture'!$E25="> 70%", 'Relevé pâture'!$F25="Touffes", OR(AF$8=6, AF$8=7, AF$8=8)), 220, AND('Relevé pâture'!$E$13="Herbomètre (cm)",'Relevé pâture'!$E25="> 70%", 'Relevé pâture'!$F25="Touffes", OR(AF$8=9, AF$8=10, AF$8=11)), 160, AND('Relevé pâture'!$E$13="Herbomètre (cm)",'Relevé pâture'!$E25="< 70%", 'Relevé pâture'!$F25="Gazon", OR(AF$8=3, AF$8=4,AF$8=5, AF$8=6)), 200, AND('Relevé pâture'!$E$13="Herbomètre (cm)",'Relevé pâture'!$E25="< 70%", 'Relevé pâture'!$F25="Gazon", OR(AF$8=6, AF$8=7, AF$8=8)), 240, AND('Relevé pâture'!$E$13="Herbomètre (cm)",'Relevé pâture'!$E25="< 70%", 'Relevé pâture'!$F25="Gazon", OR(AF$8=9, AF$8=10, AF$8=11)), 180, AND('Relevé pâture'!$E$13="Herbomètre (cm)",'Relevé pâture'!$E25="< 70%", 'Relevé pâture'!$F25="Touffes", OR(AF$8=3, AF$8=4,AF$8=5, AF$8=6)), 160, AND('Relevé pâture'!$E$13="Herbomètre (cm)",'Relevé pâture'!$E25="< 70%", 'Relevé pâture'!$F25="Touffes", OR(AF$8=6, AF$8=7, AF$8=8)), 200, AND('Relevé pâture'!$E$13="Herbomètre (cm)",'Relevé pâture'!$E25="< 70%", 'Relevé pâture'!$F25="Touffes", OR(AF$8=9, AF$8=10, AF$8=11)), 140, AND('Relevé pâture'!$E$13="Double mètre (cm)",'Relevé pâture'!$E25="> 70%", 'Relevé pâture'!$F25="Gazon", OR(AF$8=3, AF$8=4,AF$8=5, AF$8=6)), 220*0.6, AND('Relevé pâture'!$E$13="Double mètre (cm)",'Relevé pâture'!$E25="> 70%", 'Relevé pâture'!$F25="Gazon", OR(AF$8=6, AF$8=7, AF$8=8)), 260*0.6, AND('Relevé pâture'!$E$13="Double mètre (cm)",'Relevé pâture'!$E25="> 70%", 'Relevé pâture'!$F25="Gazon", OR(AF$8=9, AF$8=10, AF$8=11)), 200*0.6, AND('Relevé pâture'!$E$13="Double mètre (cm)",'Relevé pâture'!$E25="> 70%", 'Relevé pâture'!$F25="Touffes", OR(AF$8=3, AF$8=4,AF$8=5, AF$8=6)), 180*0.6, AND('Relevé pâture'!$E$13="Double mètre (cm)",'Relevé pâture'!$E25="> 70%", 'Relevé pâture'!$F25="Touffes", OR(AF$8=6, AF$8=7, AF$8=8)), 220*0.6, AND('Relevé pâture'!$E$13="Double mètre (cm)",'Relevé pâture'!$E25="> 70%", 'Relevé pâture'!$F25="Touffes", OR(AF$8=9, AF$8=10, AF$8=11)), 160*0.6, AND('Relevé pâture'!$E$13="Double mètre (cm)",'Relevé pâture'!$E25="< 70%", 'Relevé pâture'!$F25="Gazon", OR(AF$8=3, AF$8=4,AF$8=5, AF$8=6)), 200*0.6, AND('Relevé pâture'!$E$13="Double mètre (cm)",'Relevé pâture'!$E25="< 70%", 'Relevé pâture'!$F25="Gazon", OR(AF$8=6, AF$8=7, AF$8=8)), 240*0.6, AND('Relevé pâture'!$E$13="Double mètre (cm)",'Relevé pâture'!$E25="< 70%", 'Relevé pâture'!$F25="Gazon", OR(AF$8=9, AF$8=10, AF$8=11)), 180*0.6, AND('Relevé pâture'!$E$13="Double mètre (cm)",'Relevé pâture'!$E25="< 70%", 'Relevé pâture'!$F25="Touffes", OR(AF$8=3, AF$8=4,AF$8=5, AF$8=6)), 160*0.6, AND('Relevé pâture'!$E$13="Double mètre (cm)",'Relevé pâture'!$E25="< 70%", 'Relevé pâture'!$F25="Touffes", OR(AF$8=6, AF$8=7, AF$8=8)), 200*0.6, AND('Relevé pâture'!$E$13="Double mètre (cm)",'Relevé pâture'!$E25="< 70%", 'Relevé pâture'!$F25="Touffes", OR(AF$8=9, AF$8=10, AF$8=11)), 140*0.6, AND('Relevé pâture'!$E$13="Herbomètre (clics)",'Relevé pâture'!$E25="> 70%", 'Relevé pâture'!$F25="Gazon", OR(AF$8=3, AF$8=4,AF$8=5, AF$8=6)), 220*0.5, AND('Relevé pâture'!$E$13="Herbomètre (clics)",'Relevé pâture'!$E25="> 70%", 'Relevé pâture'!$F25="Gazon", OR(AF$8=6, AF$8=7, AF$8=8)), 260*0.5, AND('Relevé pâture'!$E$13="Herbomètre (clics)",'Relevé pâture'!$E25="> 70%", 'Relevé pâture'!$F25="Gazon", OR(AF$8=9, AF$8=10, AF$8=11)), 200*0.5, AND('Relevé pâture'!$E$13="Herbomètre (clics)",'Relevé pâture'!$E25="> 70%", 'Relevé pâture'!$F25="Touffes", OR(AF$8=3, AF$8=4,AF$8=5, AF$8=6)), 180*0.5, AND('Relevé pâture'!$E$13="Herbomètre (clics)",'Relevé pâture'!$E25="> 70%", 'Relevé pâture'!$F25="Touffes", OR(AF$8=6, AF$8=7, AF$8=8)), 220*0.5, AND('Relevé pâture'!$E$13="Herbomètre (clics)",'Relevé pâture'!$E25="> 70%", 'Relevé pâture'!$F25="Touffes", OR(AF$8=9, AF$8=10, AF$8=11)), 160*0.5, AND('Relevé pâture'!$E$13="Herbomètre (clics)",'Relevé pâture'!$E25="< 70%", 'Relevé pâture'!$F25="Gazon", OR(AF$8=3, AF$8=4,AF$8=5, AF$8=6)), 200*0.5, AND('Relevé pâture'!$E$13="Herbomètre (clics)",'Relevé pâture'!$E25="< 70%", 'Relevé pâture'!$F25="Gazon", OR(AF$8=6, AF$8=7, AF$8=8)), 240*0.5, AND('Relevé pâture'!$E$13="Herbomètre (clics)",'Relevé pâture'!$E25="< 70%", 'Relevé pâture'!$F25="Gazon", OR(AF$8=9, AF$8=10, AF$8=11)), 180*0.5, AND('Relevé pâture'!$E$13="Herbomètre (clics)",'Relevé pâture'!$E25="< 70%", 'Relevé pâture'!$F25="Touffes", OR(AF$8=3, AF$8=4,AF$8=5, AF$8=6)), 160*0.5, AND('Relevé pâture'!$E$13="Herbomètre (clics)",'Relevé pâture'!$E25="< 70%", 'Relevé pâture'!$F25="Touffes", OR(AF$8=6, AF$8=7, AF$8=8)), 200*0.5, AND('Relevé pâture'!$E$13="Herbomètre (clics)",'Relevé pâture'!$E25="< 70%", 'Relevé pâture'!$F25="Touffes", OR(AF$8=9, AF$8=10, AF$8=11)), 140*0.5, TRUE," " ) ->  | AH10: =IF(AND('Relevé pâture'!AR25="Rien", 'Relevé pâture'!AQ25>'Relevé pâture'!AO25, ('Relevé pâture'!AQ25-'Relevé pâture'!AO25)<>0), ('Relevé pâture'!AQ25-'Relevé pâture'!AO25)/('Relevé pâture'!AQ$23-'Relevé pâture'!AO$23)*AI10, "" ) ->  | AI10: =_xlfn.IFS( AND('Relevé pâture'!$E$13="Herbomètre (cm)",'Relevé pâture'!$E25="> 70%", 'Relevé pâture'!$F25="Gazon", OR(AH$8=3, AH$8=4,AH$8=5, AH$8=6)), 220, AND('Relevé pâture'!$E$13="Herbomètre (cm)",'Relevé pâture'!$E25="> 70%", 'Relevé pâture'!$F25="Gazon", OR(AH$8=6, AH$8=7, AH$8=8)), 260, AND('Relevé pâture'!$E$13="Herbomètre (cm)",'Relevé pâture'!$E25="> 70%", 'Relevé pâture'!$F25="Gazon", OR(AH$8=9, AH$8=10, AH$8=11)), 200, AND('Relevé pâture'!$E$13="Herbomètre (cm)",'Relevé pâture'!$E25="> 70%", 'Relevé pâture'!$F25="Touffes", OR(AH$8=3, AH$8=4,AH$8=5, AH$8=6)), 180, AND('Relevé pâture'!$E$13="Herbomètre (cm)",'Relevé pâture'!$E25="> 70%", 'Relevé pâture'!$F25="Touffes", OR(AH$8=6, AH$8=7, AH$8=8)), 220, AND('Relevé pâture'!$E$13="Herbomètre (cm)",'Relevé pâture'!$E25="> 70%", 'Relevé pâture'!$F25="Touffes", OR(AH$8=9, AH$8=10, AH$8=11)), 160, AND('Relevé pâture'!$E$13="Herbomètre (cm)",'Relevé pâture'!$E25="< 70%", 'Relevé pâture'!$F25="Gazon", OR(AH$8=3, AH$8=4,AH$8=5, AH$8=6)), 200, AND('Relevé pâture'!$E$13="Herbomètre (cm)",'Relevé pâture'!$E25="< 70%", 'Relevé pâture'!$F25="Gazon", OR(AH$8=6, AH$8=7, AH$8=8)), 240, AND('Relevé pâture'!$E$13="Herbomètre (cm)",'Relevé pâture'!$E25="< 70%", 'Relevé pâture'!$F25="Gazon", OR(AH$8=9, AH$8=10, AH$8=11)), 180, AND('Relevé pâture'!$E$13="Herbomètre (cm)",'Relevé pâture'!$E25="< 70%", 'Relevé pâture'!$F25="Touffes", OR(AH$8=3, AH$8=4,AH$8=5, AH$8=6)), 160, AND('Relevé pâture'!$E$13="Herbomètre (cm)",'Relevé pâture'!$E25="< 70%", 'Relevé pâture'!$F25="Touffes", OR(AH$8=6, AH$8=7, AH$8=8)), 200, AND('Relevé pâture'!$E$13="Herbomètre (cm)",'Relevé pâture'!$E25="< 70%", 'Relevé pâture'!$F25="Touffes", OR(AH$8=9, AH$8=10, AH$8=11)), 140, AND('Relevé pâture'!$E$13="Double mètre (cm)",'Relevé pâture'!$E25="> 70%", 'Relevé pâture'!$F25="Gazon", OR(AH$8=3, AH$8=4,AH$8=5, AH$8=6)), 220*0.6, AND('Relevé pâture'!$E$13="Double mètre (cm)",'Relevé pâture'!$E25="> 70%", 'Relevé pâture'!$F25="Gazon", OR(AH$8=6, AH$8=7, AH$8=8)), 260*0.6, AND('Relevé pâture'!$E$13="Double mètre (cm)",'Relevé pâture'!$E25="> 70%", 'Relevé pâture'!$F25="Gazon", OR(AH$8=9, AH$8=10, AH$8=11)), 200*0.6, AND('Relevé pâture'!$E$13="Double mètre (cm)",'Relevé pâture'!$E25="> 70%", 'Relevé pâture'!$F25="Touffes", OR(AH$8=3, AH$8=4,AH$8=5, AH$8=6)), 180*0.6, AND('Relevé pâture'!$E$13="Double mètre (cm)",'Relevé pâture'!$E25="> 70%", 'Relevé pâture'!$F25="Touffes", OR(AH$8=6, AH$8=7, AH$8=8)), 220*0.6, AND('Relevé pâture'!$E$13="Double mètre (cm)",'Relevé pâture'!$E25="> 70%", 'Relevé pâture'!$F25="Touffes", OR(AH$8=9, AH$8=10, AH$8=11)), 160*0.6, AND('Relevé pâture'!$E$13="Double mètre (cm)",'Relevé pâture'!$E25="< 70%", 'Relevé pâture'!$F25="Gazon", OR(AH$8=3, AH$8=4,AH$8=5, AH$8=6)), 200*0.6, AND('Relevé pâture'!$E$13="Double mètre (cm)",'Relevé pâture'!$E25="< 70%", 'Relevé pâture'!$F25="Gazon", OR(AH$8=6, AH$8=7, AH$8=8)), 240*0.6, AND('Relevé pâture'!$E$13="Double mètre (cm)",'Relevé pâture'!$E25="< 70%", 'Relevé pâture'!$F25="Gazon", OR(AH$8=9, AH$8=10, AH$8=11)), 180*0.6, AND('Relevé pâture'!$E$13="Double mètre (cm)",'Relevé pâture'!$E25="< 70%", 'Relevé pâture'!$F25="Touffes", OR(AH$8=3, AH$8=4,AH$8=5, AH$8=6)), 160*0.6, AND('Relevé pâture'!$E$13="Double mètre (cm)",'Relevé pâture'!$E25="< 70%", 'Relevé pâture'!$F25="Touffes", OR(AH$8=6, AH$8=7, AH$8=8)), 200*0.6, AND('Relevé pâture'!$E$13="Double mètre (cm)",'Relevé pâture'!$E25="< 70%", 'Relevé pâture'!$F25="Touffes", OR(AH$8=9, AH$8=10, AH$8=11)), 140*0.6, AND('Relevé pâture'!$E$13="Herbomètre (clics)",'Relevé pâture'!$E25="> 70%", 'Relevé pâture'!$F25="Gazon", OR(AH$8=3, AH$8=4,AH$8=5, AH$8=6)), 220*0.5, AND('Relevé pâture'!$E$13="Herbomètre (clics)",'Relevé pâture'!$E25="> 70%", 'Relevé pâture'!$F25="Gazon", OR(AH$8=6, AH$8=7, AH$8=8)), 260*0.5, AND('Relevé pâture'!$E$13="Herbomètre (clics)",'Relevé pâture'!$E25="> 70%", 'Relevé pâture'!$F25="Gazon", OR(AH$8=9, AH$8=10, AH$8=11)), 200*0.5, AND('Relevé pâture'!$E$13="Herbomètre (clics)",'Relevé pâture'!$E25="> 70%", 'Relevé pâture'!$F25="Touffes", OR(AH$8=3, AH$8=4,AH$8=5, AH$8=6)), 180*0.5, AND('Relevé pâture'!$E$13="Herbomètre (clics)",'Relevé pâture'!$E25="> 70%", 'Relevé pâture'!$F25="Touffes", OR(AH$8=6, AH$8=7, AH$8=8)), 220*0.5, AND('Relevé pâture'!$E$13="Herbomètre (clics)",'Relevé pâture'!$E25="> 70%", 'Relevé pâture'!$F25="Touffes", OR(AH$8=9, AH$8=10, AH$8=11)), 160*0.5, AND('Relevé pâture'!$E$13="Herbomètre (clics)",'Relevé pâture'!$E25="< 70%", 'Relevé pâture'!$F25="Gazon", OR(AH$8=3, AH$8=4,AH$8=5, AH$8=6)), 200*0.5, AND('Relevé pâture'!$E$13="Herbomètre (clics)",'Relevé pâture'!$E25="< 70%", 'Relevé pâture'!$F25="Gazon", OR(AH$8=6, AH$8=7, AH$8=8)), 240*0.5, AND('Relevé pâture'!$E$13="Herbomètre (clics)",'Relevé pâture'!$E25="< 70%", 'Relevé pâture'!$F25="Gazon", OR(AH$8=9, AH$8=10, AH$8=11)), 180*0.5, AND('Relevé pâture'!$E$13="Herbomètre (clics)",'Relevé pâture'!$E25="< 70%", 'Relevé pâture'!$F25="Touffes", OR(AH$8=3, AH$8=4,AH$8=5, AH$8=6)), 160*0.5, AND('Relevé pâture'!$E$13="Herbomètre (clics)",'Relevé pâture'!$E25="< 70%", 'Relevé pâture'!$F25="Touffes", OR(AH$8=6, AH$8=7, AH$8=8)), 200*0.5, AND('Relevé pâture'!$E$13="Herbomètre (clics)",'Relevé pâture'!$E25="< 70%", 'Relevé pâture'!$F25="Touffes", OR(AH$8=9, AH$8=10, AH$8=11)), 140*0.5, TRUE," " ) ->  | AJ10: =IF(AND('Relevé pâture'!AT25="Rien", 'Relevé pâture'!AS25>'Relevé pâture'!AQ25, ('Relevé pâture'!AS25-'Relevé pâture'!AQ25)<>0), ('Relevé pâture'!AS25-'Relevé pâture'!AQ25)/('Relevé pâture'!AS$23-'Relevé pâture'!AQ$23)*AK10, "" ) ->  | AK10: =_xlfn.IFS( AND('Relevé pâture'!$E$13="Herbomètre (cm)",'Relevé pâture'!$E25="> 70%", 'Relevé pâture'!$F25="Gazon", OR(AJ$8=3, AJ$8=4,AJ$8=5, AJ$8=6)), 220, AND('Relevé pâture'!$E$13="Herbomètre (cm)",'Relevé pâture'!$E25="> 70%", 'Relevé pâture'!$F25="Gazon", OR(AJ$8=6, AJ$8=7, AJ$8=8)), 260, AND('Relevé pâture'!$E$13="Herbomètre (cm)",'Relevé pâture'!$E25="> 70%", 'Relevé pâture'!$F25="Gazon", OR(AJ$8=9, AJ$8=10, AJ$8=11)), 200, AND('Relevé pâture'!$E$13="Herbomètre (cm)",'Relevé pâture'!$E25="> 70%", 'Relevé pâture'!$F25="Touffes", OR(AJ$8=3, AJ$8=4,AJ$8=5, AJ$8=6)), 180, AND('Relevé pâture'!$E$13="Herbomètre (cm)",'Relevé pâture'!$E25="> 70%", 'Relevé pâture'!$F25="Touffes", OR(AJ$8=6, AJ$8=7, AJ$8=8)), 220, AND('Relevé pâture'!$E$13="Herbomètre (cm)",'Relevé pâture'!$E25="> 70%", 'Relevé pâture'!$F25="Touffes", OR(AJ$8=9, AJ$8=10, AJ$8=11)), 160, AND('Relevé pâture'!$E$13="Herbomètre (cm)",'Relevé pâture'!$E25="< 70%", 'Relevé pâture'!$F25="Gazon", OR(AJ$8=3, AJ$8=4,AJ$8=5, AJ$8=6)), 200, AND('Relevé pâture'!$E$13="Herbomètre (cm)",'Relevé pâture'!$E25="< 70%", 'Relevé pâture'!$F25="Gazon", OR(AJ$8=6, AJ$8=7, AJ$8=8)), 240, AND('Relevé pâture'!$E$13="Herbomètre (cm)",'Relevé pâture'!$E25="< 70%", 'Relevé pâture'!$F25="Gazon", OR(AJ$8=9, AJ$8=10, AJ$8=11)), 180, AND('Relevé pâture'!$E$13="Herbomètre (cm)",'Relevé pâture'!$E25="< 70%", 'Relevé pâture'!$F25="Touffes", OR(AJ$8=3, AJ$8=4,AJ$8=5, AJ$8=6)), 160, AND('Relevé pâture'!$E$13="Herbomètre (cm)",'Relevé pâture'!$E25="< 70%", 'Relevé pâture'!$F25="Touffes", OR(AJ$8=6, AJ$8=7, AJ$8=8)), 200, AND('Relevé pâture'!$E$13="Herbomètre (cm)",'Relevé pâture'!$E25="< 70%", 'Relevé pâture'!$F25="Touffes", OR(AJ$8=9, AJ$8=10, AJ$8=11)), 140, AND('Relevé pâture'!$E$13="Double mètre (cm)",'Relevé pâture'!$E25="> 70%", 'Relevé pâture'!$F25="Gazon", OR(AJ$8=3, AJ$8=4,AJ$8=5, AJ$8=6)), 220*0.6, AND('Relevé pâture'!$E$13="Double mètre (cm)",'Relevé pâture'!$E25="> 70%", 'Relevé pâture'!$F25="Gazon", OR(AJ$8=6, AJ$8=7, AJ$8=8)), 260*0.6, AND('Relevé pâture'!$E$13="Double mètre (cm)",'Relevé pâture'!$E25="> 70%", 'Relevé pâture'!$F25="Gazon", OR(AJ$8=9, AJ$8=10, AJ$8=11)), 200*0.6, AND('Relevé pâture'!$E$13="Double mètre (cm)",'Relevé pâture'!$E25="> 70%", 'Relevé pâture'!$F25="Touffes", OR(AJ$8=3, AJ$8=4,AJ$8=5, AJ$8=6)), 180*0.6, AND('Relevé pâture'!$E$13="Double mètre (cm)",'Relevé pâture'!$E25="> 70%", 'Relevé pâture'!$F25="Touffes", OR(AJ$8=6, AJ$8=7, AJ$8=8)), 220*0.6, AND('Relevé pâture'!$E$13="Double mètre (cm)",'Relevé pâture'!$E25="> 70%", 'Relevé pâture'!$F25="Touffes", OR(AJ$8=9, AJ$8=10, AJ$8=11)), 160*0.6, AND('Relevé pâture'!$E$13="Double mètre (cm)",'Relevé pâture'!$E25="< 70%", 'Relevé pâture'!$F25="Gazon", OR(AJ$8=3, AJ$8=4,AJ$8=5, AJ$8=6)), 200*0.6, AND('Relevé pâture'!$E$13="Double mètre (cm)",'Relevé pâture'!$E25="< 70%", 'Relevé pâture'!$F25="Gazon", OR(AJ$8=6, AJ$8=7, AJ$8=8)), 240*0.6, AND('Relevé pâture'!$E$13="Double mètre (cm)",'Relevé pâture'!$E25="< 70%", 'Relevé pâture'!$F25="Gazon", OR(AJ$8=9, AJ$8=10, AJ$8=11)), 180*0.6, AND('Relevé pâture'!$E$13="Double mètre (cm)",'Relevé pâture'!$E25="< 70%", 'Relevé pâture'!$F25="Touffes", OR(AJ$8=3, AJ$8=4,AJ$8=5, AJ$8=6)), 160*0.6, AND('Relevé pâture'!$E$13="Double mètre (cm)",'Relevé pâture'!$E25="< 70%", 'Relevé pâture'!$F25="Touffes", OR(AJ$8=6, AJ$8=7, AJ$8=8)), 200*0.6, AND('Relevé pâture'!$E$13="Double mètre (cm)",'Relevé pâture'!$E25="< 70%", 'Relevé pâture'!$F25="Touffes", OR(AJ$8=9, AJ$8=10, AJ$8=11)), 140*0.6, AND('Relevé pâture'!$E$13="Herbomètre (clics)",'Relevé pâture'!$E25="> 70%", 'Relevé pâture'!$F25="Gazon", OR(AJ$8=3, AJ$8=4,AJ$8=5, AJ$8=6)), 220*0.5, AND('Relevé pâture'!$E$13="Herbomètre (clics)",'Relevé pâture'!$E25="> 70%", 'Relevé pâture'!$F25="Gazon", OR(AJ$8=6, AJ$8=7, AJ$8=8)), 260*0.5, AND('Relevé pâture'!$E$13="Herbomètre (clics)",'Relevé pâture'!$E25="> 70%", 'Relevé pâture'!$F25="Gazon", OR(AJ$8=9, AJ$8=10, AJ$8=11)), 200*0.5, AND('Relevé pâture'!$E$13="Herbomètre (clics)",'Relevé pâture'!$E25="> 70%", 'Relevé pâture'!$F25="Touffes", OR(AJ$8=3, AJ$8=4,AJ$8=5, AJ$8=6)), 180*0.5, AND('Relevé pâture'!$E$13="Herbomètre (clics)",'Relevé pâture'!$E25="> 70%", 'Relevé pâture'!$F25="Touffes", OR(AJ$8=6, AJ$8=7, AJ$8=8)), 220*0.5, AND('Relevé pâture'!$E$13="Herbomètre (clics)",'Relevé pâture'!$E25="> 70%", 'Relevé pâture'!$F25="Touffes", OR(AJ$8=9, AJ$8=10, AJ$8=11)), 160*0.5, AND('Relevé pâture'!$E$13="Herbomètre (clics)",'Relevé pâture'!$E25="< 70%", 'Relevé pâture'!$F25="Gazon", OR(AJ$8=3, AJ$8=4,AJ$8=5, AJ$8=6)), 200*0.5, AND('Relevé pâture'!$E$13="Herbomètre (clics)",'Relevé pâture'!$E25="< 70%", 'Relevé pâture'!$F25="Gazon", OR(AJ$8=6, AJ$8=7, AJ$8=8)), 240*0.5, AND('Relevé pâture'!$E$13="Herbomètre (clics)",'Relevé pâture'!$E25="< 70%", 'Relevé pâture'!$F25="Gazon", OR(AJ$8=9, AJ$8=10, AJ$8=11)), 180*0.5, AND('Relevé pâture'!$E$13="Herbomètre (clics)",'Relevé pâture'!$E25="< 70%", 'Relevé pâture'!$F25="Touffes", OR(AJ$8=3, AJ$8=4,AJ$8=5, AJ$8=6)), 160*0.5, AND('Relevé pâture'!$E$13="Herbomètre (clics)",'Relevé pâture'!$E25="< 70%", 'Relevé pâture'!$F25="Touffes", OR(AJ$8=6, AJ$8=7, AJ$8=8)), 200*0.5, AND('Relevé pâture'!$E$13="Herbomètre (clics)",'Relevé pâture'!$E25="< 70%", 'Relevé pâture'!$F25="Touffes", OR(AJ$8=9, AJ$8=10, AJ$8=11)), 140*0.5, TRUE," " ) ->  | AL10: =IF(AND('Relevé pâture'!AV25="Rien", 'Relevé pâture'!AU25>'Relevé pâture'!AS25, ('Relevé pâture'!AU25-'Relevé pâture'!AS25)<>0), ('Relevé pâture'!AU25-'Relevé pâture'!AS25)/('Relevé pâture'!AU$23-'Relevé pâture'!AS$23)*AM10, "" ) ->  | AM10: =_xlfn.IFS( AND('Relevé pâture'!$E$13="Herbomètre (cm)",'Relevé pâture'!$E25="> 70%", 'Relevé pâture'!$F25="Gazon", OR(AL$8=3, AL$8=4,AL$8=5, AL$8=6)), 220, AND('Relevé pâture'!$E$13="Herbomètre (cm)",'Relevé pâture'!$E25="> 70%", 'Relevé pâture'!$F25="Gazon", OR(AL$8=6, AL$8=7, AL$8=8)), 260, AND('Relevé pâture'!$E$13="Herbomètre (cm)",'Relevé pâture'!$E25="> 70%", 'Relevé pâture'!$F25="Gazon", OR(AL$8=9, AL$8=10, AL$8=11)), 200, AND('Relevé pâture'!$E$13="Herbomètre (cm)",'Relevé pâture'!$E25="> 70%", 'Relevé pâture'!$F25="Touffes", OR(AL$8=3, AL$8=4,AL$8=5, AL$8=6)), 180, AND('Relevé pâture'!$E$13="Herbomètre (cm)",'Relevé pâture'!$E25="> 70%", 'Relevé pâture'!$F25="Touffes", OR(AL$8=6, AL$8=7, AL$8=8)), 220, AND('Relevé pâture'!$E$13="Herbomètre (cm)",'Relevé pâture'!$E25="> 70%", 'Relevé pâture'!$F25="Touffes", OR(AL$8=9, AL$8=10, AL$8=11)), 160, AND('Relevé pâture'!$E$13="Herbomètre (cm)",'Relevé pâture'!$E25="< 70%", 'Relevé pâture'!$F25="Gazon", OR(AL$8=3, AL$8=4,AL$8=5, AL$8=6)), 200, AND('Relevé pâture'!$E$13="Herbomètre (cm)",'Relevé pâture'!$E25="< 70%", 'Relevé pâture'!$F25="Gazon", OR(AL$8=6, AL$8=7, AL$8=8)), 240, AND('Relevé pâture'!$E$13="Herbomètre (cm)",'Relevé pâture'!$E25="< 70%", 'Relevé pâture'!$F25="Gazon", OR(AL$8=9, AL$8=10, AL$8=11)), 180, AND('Relevé pâture'!$E$13="Herbomètre (cm)",'Relevé pâture'!$E25="< 70%", 'Relevé pâture'!$F25="Touffes", OR(AL$8=3, AL$8=4,AL$8=5, AL$8=6)), 160, AND('Relevé pâture'!$E$13="Herbomètre (cm)",'Relevé pâture'!$E25="< 70%", 'Relevé pâture'!$F25="Touffes", OR(AL$8=6, AL$8=7, AL$8=8)), 200, AND('Relevé pâture'!$E$13="Herbomètre (cm)",'Relevé pâture'!$E25="< 70%", 'Relevé pâture'!$F25="Touffes", OR(AL$8=9, AL$8=10, AL$8=11)), 140, AND('Relevé pâture'!$E$13="Double mètre (cm)",'Relevé pâture'!$E25="> 70%", 'Relevé pâture'!$F25="Gazon", OR(AL$8=3, AL$8=4,AL$8=5, AL$8=6)), 220*0.6, AND('Relevé pâture'!$E$13="Double mètre (cm)",'Relevé pâture'!$E25="> 70%", 'Relevé pâture'!$F25="Gazon", OR(AL$8=6, AL$8=7, AL$8=8)), 260*0.6, AND('Relevé pâture'!$E$13="Double mètre (cm)",'Relevé pâture'!$E25="> 70%", 'Relevé pâture'!$F25="Gazon", OR(AL$8=9, AL$8=10, AL$8=11)), 200*0.6, AND('Relevé pâture'!$E$13="Double mètre (cm)",'Relevé pâture'!$E25="> 70%", 'Relevé pâture'!$F25="Touffes", OR(AL$8=3, AL$8=4,AL$8=5, AL$8=6)), 180*0.6, AND('Relevé pâture'!$E$13="Double mètre (cm)",'Relevé pâture'!$E25="> 70%", 'Relevé pâture'!$F25="Touffes", OR(AL$8=6, AL$8=7, AL$8=8)), 220*0.6, AND('Relevé pâture'!$E$13="Double mètre (cm)",'Relevé pâture'!$E25="> 70%", 'Relevé pâture'!$F25="Touffes", OR(AL$8=9, AL$8=10, AL$8=11)), 160*0.6, AND('Relevé pâture'!$E$13="Double mètre (cm)",'Relevé pâture'!$E25="< 70%", 'Relevé pâture'!$F25="Gazon", OR(AL$8=3, AL$8=4,AL$8=5, AL$8=6)), 200*0.6, AND('Relevé pâture'!$E$13="Double mètre (cm)",'Relevé pâture'!$E25="< 70%", 'Relevé pâture'!$F25="Gazon", OR(AL$8=6, AL$8=7, AL$8=8)), 240*0.6, AND('Relevé pâture'!$E$13="Double mètre (cm)",'Relevé pâture'!$E25="< 70%", 'Relevé pâture'!$F25="Gazon", OR(AL$8=9, AL$8=10, AL$8=11)), 180*0.6, AND('Relevé pâture'!$E$13="Double mètre (cm)",'Relevé pâture'!$E25="< 70%", 'Relevé pâture'!$F25="Touffes", OR(AL$8=3, AL$8=4,AL$8=5, AL$8=6)), 160*0.6, AND('Relevé pâture'!$E$13="Double mètre (cm)",'Relevé pâture'!$E25="< 70%", 'Relevé pâture'!$F25="Touffes", OR(AL$8=6, AL$8=7, AL$8=8)), 200*0.6, AND('Relevé pâture'!$E$13="Double mètre (cm)",'Relevé pâture'!$E25="< 70%", 'Relevé pâture'!$F25="Touffes", OR(AL$8=9, AL$8=10, AL$8=11)), 140*0.6, AND('Relevé pâture'!$E$13="Herbomètre (clics)",'Relevé pâture'!$E25="> 70%", 'Relevé pâture'!$F25="Gazon", OR(AL$8=3, AL$8=4,AL$8=5, AL$8=6)), 220*0.5, AND('Relevé pâture'!$E$13="Herbomètre (clics)",'Relevé pâture'!$E25="> 70%", 'Relevé pâture'!$F25="Gazon", OR(AL$8=6, AL$8=7, AL$8=8)), 260*0.5, AND('Relevé pâture'!$E$13="Herbomètre (clics)",'Relevé pâture'!$E25="> 70%", 'Relevé pâture'!$F25="Gazon", OR(AL$8=9, AL$8=10, AL$8=11)), 200*0.5, AND('Relevé pâture'!$E$13="Herbomètre (clics)",'Relevé pâture'!$E25="> 70%", 'Relevé pâture'!$F25="Touffes", OR(AL$8=3, AL$8=4,AL$8=5, AL$8=6)), 180*0.5, AND('Relevé pâture'!$E$13="Herbomètre (clics)",'Relevé pâture'!$E25="> 70%", 'Relevé pâture'!$F25="Touffes", OR(AL$8=6, AL$8=7, AL$8=8)), 220*0.5, AND('Relevé pâture'!$E$13="Herbomètre (clics)",'Relevé pâture'!$E25="> 70%", 'Relevé pâture'!$F25="Touffes", OR(AL$8=9, AL$8=10, AL$8=11)), 160*0.5, AND('Relevé pâture'!$E$13="Herbomètre (clics)",'Relevé pâture'!$E25="< 70%", 'Relevé pâture'!$F25="Gazon", OR(AL$8=3, AL$8=4,AL$8=5, AL$8=6)), 200*0.5, AND('Relevé pâture'!$E$13="Herbomètre (clics)",'Relevé pâture'!$E25="< 70%", 'Relevé pâture'!$F25="Gazon", OR(AL$8=6, AL$8=7, AL$8=8)), 240*0.5, AND('Relevé pâture'!$E$13="Herbomètre (clics)",'Relevé pâture'!$E25="< 70%", 'Relevé pâture'!$F25="Gazon", OR(AL$8=9, AL$8=10, AL$8=11)), 180*0.5, AND('Relevé pâture'!$E$13="Herbomètre (clics)",'Relevé pâture'!$E25="< 70%", 'Relevé pâture'!$F25="Touffes", OR(AL$8=3, AL$8=4,AL$8=5, AL$8=6)), 160*0.5, AND('Relevé pâture'!$E$13="Herbomètre (clics)",'Relevé pâture'!$E25="< 70%", 'Relevé pâture'!$F25="Touffes", OR(AL$8=6, AL$8=7, AL$8=8)), 200*0.5, AND('Relevé pâture'!$E$13="Herbomètre (clics)",'Relevé pâture'!$E25="< 70%", 'Relevé pâture'!$F25="Touffes", OR(AL$8=9, AL$8=10, AL$8=11)), 140*0.5, TRUE," " ) ->  | AN10: =IF(AND('Relevé pâture'!AX25="Rien", 'Relevé pâture'!AW25>'Relevé pâture'!AU25, ('Relevé pâture'!AW25-'Relevé pâture'!AU25)<>0), ('Relevé pâture'!AW25-'Relevé pâture'!AU25)/('Relevé pâture'!AW$23-'Relevé pâture'!AU$23)*AO10, "" ) ->  | AO10: =_xlfn.IFS( AND('Relevé pâture'!$E$13="Herbomètre (cm)",'Relevé pâture'!$E25="> 70%", 'Relevé pâture'!$F25="Gazon", OR(AN$8=3, AN$8=4,AN$8=5, AN$8=6)), 220, AND('Relevé pâture'!$E$13="Herbomètre (cm)",'Relevé pâture'!$E25="> 70%", 'Relevé pâture'!$F25="Gazon", OR(AN$8=6, AN$8=7, AN$8=8)), 260, AND('Relevé pâture'!$E$13="Herbomètre (cm)",'Relevé pâture'!$E25="> 70%", 'Relevé pâture'!$F25="Gazon", OR(AN$8=9, AN$8=10, AN$8=11)), 200, AND('Relevé pâture'!$E$13="Herbomètre (cm)",'Relevé pâture'!$E25="> 70%", 'Relevé pâture'!$F25="Touffes", OR(AN$8=3, AN$8=4,AN$8=5, AN$8=6)), 180, AND('Relevé pâture'!$E$13="Herbomètre (cm)",'Relevé pâture'!$E25="> 70%", 'Relevé pâture'!$F25="Touffes", OR(AN$8=6, AN$8=7, AN$8=8)), 220, AND('Relevé pâture'!$E$13="Herbomètre (cm)",'Relevé pâture'!$E25="> 70%", 'Relevé pâture'!$F25="Touffes", OR(AN$8=9, AN$8=10, AN$8=11)), 160, AND('Relevé pâture'!$E$13="Herbomètre (cm)",'Relevé pâture'!$E25="< 70%", 'Relevé pâture'!$F25="Gazon", OR(AN$8=3, AN$8=4,AN$8=5, AN$8=6)), 200, AND('Relevé pâture'!$E$13="Herbomètre (cm)",'Relevé pâture'!$E25="< 70%", 'Relevé pâture'!$F25="Gazon", OR(AN$8=6, AN$8=7, AN$8=8)), 240, AND('Relevé pâture'!$E$13="Herbomètre (cm)",'Relevé pâture'!$E25="< 70%", 'Relevé pâture'!$F25="Gazon", OR(AN$8=9, AN$8=10, AN$8=11)), 180, AND('Relevé pâture'!$E$13="Herbomètre (cm)",'Relevé pâture'!$E25="< 70%", 'Relevé pâture'!$F25="Touffes", OR(AN$8=3, AN$8=4,AN$8=5, AN$8=6)), 160, AND('Relevé pâture'!$E$13="Herbomètre (cm)",'Relevé pâture'!$E25="< 70%", 'Relevé pâture'!$F25="Touffes", OR(AN$8=6, AN$8=7, AN$8=8)), 200, AND('Relevé pâture'!$E$13="Herbomètre (cm)",'Relevé pâture'!$E25="< 70%", 'Relevé pâture'!$F25="Touffes", OR(AN$8=9, AN$8=10, AN$8=11)), 140, AND('Relevé pâture'!$E$13="Double mètre (cm)",'Relevé pâture'!$E25="> 70%", 'Relevé pâture'!$F25="Gazon", OR(AN$8=3, AN$8=4,AN$8=5, AN$8=6)), 220*0.6, AND('Relevé pâture'!$E$13="Double mètre (cm)",'Relevé pâture'!$E25="> 70%", 'Relevé pâture'!$F25="Gazon", OR(AN$8=6, AN$8=7, AN$8=8)), 260*0.6, AND('Relevé pâture'!$E$13="Double mètre (cm)",'Relevé pâture'!$E25="> 70%", 'Relevé pâture'!$F25="Gazon", OR(AN$8=9, AN$8=10, AN$8=11)), 200*0.6, AND('Relevé pâture'!$E$13="Double mètre (cm)",'Relevé pâture'!$E25="> 70%", 'Relevé pâture'!$F25="Touffes", OR(AN$8=3, AN$8=4,AN$8=5, AN$8=6)), 180*0.6, AND('Relevé pâture'!$E$13="Double mètre (cm)",'Relevé pâture'!$E25="> 70%", 'Relevé pâture'!$F25="Touffes", OR(AN$8=6, AN$8=7, AN$8=8)), 220*0.6, AND('Relevé pâture'!$E$13="Double mètre (cm)",'Relevé pâture'!$E25="> 70%", 'Relevé pâture'!$F25="Touffes", OR(AN$8=9, AN$8=10, AN$8=11)), 160*0.6, AND('Relevé pâture'!$E$13="Double mètre (cm)",'Relevé pâture'!$E25="< 70%", 'Relevé pâture'!$F25="Gazon", OR(AN$8=3, AN$8=4,AN$8=5, AN$8=6)), 200*0.6, AND('Relevé pâture'!$E$13="Double mètre (cm)",'Relevé pâture'!$E25="< 70%", 'Relevé pâture'!$F25="Gazon", OR(AN$8=6, AN$8=7, AN$8=8)), 240*0.6, AND('Relevé pâture'!$E$13="Double mètre (cm)",'Relevé pâture'!$E25="< 70%", 'Relevé pâture'!$F25="Gazon", OR(AN$8=9, AN$8=10, AN$8=11)), 180*0.6, AND('Relevé pâture'!$E$13="Double mètre (cm)",'Relevé pâture'!$E25="< 70%", 'Relevé pâture'!$F25="Touffes", OR(AN$8=3, AN$8=4,AN$8=5, AN$8=6)), 160*0.6, AND('Relevé pâture'!$E$13="Double mètre (cm)",'Relevé pâture'!$E25="< 70%", 'Relevé pâture'!$F25="Touffes", OR(AN$8=6, AN$8=7, AN$8=8)), 200*0.6, AND('Relevé pâture'!$E$13="Double mètre (cm)",'Relevé pâture'!$E25="< 70%", 'Relevé pâture'!$F25="Touffes", OR(AN$8=9, AN$8=10, AN$8=11)), 140*0.6, AND('Relevé pâture'!$E$13="Herbomètre (clics)",'Relevé pâture'!$E25="> 70%", 'Relevé pâture'!$F25="Gazon", OR(AN$8=3, AN$8=4,AN$8=5, AN$8=6)), 220*0.5, AND('Relevé pâture'!$E$13="Herbomètre (clics)",'Relevé pâture'!$E25="> 70%", 'Relevé pâture'!$F25="Gazon", OR(AN$8=6, AN$8=7, AN$8=8)), 260*0.5, AND('Relevé pâture'!$E$13="Herbomètre (clics)",'Relevé pâture'!$E25="> 70%", 'Relevé pâture'!$F25="Gazon", OR(AN$8=9, AN$8=10, AN$8=11)), 200*0.5, AND('Relevé pâture'!$E$13="Herbomètre (clics)",'Relevé pâture'!$E25="> 70%", 'Relevé pâture'!$F25="Touffes", OR(AN$8=3, AN$8=4,AN$8=5, AN$8=6)), 180*0.5, AND('Relevé pâture'!$E$13="Herbomètre (clics)",'Relevé pâture'!$E25="> 70%", 'Relevé pâture'!$F25="Touffes", OR(AN$8=6, AN$8=7, AN$8=8)), 220*0.5, AND('Relevé pâture'!$E$13="Herbomètre (clics)",'Relevé pâture'!$E25="> 70%", 'Relevé pâture'!$F25="Touffes", OR(AN$8=9, AN$8=10, AN$8=11)), 160*0.5, AND('Relevé pâture'!$E$13="Herbomètre (clics)",'Relevé pâture'!$E25="< 70%", 'Relevé pâture'!$F25="Gazon", OR(AN$8=3, AN$8=4,AN$8=5, AN$8=6)), 200*0.5, AND('Relevé pâture'!$E$13="Herbomètre (clics)",'Relevé pâture'!$E25="< 70%", 'Relevé pâture'!$F25="Gazon", OR(AN$8=6, AN$8=7, AN$8=8)), 240*0.5, AND('Relevé pâture'!$E$13="Herbomètre (clics)",'Relevé pâture'!$E25="< 70%", 'Relevé pâture'!$F25="Gazon", OR(AN$8=9, AN$8=10, AN$8=11)), 180*0.5, AND('Relevé pâture'!$E$13="Herbomètre (clics)",'Relevé pâture'!$E25="< 70%", 'Relevé pâture'!$F25="Touffes", OR(AN$8=3, AN$8=4,AN$8=5, AN$8=6)), 160*0.5, AND('Relevé pâture'!$E$13="Herbomètre (clics)",'Relevé pâture'!$E25="< 70%", 'Relevé pâture'!$F25="Touffes", OR(AN$8=6, AN$8=7, AN$8=8)), 200*0.5, AND('Relevé pâture'!$E$13="Herbomètre (clics)",'Relevé pâture'!$E25="< 70%", 'Relevé pâture'!$F25="Touffes", OR(AN$8=9, AN$8=10, AN$8=11)), 140*0.5, TRUE," " ) ->  | AP10: =IF(AND('Relevé pâture'!AZ25="Rien", 'Relevé pâture'!AY25>'Relevé pâture'!AW25, ('Relevé pâture'!AY25-'Relevé pâture'!AW25)<>0), ('Relevé pâture'!AY25-'Relevé pâture'!AW25)/('Relevé pâture'!AY$23-'Relevé pâture'!AW$23)*AQ10, "" ) ->  | AQ10: =_xlfn.IFS( AND('Relevé pâture'!$E$13="Herbomètre (cm)",'Relevé pâture'!$E25="> 70%", 'Relevé pâture'!$F25="Gazon", OR(AP$8=3, AP$8=4,AP$8=5, AP$8=6)), 220, AND('Relevé pâture'!$E$13="Herbomètre (cm)",'Relevé pâture'!$E25="> 70%", 'Relevé pâture'!$F25="Gazon", OR(AP$8=6, AP$8=7, AP$8=8)), 260, AND('Relevé pâture'!$E$13="Herbomètre (cm)",'Relevé pâture'!$E25="> 70%", 'Relevé pâture'!$F25="Gazon", OR(AP$8=9, AP$8=10, AP$8=11)), 200, AND('Relevé pâture'!$E$13="Herbomètre (cm)",'Relevé pâture'!$E25="> 70%", 'Relevé pâture'!$F25="Touffes", OR(AP$8=3, AP$8=4,AP$8=5, AP$8=6)), 180, AND('Relevé pâture'!$E$13="Herbomètre (cm)",'Relevé pâture'!$E25="> 70%", 'Relevé pâture'!$F25="Touffes", OR(AP$8=6, AP$8=7, AP$8=8)), 220, AND('Relevé pâture'!$E$13="Herbomètre (cm)",'Relevé pâture'!$E25="> 70%", 'Relevé pâture'!$F25="Touffes", OR(AP$8=9, AP$8=10, AP$8=11)), 160, AND('Relevé pâture'!$E$13="Herbomètre (cm)",'Relevé pâture'!$E25="< 70%", 'Relevé pâture'!$F25="Gazon", OR(AP$8=3, AP$8=4,AP$8=5, AP$8=6)), 200, AND('Relevé pâture'!$E$13="Herbomètre (cm)",'Relevé pâture'!$E25="< 70%", 'Relevé pâture'!$F25="Gazon", OR(AP$8=6, AP$8=7, AP$8=8)), 240, AND('Relevé pâture'!$E$13="Herbomètre (cm)",'Relevé pâture'!$E25="< 70%", 'Relevé pâture'!$F25="Gazon", OR(AP$8=9, AP$8=10, AP$8=11)), 180, AND('Relevé pâture'!$E$13="Herbomètre (cm)",'Relevé pâture'!$E25="< 70%", 'Relevé pâture'!$F25="Touffes", OR(AP$8=3, AP$8=4,AP$8=5, AP$8=6)), 160, AND('Relevé pâture'!$E$13="Herbomètre (cm)",'Relevé pâture'!$E25="< 70%", 'Relevé pâture'!$F25="Touffes", OR(AP$8=6, AP$8=7, AP$8=8)), 200, AND('Relevé pâture'!$E$13="Herbomètre (cm)",'Relevé pâture'!$E25="< 70%", 'Relevé pâture'!$F25="Touffes", OR(AP$8=9, AP$8=10, AP$8=11)), 140, AND('Relevé pâture'!$E$13="Double mètre (cm)",'Relevé pâture'!$E25="> 70%", 'Relevé pâture'!$F25="Gazon", OR(AP$8=3, AP$8=4,AP$8=5, AP$8=6)), 220*0.6, AND('Relevé pâture'!$E$13="Double mètre (cm)",'Relevé pâture'!$E25="> 70%", 'Relevé pâture'!$F25="Gazon", OR(AP$8=6, AP$8=7, AP$8=8)), 260*0.6, AND('Relevé pâture'!$E$13="Double mètre (cm)",'Relevé pâture'!$E25="> 70%", 'Relevé pâture'!$F25="Gazon", OR(AP$8=9, AP$8=10, AP$8=11)), 200*0.6, AND('Relevé pâture'!$E$13="Double mètre (cm)",'Relevé pâture'!$E25="> 70%", 'Relevé pâture'!$F25="Touffes", OR(AP$8=3, AP$8=4,AP$8=5, AP$8=6)), 180*0.6, AND('Relevé pâture'!$E$13="Double mètre (cm)",'Relevé pâture'!$E25="> 70%", 'Relevé pâture'!$F25="Touffes", OR(AP$8=6, AP$8=7, AP$8=8)), 220*0.6, AND('Relevé pâture'!$E$13="Double mètre (cm)",'Relevé pâture'!$E25="> 70%", 'Relevé pâture'!$F25="Touffes", OR(AP$8=9, AP$8=10, AP$8=11)), 160*0.6, AND('Relevé pâture'!$E$13="Double mètre (cm)",'Relevé pâture'!$E25="< 70%", 'Relevé pâture'!$F25="Gazon", OR(AP$8=3, AP$8=4,AP$8=5, AP$8=6)), 200*0.6, AND('Relevé pâture'!$E$13="Double mètre (cm)",'Relevé pâture'!$E25="< 70%", 'Relevé pâture'!$F25="Gazon", OR(AP$8=6, AP$8=7, AP$8=8)), 240*0.6, AND('Relevé pâture'!$E$13="Double mètre (cm)",'Relevé pâture'!$E25="< 70%", 'Relevé pâture'!$F25="Gazon", OR(AP$8=9, AP$8=10, AP$8=11)), 180*0.6, AND('Relevé pâture'!$E$13="Double mètre (cm)",'Relevé pâture'!$E25="< 70%", 'Relevé pâture'!$F25="Touffes", OR(AP$8=3, AP$8=4,AP$8=5, AP$8=6)), 160*0.6, AND('Relevé pâture'!$E$13="Double mètre (cm)",'Relevé pâture'!$E25="< 70%", 'Relevé pâture'!$F25="Touffes", OR(AP$8=6, AP$8=7, AP$8=8)), 200*0.6, AND('Relevé pâture'!$E$13="Double mètre (cm)",'Relevé pâture'!$E25="< 70%", 'Relevé pâture'!$F25="Touffes", OR(AP$8=9, AP$8=10, AP$8=11)), 140*0.6, AND('Relevé pâture'!$E$13="Herbomètre (clics)",'Relevé pâture'!$E25="> 70%", 'Relevé pâture'!$F25="Gazon", OR(AP$8=3, AP$8=4,AP$8=5, AP$8=6)), 220*0.5, AND('Relevé pâture'!$E$13="Herbomètre (clics)",'Relevé pâture'!$E25="> 70%", 'Relevé pâture'!$F25="Gazon", OR(AP$8=6, AP$8=7, AP$8=8)), 260*0.5, AND('Relevé pâture'!$E$13="Herbomètre (clics)",'Relevé pâture'!$E25="> 70%", 'Relevé pâture'!$F25="Gazon", OR(AP$8=9, AP$8=10, AP$8=11)), 200*0.5, AND('Relevé pâture'!$E$13="Herbomètre (clics)",'Relevé pâture'!$E25="> 70%", 'Relevé pâture'!$F25="Touffes", OR(AP$8=3, AP$8=4,AP$8=5, AP$8=6)), 180*0.5, AND('Relevé pâture'!$E$13="Herbomètre (clics)",'Relevé pâture'!$E25="> 70%", 'Relevé pâture'!$F25="Touffes", OR(AP$8=6, AP$8=7, AP$8=8)), 220*0.5, AND('Relevé pâture'!$E$13="Herbomètre (clics)",'Relevé pâture'!$E25="> 70%", 'Relevé pâture'!$F25="Touffes", OR(AP$8=9, AP$8=10, AP$8=11)), 160*0.5, AND('Relevé pâture'!$E$13="Herbomètre (clics)",'Relevé pâture'!$E25="< 70%", 'Relevé pâture'!$F25="Gazon", OR(AP$8=3, AP$8=4,AP$8=5, AP$8=6)), 200*0.5, AND('Relevé pâture'!$E$13="Herbomètre (clics)",'Relevé pâture'!$E25="< 70%", 'Relevé pâture'!$F25="Gazon", OR(AP$8=6, AP$8=7, AP$8=8)), 240*0.5, AND('Relevé pâture'!$E$13="Herbomètre (clics)",'Relevé pâture'!$E25="< 70%", 'Relevé pâture'!$F25="Gazon", OR(AP$8=9, AP$8=10, AP$8=11)), 180*0.5, AND('Relevé pâture'!$E$13="Herbomètre (clics)",'Relevé pâture'!$E25="< 70%", 'Relevé pâture'!$F25="Touffes", OR(AP$8=3, AP$8=4,AP$8=5, AP$8=6)), 160*0.5, AND('Relevé pâture'!$E$13="Herbomètre (clics)",'Relevé pâture'!$E25="< 70%", 'Relevé pâture'!$F25="Touffes", OR(AP$8=6, AP$8=7, AP$8=8)), 200*0.5, AND('Relevé pâture'!$E$13="Herbomètre (clics)",'Relevé pâture'!$E25="< 70%", 'Relevé pâture'!$F25="Touffes", OR(AP$8=9, AP$8=10, AP$8=11)), 140*0.5, TRUE," " ) ->  | AR10: =IF(AND('Relevé pâture'!BB25="Rien", 'Relevé pâture'!BA25>'Relevé pâture'!AY25, ('Relevé pâture'!BA25-'Relevé pâture'!AY25)<>0), ('Relevé pâture'!BA25-'Relevé pâture'!AY25)/('Relevé pâture'!BA$23-'Relevé pâture'!AY$23)*AS10, "" ) ->  | AS10: =_xlfn.IFS( AND('Relevé pâture'!$E$13="Herbomètre (cm)",'Relevé pâture'!$E25="> 70%", 'Relevé pâture'!$F25="Gazon", OR(AR$8=3, AR$8=4,AR$8=5, AR$8=6)), 220, AND('Relevé pâture'!$E$13="Herbomètre (cm)",'Relevé pâture'!$E25="> 70%", 'Relevé pâture'!$F25="Gazon", OR(AR$8=6, AR$8=7, AR$8=8)), 260, AND('Relevé pâture'!$E$13="Herbomètre (cm)",'Relevé pâture'!$E25="> 70%", 'Relevé pâture'!$F25="Gazon", OR(AR$8=9, AR$8=10, AR$8=11)), 200, AND('Relevé pâture'!$E$13="Herbomètre (cm)",'Relevé pâture'!$E25="> 70%", 'Relevé pâture'!$F25="Touffes", OR(AR$8=3, AR$8=4,AR$8=5, AR$8=6)), 180, AND('Relevé pâture'!$E$13="Herbomètre (cm)",'Relevé pâture'!$E25="> 70%", 'Relevé pâture'!$F25="Touffes", OR(AR$8=6, AR$8=7, AR$8=8)), 220, AND('Relevé pâture'!$E$13="Herbomètre (cm)",'Relevé pâture'!$E25="> 70%", 'Relevé pâture'!$F25="Touffes", OR(AR$8=9, AR$8=10, AR$8=11)), 160, AND('Relevé pâture'!$E$13="Herbomètre (cm)",'Relevé pâture'!$E25="< 70%", 'Relevé pâture'!$F25="Gazon", OR(AR$8=3, AR$8=4,AR$8=5, AR$8=6)), 200, AND('Relevé pâture'!$E$13="Herbomètre (cm)",'Relevé pâture'!$E25="< 70%", 'Relevé pâture'!$F25="Gazon", OR(AR$8=6, AR$8=7, AR$8=8)), 240, AND('Relevé pâture'!$E$13="Herbomètre (cm)",'Relevé pâture'!$E25="< 70%", 'Relevé pâture'!$F25="Gazon", OR(AR$8=9, AR$8=10, AR$8=11)), 180, AND('Relevé pâture'!$E$13="Herbomètre (cm)",'Relevé pâture'!$E25="< 70%", 'Relevé pâture'!$F25="Touffes", OR(AR$8=3, AR$8=4,AR$8=5, AR$8=6)), 160, AND('Relevé pâture'!$E$13="Herbomètre (cm)",'Relevé pâture'!$E25="< 70%", 'Relevé pâture'!$F25="Touffes", OR(AR$8=6, AR$8=7, AR$8=8)), 200, AND('Relevé pâture'!$E$13="Herbomètre (cm)",'Relevé pâture'!$E25="< 70%", 'Relevé pâture'!$F25="Touffes", OR(AR$8=9, AR$8=10, AR$8=11)), 140, AND('Relevé pâture'!$E$13="Double mètre (cm)",'Relevé pâture'!$E25="> 70%", 'Relevé pâture'!$F25="Gazon", OR(AR$8=3, AR$8=4,AR$8=5, AR$8=6)), 220*0.6, AND('Relevé pâture'!$E$13="Double mètre (cm)",'Relevé pâture'!$E25="> 70%", 'Relevé pâture'!$F25="Gazon", OR(AR$8=6, AR$8=7, AR$8=8)), 260*0.6, AND('Relevé pâture'!$E$13="Double mètre (cm)",'Relevé pâture'!$E25="> 70%", 'Relevé pâture'!$F25="Gazon", OR(AR$8=9, AR$8=10, AR$8=11)), 200*0.6, AND('Relevé pâture'!$E$13="Double mètre (cm)",'Relevé pâture'!$E25="> 70%", 'Relevé pâture'!$F25="Touffes", OR(AR$8=3, AR$8=4,AR$8=5, AR$8=6)), 180*0.6, AND('Relevé pâture'!$E$13="Double mètre (cm)",'Relevé pâture'!$E25="> 70%", 'Relevé pâture'!$F25="Touffes", OR(AR$8=6, AR$8=7, AR$8=8)), 220*0.6, AND('Relevé pâture'!$E$13="Double mètre (cm)",'Relevé pâture'!$E25="> 70%", 'Relevé pâture'!$F25="Touffes", OR(AR$8=9, AR$8=10, AR$8=11)), 160*0.6, AND('Relevé pâture'!$E$13="Double mètre (cm)",'Relevé pâture'!$E25="< 70%", 'Relevé pâture'!$F25="Gazon", OR(AR$8=3, AR$8=4,AR$8=5, AR$8=6)), 200*0.6, AND('Relevé pâture'!$E$13="Double mètre (cm)",'Relevé pâture'!$E25="< 70%", 'Relevé pâture'!$F25="Gazon", OR(AR$8=6, AR$8=7, AR$8=8)), 240*0.6, AND('Relevé pâture'!$E$13="Double mètre (cm)",'Relevé pâture'!$E25="< 70%", 'Relevé pâture'!$F25="Gazon", OR(AR$8=9, AR$8=10, AR$8=11)), 180*0.6, AND('Relevé pâture'!$E$13="Double mètre (cm)",'Relevé pâture'!$E25="< 70%", 'Relevé pâture'!$F25="Touffes", OR(AR$8=3, AR$8=4,AR$8=5, AR$8=6)), 160*0.6, AND('Relevé pâture'!$E$13="Double mètre (cm)",'Relevé pâture'!$E25="< 70%", 'Relevé pâture'!$F25="Touffes", OR(AR$8=6, AR$8=7, AR$8=8)), 200*0.6, AND('Relevé pâture'!$E$13="Double mètre (cm)",'Relevé pâture'!$E25="< 70%", 'Relevé pâture'!$F25="Touffes", OR(AR$8=9, AR$8=10, AR$8=11)), 140*0.6, AND('Relevé pâture'!$E$13="Herbomètre (clics)",'Relevé pâture'!$E25="> 70%", 'Relevé pâture'!$F25="Gazon", OR(AR$8=3, AR$8=4,AR$8=5, AR$8=6)), 220*0.5, AND('Relevé pâture'!$E$13="Herbomètre (clics)",'Relevé pâture'!$E25="> 70%", 'Relevé pâture'!$F25="Gazon", OR(AR$8=6, AR$8=7, AR$8=8)), 260*0.5, AND('Relevé pâture'!$E$13="Herbomètre (clics)",'Relevé pâture'!$E25="> 70%", 'Relevé pâture'!$F25="Gazon", OR(AR$8=9, AR$8=10, AR$8=11)), 200*0.5, AND('Relevé pâture'!$E$13="Herbomètre (clics)",'Relevé pâture'!$E25="> 70%", 'Relevé pâture'!$F25="Touffes", OR(AR$8=3, AR$8=4,AR$8=5, AR$8=6)), 180*0.5, AND('Relevé pâture'!$E$13="Herbomètre (clics)",'Relevé pâture'!$E25="> 70%", 'Relevé pâture'!$F25="Touffes", OR(AR$8=6, AR$8=7, AR$8=8)), 220*0.5, AND('Relevé pâture'!$E$13="Herbomètre (clics)",'Relevé pâture'!$E25="> 70%", 'Relevé pâture'!$F25="Touffes", OR(AR$8=9, AR$8=10, AR$8=11)), 160*0.5, AND('Relevé pâture'!$E$13="Herbomètre (clics)",'Relevé pâture'!$E25="< 70%", 'Relevé pâture'!$F25="Gazon", OR(AR$8=3, AR$8=4,AR$8=5, AR$8=6)), 200*0.5, AND('Relevé pâture'!$E$13="Herbomètre (clics)",'Relevé pâture'!$E25="< 70%", 'Relevé pâture'!$F25="Gazon", OR(AR$8=6, AR$8=7, AR$8=8)), 240*0.5, AND('Relevé pâture'!$E$13="Herbomètre (clics)",'Relevé pâture'!$E25="< 70%", 'Relevé pâture'!$F25="Gazon", OR(AR$8=9, AR$8=10, AR$8=11)), 180*0.5, AND('Relevé pâture'!$E$13="Herbomètre (clics)",'Relevé pâture'!$E25="< 70%", 'Relevé pâture'!$F25="Touffes", OR(AR$8=3, AR$8=4,AR$8=5, AR$8=6)), 160*0.5, AND('Relevé pâture'!$E$13="Herbomètre (clics)",'Relevé pâture'!$E25="< 70%", 'Relevé pâture'!$F25="Touffes", OR(AR$8=6, AR$8=7, AR$8=8)), 200*0.5, AND('Relevé pâture'!$E$13="Herbomètre (clics)",'Relevé pâture'!$E25="< 70%", 'Relevé pâture'!$F25="Touffes", OR(AR$8=9, AR$8=10, AR$8=11)), 140*0.5, TRUE," " ) ->  | AT10: =IF(AND('Relevé pâture'!BD25="Rien", 'Relevé pâture'!BC25>'Relevé pâture'!BA25, ('Relevé pâture'!BC25-'Relevé pâture'!BA25)<>0), ('Relevé pâture'!BC25-'Relevé pâture'!BA25)/('Relevé pâture'!BC$23-'Relevé pâture'!BA$23)*AU10, "" ) ->  | AU10: =_xlfn.IFS( AND('Relevé pâture'!$E$13="Herbomètre (cm)",'Relevé pâture'!$E25="> 70%", 'Relevé pâture'!$F25="Gazon", OR(AT$8=3, AT$8=4,AT$8=5, AT$8=6)), 220, AND('Relevé pâture'!$E$13="Herbomètre (cm)",'Relevé pâture'!$E25="> 70%", 'Relevé pâture'!$F25="Gazon", OR(AT$8=6, AT$8=7, AT$8=8)), 260, AND('Relevé pâture'!$E$13="Herbomètre (cm)",'Relevé pâture'!$E25="> 70%", 'Relevé pâture'!$F25="Gazon", OR(AT$8=9, AT$8=10, AT$8=11)), 200, AND('Relevé pâture'!$E$13="Herbomètre (cm)",'Relevé pâture'!$E25="> 70%", 'Relevé pâture'!$F25="Touffes", OR(AT$8=3, AT$8=4,AT$8=5, AT$8=6)), 180, AND('Relevé pâture'!$E$13="Herbomètre (cm)",'Relevé pâture'!$E25="> 70%", 'Relevé pâture'!$F25="Touffes", OR(AT$8=6, AT$8=7, AT$8=8)), 220, AND('Relevé pâture'!$E$13="Herbomètre (cm)",'Relevé pâture'!$E25="> 70%", 'Relevé pâture'!$F25="Touffes", OR(AT$8=9, AT$8=10, AT$8=11)), 160, AND('Relevé pâture'!$E$13="Herbomètre (cm)",'Relevé pâture'!$E25="< 70%", 'Relevé pâture'!$F25="Gazon", OR(AT$8=3, AT$8=4,AT$8=5, AT$8=6)), 200, AND('Relevé pâture'!$E$13="Herbomètre (cm)",'Relevé pâture'!$E25="< 70%", 'Relevé pâture'!$F25="Gazon", OR(AT$8=6, AT$8=7, AT$8=8)), 240, AND('Relevé pâture'!$E$13="Herbomètre (cm)",'Relevé pâture'!$E25="< 70%", 'Relevé pâture'!$F25="Gazon", OR(AT$8=9, AT$8=10, AT$8=11)), 180, AND('Relevé pâture'!$E$13="Herbomètre (cm)",'Relevé pâture'!$E25="< 70%", 'Relevé pâture'!$F25="Touffes", OR(AT$8=3, AT$8=4,AT$8=5, AT$8=6)), 160, AND('Relevé pâture'!$E$13="Herbomètre (cm)",'Relevé pâture'!$E25="< 70%", 'Relevé pâture'!$F25="Touffes", OR(AT$8=6, AT$8=7, AT$8=8)), 200, AND('Relevé pâture'!$E$13="Herbomètre (cm)",'Relevé pâture'!$E25="< 70%", 'Relevé pâture'!$F25="Touffes", OR(AT$8=9, AT$8=10, AT$8=11)), 140, AND('Relevé pâture'!$E$13="Double mètre (cm)",'Relevé pâture'!$E25="> 70%", 'Relevé pâture'!$F25="Gazon", OR(AT$8=3, AT$8=4,AT$8=5, AT$8=6)), 220*0.6, AND('Relevé pâture'!$E$13="Double mètre (cm)",'Relevé pâture'!$E25="> 70%", 'Relevé pâture'!$F25="Gazon", OR(AT$8=6, AT$8=7, AT$8=8)), 260*0.6, AND('Relevé pâture'!$E$13="Double mètre (cm)",'Relevé pâture'!$E25="> 70%", 'Relevé pâture'!$F25="Gazon", OR(AT$8=9, AT$8=10, AT$8=11)), 200*0.6, AND('Relevé pâture'!$E$13="Double mètre (cm)",'Relevé pâture'!$E25="> 70%", 'Relevé pâture'!$F25="Touffes", OR(AT$8=3, AT$8=4,AT$8=5, AT$8=6)), 180*0.6, AND('Relevé pâture'!$E$13="Double mètre (cm)",'Relevé pâture'!$E25="> 70%", 'Relevé pâture'!$F25="Touffes", OR(AT$8=6, AT$8=7, AT$8=8)), 220*0.6, AND('Relevé pâture'!$E$13="Double mètre (cm)",'Relevé pâture'!$E25="> 70%", 'Relevé pâture'!$F25="Touffes", OR(AT$8=9, AT$8=10, AT$8=11)), 160*0.6, AND('Relevé pâture'!$E$13="Double mètre (cm)",'Relevé pâture'!$E25="< 70%", 'Relevé pâture'!$F25="Gazon", OR(AT$8=3, AT$8=4,AT$8=5, AT$8=6)), 200*0.6, AND('Relevé pâture'!$E$13="Double mètre (cm)",'Relevé pâture'!$E25="< 70%", 'Relevé pâture'!$F25="Gazon", OR(AT$8=6, AT$8=7, AT$8=8)), 240*0.6, AND('Relevé pâture'!$E$13="Double mètre (cm)",'Relevé pâture'!$E25="< 70%", 'Relevé pâture'!$F25="Gazon", OR(AT$8=9, AT$8=10, AT$8=11)), 180*0.6, AND('Relevé pâture'!$E$13="Double mètre (cm)",'Relevé pâture'!$E25="< 70%", 'Relevé pâture'!$F25="Touffes", OR(AT$8=3, AT$8=4,AT$8=5, AT$8=6)), 160*0.6, AND('Relevé pâture'!$E$13="Double mètre (cm)",'Relevé pâture'!$E25="< 70%", 'Relevé pâture'!$F25="Touffes", OR(AT$8=6, AT$8=7, AT$8=8)), 200*0.6, AND('Relevé pâture'!$E$13="Double mètre (cm)",'Relevé pâture'!$E25="< 70%", 'Relevé pâture'!$F25="Touffes", OR(AT$8=9, AT$8=10, AT$8=11)), 140*0.6, AND('Relevé pâture'!$E$13="Herbomètre (clics)",'Relevé pâture'!$E25="> 70%", 'Relevé pâture'!$F25="Gazon", OR(AT$8=3, AT$8=4,AT$8=5, AT$8=6)), 220*0.5, AND('Relevé pâture'!$E$13="Herbomètre (clics)",'Relevé pâture'!$E25="> 70%", 'Relevé pâture'!$F25="Gazon", OR(AT$8=6, AT$8=7, AT$8=8)), 260*0.5, AND('Relevé pâture'!$E$13="Herbomètre (clics)",'Relevé pâture'!$E25="> 70%", 'Relevé pâture'!$F25="Gazon", OR(AT$8=9, AT$8=10, AT$8=11)), 200*0.5, AND('Relevé pâture'!$E$13="Herbomètre (clics)",'Relevé pâture'!$E25="> 70%", 'Relevé pâture'!$F25="Touffes", OR(AT$8=3, AT$8=4,AT$8=5, AT$8=6)), 180*0.5, AND('Relevé pâture'!$E$13="Herbomètre (clics)",'Relevé pâture'!$E25="> 70%", 'Relevé pâture'!$F25="Touffes", OR(AT$8=6, AT$8=7, AT$8=8)), 220*0.5, AND('Relevé pâture'!$E$13="Herbomètre (clics)",'Relevé pâture'!$E25="> 70%", 'Relevé pâture'!$F25="Touffes", OR(AT$8=9, AT$8=10, AT$8=11)), 160*0.5, AND('Relevé pâture'!$E$13="Herbomètre (clics)",'Relevé pâture'!$E25="< 70%", 'Relevé pâture'!$F25="Gazon", OR(AT$8=3, AT$8=4,AT$8=5, AT$8=6)), 200*0.5, AND('Relevé pâture'!$E$13="Herbomètre (clics)",'Relevé pâture'!$E25="< 70%", 'Relevé pâture'!$F25="Gazon", OR(AT$8=6, AT$8=7, AT$8=8)), 240*0.5, AND('Relevé pâture'!$E$13="Herbomètre (clics)",'Relevé pâture'!$E25="< 70%", 'Relevé pâture'!$F25="Gazon", OR(AT$8=9, AT$8=10, AT$8=11)), 180*0.5, AND('Relevé pâture'!$E$13="Herbomètre (clics)",'Relevé pâture'!$E25="< 70%", 'Relevé pâture'!$F25="Touffes", OR(AT$8=3, AT$8=4,AT$8=5, AT$8=6)), 160*0.5, AND('Relevé pâture'!$E$13="Herbomètre (clics)",'Relevé pâture'!$E25="< 70%", 'Relevé pâture'!$F25="Touffes", OR(AT$8=6, AT$8=7, AT$8=8)), 200*0.5, AND('Relevé pâture'!$E$13="Herbomètre (clics)",'Relevé pâture'!$E25="< 70%", 'Relevé pâture'!$F25="Touffes", OR(AT$8=9, AT$8=10, AT$8=11)), 140*0.5, TRUE," " ) ->  | AV10: =IF(AND('Relevé pâture'!BF25="Rien", 'Relevé pâture'!BE25>'Relevé pâture'!BC25, ('Relevé pâture'!BE25-'Relevé pâture'!BC25)<>0), ('Relevé pâture'!BE25-'Relevé pâture'!BC25)/('Relevé pâture'!BE$23-'Relevé pâture'!BC$23)*AW10, "" ) ->  | AW10: =_xlfn.IFS( AND('Relevé pâture'!$E$13="Herbomètre (cm)",'Relevé pâture'!$E25="> 70%", 'Relevé pâture'!$F25="Gazon", OR(AV$8=3, AV$8=4,AV$8=5, AV$8=6)), 220, AND('Relevé pâture'!$E$13="Herbomètre (cm)",'Relevé pâture'!$E25="> 70%", 'Relevé pâture'!$F25="Gazon", OR(AV$8=6, AV$8=7, AV$8=8)), 260, AND('Relevé pâture'!$E$13="Herbomètre (cm)",'Relevé pâture'!$E25="> 70%", 'Relevé pâture'!$F25="Gazon", OR(AV$8=9, AV$8=10, AV$8=11)), 200, AND('Relevé pâture'!$E$13="Herbomètre (cm)",'Relevé pâture'!$E25="> 70%", 'Relevé pâture'!$F25="Touffes", OR(AV$8=3, AV$8=4,AV$8=5, AV$8=6)), 180, AND('Relevé pâture'!$E$13="Herbomètre (cm)",'Relevé pâture'!$E25="> 70%", 'Relevé pâture'!$F25="Touffes", OR(AV$8=6, AV$8=7, AV$8=8)), 220, AND('Relevé pâture'!$E$13="Herbomètre (cm)",'Relevé pâture'!$E25="> 70%", 'Relevé pâture'!$F25="Touffes", OR(AV$8=9, AV$8=10, AV$8=11)), 160, AND('Relevé pâture'!$E$13="Herbomètre (cm)",'Relevé pâture'!$E25="< 70%", 'Relevé pâture'!$F25="Gazon", OR(AV$8=3, AV$8=4,AV$8=5, AV$8=6)), 200, AND('Relevé pâture'!$E$13="Herbomètre (cm)",'Relevé pâture'!$E25="< 70%", 'Relevé pâture'!$F25="Gazon", OR(AV$8=6, AV$8=7, AV$8=8)), 240, AND('Relevé pâture'!$E$13="Herbomètre (cm)",'Relevé pâture'!$E25="< 70%", 'Relevé pâture'!$F25="Gazon", OR(AV$8=9, AV$8=10, AV$8=11)), 180, AND('Relevé pâture'!$E$13="Herbomètre (cm)",'Relevé pâture'!$E25="< 70%", 'Relevé pâture'!$F25="Touffes", OR(AV$8=3, AV$8=4,AV$8=5, AV$8=6)), 160, AND('Relevé pâture'!$E$13="Herbomètre (cm)",'Relevé pâture'!$E25="< 70%", 'Relevé pâture'!$F25="Touffes", OR(AV$8=6, AV$8=7, AV$8=8)), 200, AND('Relevé pâture'!$E$13="Herbomètre (cm)",'Relevé pâture'!$E25="< 70%", 'Relevé pâture'!$F25="Touffes", OR(AV$8=9, AV$8=10, AV$8=11)), 140, AND('Relevé pâture'!$E$13="Double mètre (cm)",'Relevé pâture'!$E25="> 70%", 'Relevé pâture'!$F25="Gazon", OR(AV$8=3, AV$8=4,AV$8=5, AV$8=6)), 220*0.6, AND('Relevé pâture'!$E$13="Double mètre (cm)",'Relevé pâture'!$E25="> 70%", 'Relevé pâture'!$F25="Gazon", OR(AV$8=6, AV$8=7, AV$8=8)), 260*0.6, AND('Relevé pâture'!$E$13="Double mètre (cm)",'Relevé pâture'!$E25="> 70%", 'Relevé pâture'!$F25="Gazon", OR(AV$8=9, AV$8=10, AV$8=11)), 200*0.6, AND('Relevé pâture'!$E$13="Double mètre (cm)",'Relevé pâture'!$E25="> 70%", 'Relevé pâture'!$F25="Touffes", OR(AV$8=3, AV$8=4,AV$8=5, AV$8=6)), 180*0.6, AND('Relevé pâture'!$E$13="Double mètre (cm)",'Relevé pâture'!$E25="> 70%", 'Relevé pâture'!$F25="Touffes", OR(AV$8=6, AV$8=7, AV$8=8)), 220*0.6, AND('Relevé pâture'!$E$13="Double mètre (cm)",'Relevé pâture'!$E25="> 70%", 'Relevé pâture'!$F25="Touffes", OR(AV$8=9, AV$8=10, AV$8=11)), 160*0.6, AND('Relevé pâture'!$E$13="Double mètre (cm)",'Relevé pâture'!$E25="< 70%", 'Relevé pâture'!$F25="Gazon", OR(AV$8=3, AV$8=4,AV$8=5, AV$8=6)), 200*0.6, AND('Relevé pâture'!$E$13="Double mètre (cm)",'Relevé pâture'!$E25="< 70%", 'Relevé pâture'!$F25="Gazon", OR(AV$8=6, AV$8=7, AV$8=8)), 240*0.6, AND('Relevé pâture'!$E$13="Double mètre (cm)",'Relevé pâture'!$E25="< 70%", 'Relevé pâture'!$F25="Gazon", OR(AV$8=9, AV$8=10, AV$8=11)), 180*0.6, AND('Relevé pâture'!$E$13="Double mètre (cm)",'Relevé pâture'!$E25="< 70%", 'Relevé pâture'!$F25="Touffes", OR(AV$8=3, AV$8=4,AV$8=5, AV$8=6)), 160*0.6, AND('Relevé pâture'!$E$13="Double mètre (cm)",'Relevé pâture'!$E25="< 70%", 'Relevé pâture'!$F25="Touffes", OR(AV$8=6, AV$8=7, AV$8=8)), 200*0.6, AND('Relevé pâture'!$E$13="Double mètre (cm)",'Relevé pâture'!$E25="< 70%", 'Relevé pâture'!$F25="Touffes", OR(AV$8=9, AV$8=10, AV$8=11)), 140*0.6, AND('Relevé pâture'!$E$13="Herbomètre (clics)",'Relevé pâture'!$E25="> 70%", 'Relevé pâture'!$F25="Gazon", OR(AV$8=3, AV$8=4,AV$8=5, AV$8=6)), 220*0.5, AND('Relevé pâture'!$E$13="Herbomètre (clics)",'Relevé pâture'!$E25="> 70%", 'Relevé pâture'!$F25="Gazon", OR(AV$8=6, AV$8=7, AV$8=8)), 260*0.5, AND('Relevé pâture'!$E$13="Herbomètre (clics)",'Relevé pâture'!$E25="> 70%", 'Relevé pâture'!$F25="Gazon", OR(AV$8=9, AV$8=10, AV$8=11)), 200*0.5, AND('Relevé pâture'!$E$13="Herbomètre (clics)",'Relevé pâture'!$E25="> 70%", 'Relevé pâture'!$F25="Touffes", OR(AV$8=3, AV$8=4,AV$8=5, AV$8=6)), 180*0.5, AND('Relevé pâture'!$E$13="Herbomètre (clics)",'Relevé pâture'!$E25="> 70%", 'Relevé pâture'!$F25="Touffes", OR(AV$8=6, AV$8=7, AV$8=8)), 220*0.5, AND('Relevé pâture'!$E$13="Herbomètre (clics)",'Relevé pâture'!$E25="> 70%", 'Relevé pâture'!$F25="Touffes", OR(AV$8=9, AV$8=10, AV$8=11)), 160*0.5, AND('Relevé pâture'!$E$13="Herbomètre (clics)",'Relevé pâture'!$E25="< 70%", 'Relevé pâture'!$F25="Gazon", OR(AV$8=3, AV$8=4,AV$8=5, AV$8=6)), 200*0.5, AND('Relevé pâture'!$E$13="Herbomètre (clics)",'Relevé pâture'!$E25="< 70%", 'Relevé pâture'!$F25="Gazon", OR(AV$8=6, AV$8=7, AV$8=8)), 240*0.5, AND('Relevé pâture'!$E$13="Herbomètre (clics)",'Relevé pâture'!$E25="< 70%", 'Relevé pâture'!$F25="Gazon", OR(AV$8=9, AV$8=10, AV$8=11)), 180*0.5, AND('Relevé pâture'!$E$13="Herbomètre (clics)",'Relevé pâture'!$E25="< 70%", 'Relevé pâture'!$F25="Touffes", OR(AV$8=3, AV$8=4,AV$8=5, AV$8=6)), 160*0.5, AND('Relevé pâture'!$E$13="Herbomètre (clics)",'Relevé pâture'!$E25="< 70%", 'Relevé pâture'!$F25="Touffes", OR(AV$8=6, AV$8=7, AV$8=8)), 200*0.5, AND('Relevé pâture'!$E$13="Herbomètre (clics)",'Relevé pâture'!$E25="< 70%", 'Relevé pâture'!$F25="Touffes", OR(AV$8=9, AV$8=10, AV$8=11)), 140*0.5, TRUE," " ) ->  | AX10: =IF(AND('Relevé pâture'!BH25="Rien", 'Relevé pâture'!BG25>'Relevé pâture'!BE25, ('Relevé pâture'!BG25-'Relevé pâture'!BE25)<>0), ('Relevé pâture'!BG25-'Relevé pâture'!BE25)/('Relevé pâture'!BG$23-'Relevé pâture'!BE$23)*AY10, "" ) ->  | AY10: =_xlfn.IFS( AND('Relevé pâture'!$E$13="Herbomètre (cm)",'Relevé pâture'!$E25="> 70%", 'Relevé pâture'!$F25="Gazon", OR(AX$8=3, AX$8=4,AX$8=5, AX$8=6)), 220, AND('Relevé pâture'!$E$13="Herbomètre (cm)",'Relevé pâture'!$E25="> 70%", 'Relevé pâture'!$F25="Gazon", OR(AX$8=6, AX$8=7, AX$8=8)), 260, AND('Relevé pâture'!$E$13="Herbomètre (cm)",'Relevé pâture'!$E25="> 70%", 'Relevé pâture'!$F25="Gazon", OR(AX$8=9, AX$8=10, AX$8=11)), 200, AND('Relevé pâture'!$E$13="Herbomètre (cm)",'Relevé pâture'!$E25="> 70%", 'Relevé pâture'!$F25="Touffes", OR(AX$8=3, AX$8=4,AX$8=5, AX$8=6)), 180, AND('Relevé pâture'!$E$13="Herbomètre (cm)",'Relevé pâture'!$E25="> 70%", 'Relevé pâture'!$F25="Touffes", OR(AX$8=6, AX$8=7, AX$8=8)), 220, AND('Relevé pâture'!$E$13="Herbomètre (cm)",'Relevé pâture'!$E25="> 70%", 'Relevé pâture'!$F25="Touffes", OR(AX$8=9, AX$8=10, AX$8=11)), 160, AND('Relevé pâture'!$E$13="Herbomètre (cm)",'Relevé pâture'!$E25="< 70%", 'Relevé pâture'!$F25="Gazon", OR(AX$8=3, AX$8=4,AX$8=5, AX$8=6)), 200, AND('Relevé pâture'!$E$13="Herbomètre (cm)",'Relevé pâture'!$E25="< 70%", 'Relevé pâture'!$F25="Gazon", OR(AX$8=6, AX$8=7, AX$8=8)), 240, AND('Relevé pâture'!$E$13="Herbomètre (cm)",'Relevé pâture'!$E25="< 70%", 'Relevé pâture'!$F25="Gazon", OR(AX$8=9, AX$8=10, AX$8=11)), 180, AND('Relevé pâture'!$E$13="Herbomètre (cm)",'Relevé pâture'!$E25="< 70%", 'Relevé pâture'!$F25="Touffes", OR(AX$8=3, AX$8=4,AX$8=5, AX$8=6)), 160, AND('Relevé pâture'!$E$13="Herbomètre (cm)",'Relevé pâture'!$E25="< 70%", 'Relevé pâture'!$F25="Touffes", OR(AX$8=6, AX$8=7, AX$8=8)), 200, AND('Relevé pâture'!$E$13="Herbomètre (cm)",'Relevé pâture'!$E25="< 70%", 'Relevé pâture'!$F25="Touffes", OR(AX$8=9, AX$8=10, AX$8=11)), 140, AND('Relevé pâture'!$E$13="Double mètre (cm)",'Relevé pâture'!$E25="> 70%", 'Relevé pâture'!$F25="Gazon", OR(AX$8=3, AX$8=4,AX$8=5, AX$8=6)), 220*0.6, AND('Relevé pâture'!$E$13="Double mètre (cm)",'Relevé pâture'!$E25="> 70%", 'Relevé pâture'!$F25="Gazon", OR(AX$8=6, AX$8=7, AX$8=8)), 260*0.6, AND('Relevé pâture'!$E$13="Double mètre (cm)",'Relevé pâture'!$E25="> 70%", 'Relevé pâture'!$F25="Gazon", OR(AX$8=9, AX$8=10, AX$8=11)), 200*0.6, AND('Relevé pâture'!$E$13="Double mètre (cm)",'Relevé pâture'!$E25="> 70%", 'Relevé pâture'!$F25="Touffes", OR(AX$8=3, AX$8=4,AX$8=5, AX$8=6)), 180*0.6, AND('Relevé pâture'!$E$13="Double mètre (cm)",'Relevé pâture'!$E25="> 70%", 'Relevé pâture'!$F25="Touffes", OR(AX$8=6, AX$8=7, AX$8=8)), 220*0.6, AND('Relevé pâture'!$E$13="Double mètre (cm)",'Relevé pâture'!$E25="> 70%", 'Relevé pâture'!$F25="Touffes", OR(AX$8=9, AX$8=10, AX$8=11)), 160*0.6, AND('Relevé pâture'!$E$13="Double mètre (cm)",'Relevé pâture'!$E25="< 70%", 'Relevé pâture'!$F25="Gazon", OR(AX$8=3, AX$8=4,AX$8=5, AX$8=6)), 200*0.6, AND('Relevé pâture'!$E$13="Double mètre (cm)",'Relevé pâture'!$E25="< 70%", 'Relevé pâture'!$F25="Gazon", OR(AX$8=6, AX$8=7, AX$8=8)), 240*0.6, AND('Relevé pâture'!$E$13="Double mètre (cm)",'Relevé pâture'!$E25="< 70%", 'Relevé pâture'!$F25="Gazon", OR(AX$8=9, AX$8=10, AX$8=11)), 180*0.6, AND('Relevé pâture'!$E$13="Double mètre (cm)",'Relevé pâture'!$E25="< 70%", 'Relevé pâture'!$F25="Touffes", OR(AX$8=3, AX$8=4,AX$8=5, AX$8=6)), 160*0.6, AND('Relevé pâture'!$E$13="Double mètre (cm)",'Relevé pâture'!$E25="< 70%", 'Relevé pâture'!$F25="Touffes", OR(AX$8=6, AX$8=7, AX$8=8)), 200*0.6, AND('Relevé pâture'!$E$13="Double mètre (cm)",'Relevé pâture'!$E25="< 70%", 'Relevé pâture'!$F25="Touffes", OR(AX$8=9, AX$8=10, AX$8=11)), 140*0.6, AND('Relevé pâture'!$E$13="Herbomètre (clics)",'Relevé pâture'!$E25="> 70%", 'Relevé pâture'!$F25="Gazon", OR(AX$8=3, AX$8=4,AX$8=5, AX$8=6)), 220*0.5, AND('Relevé pâture'!$E$13="Herbomètre (clics)",'Relevé pâture'!$E25="> 70%", 'Relevé pâture'!$F25="Gazon", OR(AX$8=6, AX$8=7, AX$8=8)), 260*0.5, AND('Relevé pâture'!$E$13="Herbomètre (clics)",'Relevé pâture'!$E25="> 70%", 'Relevé pâture'!$F25="Gazon", OR(AX$8=9, AX$8=10, AX$8=11)), 200*0.5, AND('Relevé pâture'!$E$13="Herbomètre (clics)",'Relevé pâture'!$E25="> 70%", 'Relevé pâture'!$F25="Touffes", OR(AX$8=3, AX$8=4,AX$8=5, AX$8=6)), 180*0.5, AND('Relevé pâture'!$E$13="Herbomètre (clics)",'Relevé pâture'!$E25="> 70%", 'Relevé pâture'!$F25="Touffes", OR(AX$8=6, AX$8=7, AX$8=8)), 220*0.5, AND('Relevé pâture'!$E$13="Herbomètre (clics)",'Relevé pâture'!$E25="> 70%", 'Relevé pâture'!$F25="Touffes", OR(AX$8=9, AX$8=10, AX$8=11)), 160*0.5, AND('Relevé pâture'!$E$13="Herbomètre (clics)",'Relevé pâture'!$E25="< 70%", 'Relevé pâture'!$F25="Gazon", OR(AX$8=3, AX$8=4,AX$8=5, AX$8=6)), 200*0.5, AND('Relevé pâture'!$E$13="Herbomètre (clics)",'Relevé pâture'!$E25="< 70%", 'Relevé pâture'!$F25="Gazon", OR(AX$8=6, AX$8=7, AX$8=8)), 240*0.5, AND('Relevé pâture'!$E$13="Herbomètre (clics)",'Relevé pâture'!$E25="< 70%", 'Relevé pâture'!$F25="Gazon", OR(AX$8=9, AX$8=10, AX$8=11)), 180*0.5, AND('Relevé pâture'!$E$13="Herbomètre (clics)",'Relevé pâture'!$E25="< 70%", 'Relevé pâture'!$F25="Touffes", OR(AX$8=3, AX$8=4,AX$8=5, AX$8=6)), 160*0.5, AND('Relevé pâture'!$E$13="Herbomètre (clics)",'Relevé pâture'!$E25="< 70%", 'Relevé pâture'!$F25="Touffes", OR(AX$8=6, AX$8=7, AX$8=8)), 200*0.5, AND('Relevé pâture'!$E$13="Herbomètre (clics)",'Relevé pâture'!$E25="< 70%", 'Relevé pâture'!$F25="Touffes", OR(AX$8=9, AX$8=10, AX$8=11)), 140*0.5, TRUE," " ) ->  | AZ10: =IF(AND('Relevé pâture'!BJ25="Rien", 'Relevé pâture'!BI25>'Relevé pâture'!BG25, ('Relevé pâture'!BI25-'Relevé pâture'!BG25)<>0), ('Relevé pâture'!BI25-'Relevé pâture'!BG25)/('Relevé pâture'!BI$23-'Relevé pâture'!BG$23)*BA10, "" ) ->  | BA10: =_xlfn.IFS( AND('Relevé pâture'!$E$13="Herbomètre (cm)",'Relevé pâture'!$E25="> 70%", 'Relevé pâture'!$F25="Gazon", OR(AZ$8=3, AZ$8=4,AZ$8=5, AZ$8=6)), 220, AND('Relevé pâture'!$E$13="Herbomètre (cm)",'Relevé pâture'!$E25="> 70%", 'Relevé pâture'!$F25="Gazon", OR(AZ$8=6, AZ$8=7, AZ$8=8)), 260, AND('Relevé pâture'!$E$13="Herbomètre (cm)",'Relevé pâture'!$E25="> 70%", 'Relevé pâture'!$F25="Gazon", OR(AZ$8=9, AZ$8=10, AZ$8=11)), 200, AND('Relevé pâture'!$E$13="Herbomètre (cm)",'Relevé pâture'!$E25="> 70%", 'Relevé pâture'!$F25="Touffes", OR(AZ$8=3, AZ$8=4,AZ$8=5, AZ$8=6)), 180, AND('Relevé pâture'!$E$13="Herbomètre (cm)",'Relevé pâture'!$E25="> 70%", 'Relevé pâture'!$F25="Touffes", OR(AZ$8=6, AZ$8=7, AZ$8=8)), 220, AND('Relevé pâture'!$E$13="Herbomètre (cm)",'Relevé pâture'!$E25="> 70%", 'Relevé pâture'!$F25="Touffes", OR(AZ$8=9, AZ$8=10, AZ$8=11)), 160, AND('Relevé pâture'!$E$13="Herbomètre (cm)",'Relevé pâture'!$E25="< 70%", 'Relevé pâture'!$F25="Gazon", OR(AZ$8=3, AZ$8=4,AZ$8=5, AZ$8=6)), 200, AND('Relevé pâture'!$E$13="Herbomètre (cm)",'Relevé pâture'!$E25="< 70%", 'Relevé pâture'!$F25="Gazon", OR(AZ$8=6, AZ$8=7, AZ$8=8)), 240, AND('Relevé pâture'!$E$13="Herbomètre (cm)",'Relevé pâture'!$E25="< 70%", 'Relevé pâture'!$F25="Gazon", OR(AZ$8=9, AZ$8=10, AZ$8=11)), 180, AND('Relevé pâture'!$E$13="Herbomètre (cm)",'Relevé pâture'!$E25="< 70%", 'Relevé pâture'!$F25="Touffes", OR(AZ$8=3, AZ$8=4,AZ$8=5, AZ$8=6)), 160, AND('Relevé pâture'!$E$13="Herbomètre (cm)",'Relevé pâture'!$E25="< 70%", 'Relevé pâture'!$F25="Touffes", OR(AZ$8=6, AZ$8=7, AZ$8=8)), 200, AND('Relevé pâture'!$E$13="Herbomètre (cm)",'Relevé pâture'!$E25="< 70%", 'Relevé pâture'!$F25="Touffes", OR(AZ$8=9, AZ$8=10, AZ$8=11)), 140, AND('Relevé pâture'!$E$13="Double mètre (cm)",'Relevé pâture'!$E25="> 70%", 'Relevé pâture'!$F25="Gazon", OR(AZ$8=3, AZ$8=4,AZ$8=5, AZ$8=6)), 220*0.6, AND('Relevé pâture'!$E$13="Double mètre (cm)",'Relevé pâture'!$E25="> 70%", 'Relevé pâture'!$F25="Gazon", OR(AZ$8=6, AZ$8=7, AZ$8=8)), 260*0.6, AND('Relevé pâture'!$E$13="Double mètre (cm)",'Relevé pâture'!$E25="> 70%", 'Relevé pâture'!$F25="Gazon", OR(AZ$8=9, AZ$8=10, AZ$8=11)), 200*0.6, AND('Relevé pâture'!$E$13="Double mètre (cm)",'Relevé pâture'!$E25="> 70%", 'Relevé pâture'!$F25="Touffes", OR(AZ$8=3, AZ$8=4,AZ$8=5, AZ$8=6)), 180*0.6, AND('Relevé pâture'!$E$13="Double mètre (cm)",'Relevé pâture'!$E25="> 70%", 'Relevé pâture'!$F25="Touffes", OR(AZ$8=6, AZ$8=7, AZ$8=8)), 220*0.6, AND('Relevé pâture'!$E$13="Double mètre (cm)",'Relevé pâture'!$E25="> 70%", 'Relevé pâture'!$F25="Touffes", OR(AZ$8=9, AZ$8=10, AZ$8=11)), 160*0.6, AND('Relevé pâture'!$E$13="Double mètre (cm)",'Relevé pâture'!$E25="< 70%", 'Relevé pâture'!$F25="Gazon", OR(AZ$8=3, AZ$8=4,AZ$8=5, AZ$8=6)), 200*0.6, AND('Relevé pâture'!$E$13="Double mètre (cm)",'Relevé pâture'!$E25="< 70%", 'Relevé pâture'!$F25="Gazon", OR(AZ$8=6, AZ$8=7, AZ$8=8)), 240*0.6, AND('Relevé pâture'!$E$13="Double mètre (cm)",'Relevé pâture'!$E25="< 70%", 'Relevé pâture'!$F25="Gazon", OR(AZ$8=9, AZ$8=10, AZ$8=11)), 180*0.6, AND('Relevé pâture'!$E$13="Double mètre (cm)",'Relevé pâture'!$E25="< 70%", 'Relevé pâture'!$F25="Touffes", OR(AZ$8=3, AZ$8=4,AZ$8=5, AZ$8=6)), 160*0.6, AND('Relevé pâture'!$E$13="Double mètre (cm)",'Relevé pâture'!$E25="< 70%", 'Relevé pâture'!$F25="Touffes", OR(AZ$8=6, AZ$8=7, AZ$8=8)), 200*0.6, AND('Relevé pâture'!$E$13="Double mètre (cm)",'Relevé pâture'!$E25="< 70%", 'Relevé pâture'!$F25="Touffes", OR(AZ$8=9, AZ$8=10, AZ$8=11)), 140*0.6, AND('Relevé pâture'!$E$13="Herbomètre (clics)",'Relevé pâture'!$E25="> 70%", 'Relevé pâture'!$F25="Gazon", OR(AZ$8=3, AZ$8=4,AZ$8=5, AZ$8=6)), 220*0.5, AND('Relevé pâture'!$E$13="Herbomètre (clics)",'Relevé pâture'!$E25="> 70%", 'Relevé pâture'!$F25="Gazon", OR(AZ$8=6, AZ$8=7, AZ$8=8)), 260*0.5, AND('Relevé pâture'!$E$13="Herbomètre (clics)",'Relevé pâture'!$E25="> 70%", 'Relevé pâture'!$F25="Gazon", OR(AZ$8=9, AZ$8=10, AZ$8=11)), 200*0.5, AND('Relevé pâture'!$E$13="Herbomètre (clics)",'Relevé pâture'!$E25="> 70%", 'Relevé pâture'!$F25="Touffes", OR(AZ$8=3, AZ$8=4,AZ$8=5, AZ$8=6)), 180*0.5, AND('Relevé pâture'!$E$13="Herbomètre (clics)",'Relevé pâture'!$E25="> 70%", 'Relevé pâture'!$F25="Touffes", OR(AZ$8=6, AZ$8=7, AZ$8=8)), 220*0.5, AND('Relevé pâture'!$E$13="Herbomètre (clics)",'Relevé pâture'!$E25="> 70%", 'Relevé pâture'!$F25="Touffes", OR(AZ$8=9, AZ$8=10, AZ$8=11)), 160*0.5, AND('Relevé pâture'!$E$13="Herbomètre (clics)",'Relevé pâture'!$E25="< 70%", 'Relevé pâture'!$F25="Gazon", OR(AZ$8=3, AZ$8=4,AZ$8=5, AZ$8=6)), 200*0.5, AND('Relevé pâture'!$E$13="Herbomètre (clics)",'Relevé pâture'!$E25="< 70%", 'Relevé pâture'!$F25="Gazon", OR(AZ$8=6, AZ$8=7, AZ$8=8)), 240*0.5, AND('Relevé pâture'!$E$13="Herbomètre (clics)",'Relevé pâture'!$E25="< 70%", 'Relevé pâture'!$F25="Gazon", OR(AZ$8=9, AZ$8=10, AZ$8=11)), 180*0.5, AND('Relevé pâture'!$E$13="Herbomètre (clics)",'Relevé pâture'!$E25="< 70%", 'Relevé pâture'!$F25="Touffes", OR(AZ$8=3, AZ$8=4,AZ$8=5, AZ$8=6)), 160*0.5, AND('Relevé pâture'!$E$13="Herbomètre (clics)",'Relevé pâture'!$E25="< 70%", 'Relevé pâture'!$F25="Touffes", OR(AZ$8=6, AZ$8=7, AZ$8=8)), 200*0.5, AND('Relevé pâture'!$E$13="Herbomètre (clics)",'Relevé pâture'!$E25="< 70%", 'Relevé pâture'!$F25="Touffes", OR(AZ$8=9, AZ$8=10, AZ$8=11)), 140*0.5, TRUE," " ) ->  | BB10: =IF(AND('Relevé pâture'!BL25="Rien", 'Relevé pâture'!BK25>'Relevé pâture'!BI25, ('Relevé pâture'!BK25-'Relevé pâture'!BI25)<>0), ('Relevé pâture'!BK25-'Relevé pâture'!BI25)/('Relevé pâture'!BK$23-'Relevé pâture'!BI$23)*BC10, "" ) ->  | BC10: =_xlfn.IFS( AND('Relevé pâture'!$E$13="Herbomètre (cm)",'Relevé pâture'!$E25="> 70%", 'Relevé pâture'!$F25="Gazon", OR(BB$8=3, BB$8=4,BB$8=5, BB$8=6)), 220, AND('Relevé pâture'!$E$13="Herbomètre (cm)",'Relevé pâture'!$E25="> 70%", 'Relevé pâture'!$F25="Gazon", OR(BB$8=6, BB$8=7, BB$8=8)), 260, AND('Relevé pâture'!$E$13="Herbomètre (cm)",'Relevé pâture'!$E25="> 70%", 'Relevé pâture'!$F25="Gazon", OR(BB$8=9, BB$8=10, BB$8=11)), 200, AND('Relevé pâture'!$E$13="Herbomètre (cm)",'Relevé pâture'!$E25="> 70%", 'Relevé pâture'!$F25="Touffes", OR(BB$8=3, BB$8=4,BB$8=5, BB$8=6)), 180, AND('Relevé pâture'!$E$13="Herbomètre (cm)",'Relevé pâture'!$E25="> 70%", 'Relevé pâture'!$F25="Touffes", OR(BB$8=6, BB$8=7, BB$8=8)), 220, AND('Relevé pâture'!$E$13="Herbomètre (cm)",'Relevé pâture'!$E25="> 70%", 'Relevé pâture'!$F25="Touffes", OR(BB$8=9, BB$8=10, BB$8=11)), 160, AND('Relevé pâture'!$E$13="Herbomètre (cm)",'Relevé pâture'!$E25="< 70%", 'Relevé pâture'!$F25="Gazon", OR(BB$8=3, BB$8=4,BB$8=5, BB$8=6)), 200, AND('Relevé pâture'!$E$13="Herbomètre (cm)",'Relevé pâture'!$E25="< 70%", 'Relevé pâture'!$F25="Gazon", OR(BB$8=6, BB$8=7, BB$8=8)), 240, AND('Relevé pâture'!$E$13="Herbomètre (cm)",'Relevé pâture'!$E25="< 70%", 'Relevé pâture'!$F25="Gazon", OR(BB$8=9, BB$8=10, BB$8=11)), 180, AND('Relevé pâture'!$E$13="Herbomètre (cm)",'Relevé pâture'!$E25="< 70%", 'Relevé pâture'!$F25="Touffes", OR(BB$8=3, BB$8=4,BB$8=5, BB$8=6)), 160, AND('Relevé pâture'!$E$13="Herbomètre (cm)",'Relevé pâture'!$E25="< 70%", 'Relevé pâture'!$F25="Touffes", OR(BB$8=6, BB$8=7, BB$8=8)), 200, AND('Relevé pâture'!$E$13="Herbomètre (cm)",'Relevé pâture'!$E25="< 70%", 'Relevé pâture'!$F25="Touffes", OR(BB$8=9, BB$8=10, BB$8=11)), 140, AND('Relevé pâture'!$E$13="Double mètre (cm)",'Relevé pâture'!$E25="> 70%", 'Relevé pâture'!$F25="Gazon", OR(BB$8=3, BB$8=4,BB$8=5, BB$8=6)), 220*0.6, AND('Relevé pâture'!$E$13="Double mètre (cm)",'Relevé pâture'!$E25="> 70%", 'Relevé pâture'!$F25="Gazon", OR(BB$8=6, BB$8=7, BB$8=8)), 260*0.6, AND('Relevé pâture'!$E$13="Double mètre (cm)",'Relevé pâture'!$E25="> 70%", 'Relevé pâture'!$F25="Gazon", OR(BB$8=9, BB$8=10, BB$8=11)), 200*0.6, AND('Relevé pâture'!$E$13="Double mètre (cm)",'Relevé pâture'!$E25="> 70%", 'Relevé pâture'!$F25="Touffes", OR(BB$8=3, BB$8=4,BB$8=5, BB$8=6)), 180*0.6, AND('Relevé pâture'!$E$13="Double mètre (cm)",'Relevé pâture'!$E25="> 70%", 'Relevé pâture'!$F25="Touffes", OR(BB$8=6, BB$8=7, BB$8=8)), 220*0.6, AND('Relevé pâture'!$E$13="Double mètre (cm)",'Relevé pâture'!$E25="> 70%", 'Relevé pâture'!$F25="Touffes", OR(BB$8=9, BB$8=10, BB$8=11)), 160*0.6, AND('Relevé pâture'!$E$13="Double mètre (cm)",'Relevé pâture'!$E25="< 70%", 'Relevé pâture'!$F25="Gazon", OR(BB$8=3, BB$8=4,BB$8=5, BB$8=6)), 200*0.6, AND('Relevé pâture'!$E$13="Double mètre (cm)",'Relevé pâture'!$E25="< 70%", 'Relevé pâture'!$F25="Gazon", OR(BB$8=6, BB$8=7, BB$8=8)), 240*0.6, AND('Relevé pâture'!$E$13="Double mètre (cm)",'Relevé pâture'!$E25="< 70%", 'Relevé pâture'!$F25="Gazon", OR(BB$8=9, BB$8=10, BB$8=11)), 180*0.6, AND('Relevé pâture'!$E$13="Double mètre (cm)",'Relevé pâture'!$E25="< 70%", 'Relevé pâture'!$F25="Touffes", OR(BB$8=3, BB$8=4,BB$8=5, BB$8=6)), 160*0.6, AND('Relevé pâture'!$E$13="Double mètre (cm)",'Relevé pâture'!$E25="< 70%", 'Relevé pâture'!$F25="Touffes", OR(BB$8=6, BB$8=7, BB$8=8)), 200*0.6, AND('Relevé pâture'!$E$13="Double mètre (cm)",'Relevé pâture'!$E25="< 70%", 'Relevé pâture'!$F25="Touffes", OR(BB$8=9, BB$8=10, BB$8=11)), 140*0.6, AND('Relevé pâture'!$E$13="Herbomètre (clics)",'Relevé pâture'!$E25="> 70%", 'Relevé pâture'!$F25="Gazon", OR(BB$8=3, BB$8=4,BB$8=5, BB$8=6)), 220*0.5, AND('Relevé pâture'!$E$13="Herbomètre (clics)",'Relevé pâture'!$E25="> 70%", 'Relevé pâture'!$F25="Gazon", OR(BB$8=6, BB$8=7, BB$8=8)), 260*0.5, AND('Relevé pâture'!$E$13="Herbomètre (clics)",'Relevé pâture'!$E25="> 70%", 'Relevé pâture'!$F25="Gazon", OR(BB$8=9, BB$8=10, BB$8=11)), 200*0.5, AND('Relevé pâture'!$E$13="Herbomètre (clics)",'Relevé pâture'!$E25="> 70%", 'Relevé pâture'!$F25="Touffes", OR(BB$8=3, BB$8=4,BB$8=5, BB$8=6)), 180*0.5, AND('Relevé pâture'!$E$13="Herbomètre (clics)",'Relevé pâture'!$E25="> 70%", 'Relevé pâture'!$F25="Touffes", OR(BB$8=6, BB$8=7, BB$8=8)), 220*0.5, AND('Relevé pâture'!$E$13="Herbomètre (clics)",'Relevé pâture'!$E25="> 70%", 'Relevé pâture'!$F25="Touffes", OR(BB$8=9, BB$8=10, BB$8=11)), 160*0.5, AND('Relevé pâture'!$E$13="Herbomètre (clics)",'Relevé pâture'!$E25="< 70%", 'Relevé pâture'!$F25="Gazon", OR(BB$8=3, BB$8=4,BB$8=5, BB$8=6)), 200*0.5, AND('Relevé pâture'!$E$13="Herbomètre (clics)",'Relevé pâture'!$E25="< 70%", 'Relevé pâture'!$F25="Gazon", OR(BB$8=6, BB$8=7, BB$8=8)), 240*0.5, AND('Relevé pâture'!$E$13="Herbomètre (clics)",'Relevé pâture'!$E25="< 70%", 'Relevé pâture'!$F25="Gazon", OR(BB$8=9, BB$8=10, BB$8=11)), 180*0.5, AND('Relevé pâture'!$E$13="Herbomètre (clics)",'Relevé pâture'!$E25="< 70%", 'Relevé pâture'!$F25="Touffes", OR(BB$8=3, BB$8=4,BB$8=5, BB$8=6)), 160*0.5, AND('Relevé pâture'!$E$13="Herbomètre (clics)",'Relevé pâture'!$E25="< 70%", 'Relevé pâture'!$F25="Touffes", OR(BB$8=6, BB$8=7, BB$8=8)), 200*0.5, AND('Relevé pâture'!$E$13="Herbomètre (clics)",'Relevé pâture'!$E25="< 70%", 'Relevé pâture'!$F25="Touffes", OR(BB$8=9, BB$8=10, BB$8=11)), 140*0.5, TRUE," " ) ->  | BD10: =IF(AND('Relevé pâture'!BN25="Rien", 'Relevé pâture'!BM25>'Relevé pâture'!BK25, ('Relevé pâture'!BM25-'Relevé pâture'!BK25)<>0), ('Relevé pâture'!BM25-'Relevé pâture'!BK25)/('Relevé pâture'!BM$23-'Relevé pâture'!BK$23)*BE10, "" ) ->  | BE10: =_xlfn.IFS( AND('Relevé pâture'!$E$13="Herbomètre (cm)",'Relevé pâture'!$E25="> 70%", 'Relevé pâture'!$F25="Gazon", OR(BD$8=3, BD$8=4,BD$8=5, BD$8=6)), 220, AND('Relevé pâture'!$E$13="Herbomètre (cm)",'Relevé pâture'!$E25="> 70%", 'Relevé pâture'!$F25="Gazon", OR(BD$8=6, BD$8=7, BD$8=8)), 260, AND('Relevé pâture'!$E$13="Herbomètre (cm)",'Relevé pâture'!$E25="> 70%", 'Relevé pâture'!$F25="Gazon", OR(BD$8=9, BD$8=10, BD$8=11)), 200, AND('Relevé pâture'!$E$13="Herbomètre (cm)",'Relevé pâture'!$E25="> 70%", 'Relevé pâture'!$F25="Touffes", OR(BD$8=3, BD$8=4,BD$8=5, BD$8=6)), 180, AND('Relevé pâture'!$E$13="Herbomètre (cm)",'Relevé pâture'!$E25="> 70%", 'Relevé pâture'!$F25="Touffes", OR(BD$8=6, BD$8=7, BD$8=8)), 220, AND('Relevé pâture'!$E$13="Herbomètre (cm)",'Relevé pâture'!$E25="> 70%", 'Relevé pâture'!$F25="Touffes", OR(BD$8=9, BD$8=10, BD$8=11)), 160, AND('Relevé pâture'!$E$13="Herbomètre (cm)",'Relevé pâture'!$E25="< 70%", 'Relevé pâture'!$F25="Gazon", OR(BD$8=3, BD$8=4,BD$8=5, BD$8=6)), 200, AND('Relevé pâture'!$E$13="Herbomètre (cm)",'Relevé pâture'!$E25="< 70%", 'Relevé pâture'!$F25="Gazon", OR(BD$8=6, BD$8=7, BD$8=8)), 240, AND('Relevé pâture'!$E$13="Herbomètre (cm)",'Relevé pâture'!$E25="< 70%", 'Relevé pâture'!$F25="Gazon", OR(BD$8=9, BD$8=10, BD$8=11)), 180, AND('Relevé pâture'!$E$13="Herbomètre (cm)",'Relevé pâture'!$E25="< 70%", 'Relevé pâture'!$F25="Touffes", OR(BD$8=3, BD$8=4,BD$8=5, BD$8=6)), 160, AND('Relevé pâture'!$E$13="Herbomètre (cm)",'Relevé pâture'!$E25="< 70%", 'Relevé pâture'!$F25="Touffes", OR(BD$8=6, BD$8=7, BD$8=8)), 200, AND('Relevé pâture'!$E$13="Herbomètre (cm)",'Relevé pâture'!$E25="< 70%", 'Relevé pâture'!$F25="Touffes", OR(BD$8=9, BD$8=10, BD$8=11)), 140, AND('Relevé pâture'!$E$13="Double mètre (cm)",'Relevé pâture'!$E25="> 70%", 'Relevé pâture'!$F25="Gazon", OR(BD$8=3, BD$8=4,BD$8=5, BD$8=6)), 220*0.6, AND('Relevé pâture'!$E$13="Double mètre (cm)",'Relevé pâture'!$E25="> 70%", 'Relevé pâture'!$F25="Gazon", OR(BD$8=6, BD$8=7, BD$8=8)), 260*0.6, AND('Relevé pâture'!$E$13="Double mètre (cm)",'Relevé pâture'!$E25="> 70%", 'Relevé pâture'!$F25="Gazon", OR(BD$8=9, BD$8=10, BD$8=11)), 200*0.6, AND('Relevé pâture'!$E$13="Double mètre (cm)",'Relevé pâture'!$E25="> 70%", 'Relevé pâture'!$F25="Touffes", OR(BD$8=3, BD$8=4,BD$8=5, BD$8=6)), 180*0.6, AND('Relevé pâture'!$E$13="Double mètre (cm)",'Relevé pâture'!$E25="> 70%", 'Relevé pâture'!$F25="Touffes", OR(BD$8=6, BD$8=7, BD$8=8)), 220*0.6, AND('Relevé pâture'!$E$13="Double mètre (cm)",'Relevé pâture'!$E25="> 70%", 'Relevé pâture'!$F25="Touffes", OR(BD$8=9, BD$8=10, BD$8=11)), 160*0.6, AND('Relevé pâture'!$E$13="Double mètre (cm)",'Relevé pâture'!$E25="< 70%", 'Relevé pâture'!$F25="Gazon", OR(BD$8=3, BD$8=4,BD$8=5, BD$8=6)), 200*0.6, AND('Relevé pâture'!$E$13="Double mètre (cm)",'Relevé pâture'!$E25="< 70%", 'Relevé pâture'!$F25="Gazon", OR(BD$8=6, BD$8=7, BD$8=8)), 240*0.6, AND('Relevé pâture'!$E$13="Double mètre (cm)",'Relevé pâture'!$E25="< 70%", 'Relevé pâture'!$F25="Gazon", OR(BD$8=9, BD$8=10, BD$8=11)), 180*0.6, AND('Relevé pâture'!$E$13="Double mètre (cm)",'Relevé pâture'!$E25="< 70%", 'Relevé pâture'!$F25="Touffes", OR(BD$8=3, BD$8=4,BD$8=5, BD$8=6)), 160*0.6, AND('Relevé pâture'!$E$13="Double mètre (cm)",'Relevé pâture'!$E25="< 70%", 'Relevé pâture'!$F25="Touffes", OR(BD$8=6, BD$8=7, BD$8=8)), 200*0.6, AND('Relevé pâture'!$E$13="Double mètre (cm)",'Relevé pâture'!$E25="< 70%", 'Relevé pâture'!$F25="Touffes", OR(BD$8=9, BD$8=10, BD$8=11)), 140*0.6, AND('Relevé pâture'!$E$13="Herbomètre (clics)",'Relevé pâture'!$E25="> 70%", 'Relevé pâture'!$F25="Gazon", OR(BD$8=3, BD$8=4,BD$8=5, BD$8=6)), 220*0.5, AND('Relevé pâture'!$E$13="Herbomètre (clics)",'Relevé pâture'!$E25="> 70%", 'Relevé pâture'!$F25="Gazon", OR(BD$8=6, BD$8=7, BD$8=8)), 260*0.5, AND('Relevé pâture'!$E$13="Herbomètre (clics)",'Relevé pâture'!$E25="> 70%", 'Relevé pâture'!$F25="Gazon", OR(BD$8=9, BD$8=10, BD$8=11)), 200*0.5, AND('Relevé pâture'!$E$13="Herbomètre (clics)",'Relevé pâture'!$E25="> 70%", 'Relevé pâture'!$F25="Touffes", OR(BD$8=3, BD$8=4,BD$8=5, BD$8=6)), 180*0.5, AND('Relevé pâture'!$E$13="Herbomètre (clics)",'Relevé pâture'!$E25="> 70%", 'Relevé pâture'!$F25="Touffes", OR(BD$8=6, BD$8=7, BD$8=8)), 220*0.5, AND('Relevé pâture'!$E$13="Herbomètre (clics)",'Relevé pâture'!$E25="> 70%", 'Relevé pâture'!$F25="Touffes", OR(BD$8=9, BD$8=10, BD$8=11)), 160*0.5, AND('Relevé pâture'!$E$13="Herbomètre (clics)",'Relevé pâture'!$E25="< 70%", 'Relevé pâture'!$F25="Gazon", OR(BD$8=3, BD$8=4,BD$8=5, BD$8=6)), 200*0.5, AND('Relevé pâture'!$E$13="Herbomètre (clics)",'Relevé pâture'!$E25="< 70%", 'Relevé pâture'!$F25="Gazon", OR(BD$8=6, BD$8=7, BD$8=8)), 240*0.5, AND('Relevé pâture'!$E$13="Herbomètre (clics)",'Relevé pâture'!$E25="< 70%", 'Relevé pâture'!$F25="Gazon", OR(BD$8=9, BD$8=10, BD$8=11)), 180*0.5, AND('Relevé pâture'!$E$13="Herbomètre (clics)",'Relevé pâture'!$E25="< 70%", 'Relevé pâture'!$F25="Touffes", OR(BD$8=3, BD$8=4,BD$8=5, BD$8=6)), 160*0.5, AND('Relevé pâture'!$E$13="Herbomètre (clics)",'Relevé pâture'!$E25="< 70%", 'Relevé pâture'!$F25="Touffes", OR(BD$8=6, BD$8=7, BD$8=8)), 200*0.5, AND('Relevé pâture'!$E$13="Herbomètre (clics)",'Relevé pâture'!$E25="< 70%", 'Relevé pâture'!$F25="Touffes", OR(BD$8=9, BD$8=10, BD$8=11)), 140*0.5, TRUE," " ) ->  | BF10: =IF(AND('Relevé pâture'!BP25="Rien", 'Relevé pâture'!BO25>'Relevé pâture'!BM25, ('Relevé pâture'!BO25-'Relevé pâture'!BM25)<>0), ('Relevé pâture'!BO25-'Relevé pâture'!BM25)/('Relevé pâture'!BO$23-'Relevé pâture'!BM$23)*BG10, "" ) ->  | BG10: =_xlfn.IFS( AND('Relevé pâture'!$E$13="Herbomètre (cm)",'Relevé pâture'!$E25="> 70%", 'Relevé pâture'!$F25="Gazon", OR(BF$8=3, BF$8=4,BF$8=5, BF$8=6)), 220, AND('Relevé pâture'!$E$13="Herbomètre (cm)",'Relevé pâture'!$E25="> 70%", 'Relevé pâture'!$F25="Gazon", OR(BF$8=6, BF$8=7, BF$8=8)), 260, AND('Relevé pâture'!$E$13="Herbomètre (cm)",'Relevé pâture'!$E25="> 70%", 'Relevé pâture'!$F25="Gazon", OR(BF$8=9, BF$8=10, BF$8=11)), 200, AND('Relevé pâture'!$E$13="Herbomètre (cm)",'Relevé pâture'!$E25="> 70%", 'Relevé pâture'!$F25="Touffes", OR(BF$8=3, BF$8=4,BF$8=5, BF$8=6)), 180, AND('Relevé pâture'!$E$13="Herbomètre (cm)",'Relevé pâture'!$E25="> 70%", 'Relevé pâture'!$F25="Touffes", OR(BF$8=6, BF$8=7, BF$8=8)), 220, AND('Relevé pâture'!$E$13="Herbomètre (cm)",'Relevé pâture'!$E25="> 70%", 'Relevé pâture'!$F25="Touffes", OR(BF$8=9, BF$8=10, BF$8=11)), 160, AND('Relevé pâture'!$E$13="Herbomètre (cm)",'Relevé pâture'!$E25="< 70%", 'Relevé pâture'!$F25="Gazon", OR(BF$8=3, BF$8=4,BF$8=5, BF$8=6)), 200, AND('Relevé pâture'!$E$13="Herbomètre (cm)",'Relevé pâture'!$E25="< 70%", 'Relevé pâture'!$F25="Gazon", OR(BF$8=6, BF$8=7, BF$8=8)), 240, AND('Relevé pâture'!$E$13="Herbomètre (cm)",'Relevé pâture'!$E25="< 70%", 'Relevé pâture'!$F25="Gazon", OR(BF$8=9, BF$8=10, BF$8=11)), 180, AND('Relevé pâture'!$E$13="Herbomètre (cm)",'Relevé pâture'!$E25="< 70%", 'Relevé pâture'!$F25="Touffes", OR(BF$8=3, BF$8=4,BF$8=5, BF$8=6)), 160, AND('Relevé pâture'!$E$13="Herbomètre (cm)",'Relevé pâture'!$E25="< 70%", 'Relevé pâture'!$F25="Touffes", OR(BF$8=6, BF$8=7, BF$8=8)), 200, AND('Relevé pâture'!$E$13="Herbomètre (cm)",'Relevé pâture'!$E25="< 70%", 'Relevé pâture'!$F25="Touffes", OR(BF$8=9, BF$8=10, BF$8=11)), 140, AND('Relevé pâture'!$E$13="Double mètre (cm)",'Relevé pâture'!$E25="> 70%", 'Relevé pâture'!$F25="Gazon", OR(BF$8=3, BF$8=4,BF$8=5, BF$8=6)), 220*0.6, AND('Relevé pâture'!$E$13="Double mètre (cm)",'Relevé pâture'!$E25="> 70%", 'Relevé pâture'!$F25="Gazon", OR(BF$8=6, BF$8=7, BF$8=8)), 260*0.6, AND('Relevé pâture'!$E$13="Double mètre (cm)",'Relevé pâture'!$E25="> 70%", 'Relevé pâture'!$F25="Gazon", OR(BF$8=9, BF$8=10, BF$8=11)), 200*0.6, AND('Relevé pâture'!$E$13="Double mètre (cm)",'Relevé pâture'!$E25="> 70%", 'Relevé pâture'!$F25="Touffes", OR(BF$8=3, BF$8=4,BF$8=5, BF$8=6)), 180*0.6, AND('Relevé pâture'!$E$13="Double mètre (cm)",'Relevé pâture'!$E25="> 70%", 'Relevé pâture'!$F25="Touffes", OR(BF$8=6, BF$8=7, BF$8=8)), 220*0.6, AND('Relevé pâture'!$E$13="Double mètre (cm)",'Relevé pâture'!$E25="> 70%", 'Relevé pâture'!$F25="Touffes", OR(BF$8=9, BF$8=10, BF$8=11)), 160*0.6, AND('Relevé pâture'!$E$13="Double mètre (cm)",'Relevé pâture'!$E25="< 70%", 'Relevé pâture'!$F25="Gazon", OR(BF$8=3, BF$8=4,BF$8=5, BF$8=6)), 200*0.6, AND('Relevé pâture'!$E$13="Double mètre (cm)",'Relevé pâture'!$E25="< 70%", 'Relevé pâture'!$F25="Gazon", OR(BF$8=6, BF$8=7, BF$8=8)), 240*0.6, AND('Relevé pâture'!$E$13="Double mètre (cm)",'Relevé pâture'!$E25="< 70%", 'Relevé pâture'!$F25="Gazon", OR(BF$8=9, BF$8=10, BF$8=11)), 180*0.6, AND('Relevé pâture'!$E$13="Double mètre (cm)",'Relevé pâture'!$E25="< 70%", 'Relevé pâture'!$F25="Touffes", OR(BF$8=3, BF$8=4,BF$8=5, BF$8=6)), 160*0.6, AND('Relevé pâture'!$E$13="Double mètre (cm)",'Relevé pâture'!$E25="< 70%", 'Relevé pâture'!$F25="Touffes", OR(BF$8=6, BF$8=7, BF$8=8)), 200*0.6, AND('Relevé pâture'!$E$13="Double mètre (cm)",'Relevé pâture'!$E25="< 70%", 'Relevé pâture'!$F25="Touffes", OR(BF$8=9, BF$8=10, BF$8=11)), 140*0.6, AND('Relevé pâture'!$E$13="Herbomètre (clics)",'Relevé pâture'!$E25="> 70%", 'Relevé pâture'!$F25="Gazon", OR(BF$8=3, BF$8=4,BF$8=5, BF$8=6)), 220*0.5, AND('Relevé pâture'!$E$13="Herbomètre (clics)",'Relevé pâture'!$E25="> 70%", 'Relevé pâture'!$F25="Gazon", OR(BF$8=6, BF$8=7, BF$8=8)), 260*0.5, AND('Relevé pâture'!$E$13="Herbomètre (clics)",'Relevé pâture'!$E25="> 70%", 'Relevé pâture'!$F25="Gazon", OR(BF$8=9, BF$8=10, BF$8=11)), 200*0.5, AND('Relevé pâture'!$E$13="Herbomètre (clics)",'Relevé pâture'!$E25="> 70%", 'Relevé pâture'!$F25="Touffes", OR(BF$8=3, BF$8=4,BF$8=5, BF$8=6)), 180*0.5, AND('Relevé pâture'!$E$13="Herbomètre (clics)",'Relevé pâture'!$E25="> 70%", 'Relevé pâture'!$F25="Touffes", OR(BF$8=6, BF$8=7, BF$8=8)), 220*0.5, AND('Relevé pâture'!$E$13="Herbomètre (clics)",'Relevé pâture'!$E25="> 70%", 'Relevé pâture'!$F25="Touffes", OR(BF$8=9, BF$8=10, BF$8=11)), 160*0.5, AND('Relevé pâture'!$E$13="Herbomètre (clics)",'Relevé pâture'!$E25="< 70%", 'Relevé pâture'!$F25="Gazon", OR(BF$8=3, BF$8=4,BF$8=5, BF$8=6)), 200*0.5, AND('Relevé pâture'!$E$13="Herbomètre (clics)",'Relevé pâture'!$E25="< 70%", 'Relevé pâture'!$F25="Gazon", OR(BF$8=6, BF$8=7, BF$8=8)), 240*0.5, AND('Relevé pâture'!$E$13="Herbomètre (clics)",'Relevé pâture'!$E25="< 70%", 'Relevé pâture'!$F25="Gazon", OR(BF$8=9, BF$8=10, BF$8=11)), 180*0.5, AND('Relevé pâture'!$E$13="Herbomètre (clics)",'Relevé pâture'!$E25="< 70%", 'Relevé pâture'!$F25="Touffes", OR(BF$8=3, BF$8=4,BF$8=5, BF$8=6)), 160*0.5, AND('Relevé pâture'!$E$13="Herbomètre (clics)",'Relevé pâture'!$E25="< 70%", 'Relevé pâture'!$F25="Touffes", OR(BF$8=6, BF$8=7, BF$8=8)), 200*0.5, AND('Relevé pâture'!$E$13="Herbomètre (clics)",'Relevé pâture'!$E25="< 70%", 'Relevé pâture'!$F25="Touffes", OR(BF$8=9, BF$8=10, BF$8=11)), 140*0.5, TRUE," " ) ->  | BH10: =IF(AND('Relevé pâture'!BR25="Rien", 'Relevé pâture'!BQ25>'Relevé pâture'!BO25, ('Relevé pâture'!BQ25-'Relevé pâture'!BO25)<>0), ('Relevé pâture'!BQ25-'Relevé pâture'!BO25)/('Relevé pâture'!BQ$23-'Relevé pâture'!BO$23)*BI10, "" ) ->  | BI10: =_xlfn.IFS( AND('Relevé pâture'!$E$13="Herbomètre (cm)",'Relevé pâture'!$E25="> 70%", 'Relevé pâture'!$F25="Gazon", OR(BH$8=3, BH$8=4,BH$8=5, BH$8=6)), 220, AND('Relevé pâture'!$E$13="Herbomètre (cm)",'Relevé pâture'!$E25="> 70%", 'Relevé pâture'!$F25="Gazon", OR(BH$8=6, BH$8=7, BH$8=8)), 260, AND('Relevé pâture'!$E$13="Herbomètre (cm)",'Relevé pâture'!$E25="> 70%", 'Relevé pâture'!$F25="Gazon", OR(BH$8=9, BH$8=10, BH$8=11)), 200, AND('Relevé pâture'!$E$13="Herbomètre (cm)",'Relevé pâture'!$E25="> 70%", 'Relevé pâture'!$F25="Touffes", OR(BH$8=3, BH$8=4,BH$8=5, BH$8=6)), 180, AND('Relevé pâture'!$E$13="Herbomètre (cm)",'Relevé pâture'!$E25="> 70%", 'Relevé pâture'!$F25="Touffes", OR(BH$8=6, BH$8=7, BH$8=8)), 220, AND('Relevé pâture'!$E$13="Herbomètre (cm)",'Relevé pâture'!$E25="> 70%", 'Relevé pâture'!$F25="Touffes", OR(BH$8=9, BH$8=10, BH$8=11)), 160, AND('Relevé pâture'!$E$13="Herbomètre (cm)",'Relevé pâture'!$E25="< 70%", 'Relevé pâture'!$F25="Gazon", OR(BH$8=3, BH$8=4,BH$8=5, BH$8=6)), 200, AND('Relevé pâture'!$E$13="Herbomètre (cm)",'Relevé pâture'!$E25="< 70%", 'Relevé pâture'!$F25="Gazon", OR(BH$8=6, BH$8=7, BH$8=8)), 240, AND('Relevé pâture'!$E$13="Herbomètre (cm)",'Relevé pâture'!$E25="< 70%", 'Relevé pâture'!$F25="Gazon", OR(BH$8=9, BH$8=10, BH$8=11)), 180, AND('Relevé pâture'!$E$13="Herbomètre (cm)",'Relevé pâture'!$E25="< 70%", 'Relevé pâture'!$F25="Touffes", OR(BH$8=3, BH$8=4,BH$8=5, BH$8=6)), 160, AND('Relevé pâture'!$E$13="Herbomètre (cm)",'Relevé pâture'!$E25="< 70%", 'Relevé pâture'!$F25="Touffes", OR(BH$8=6, BH$8=7, BH$8=8)), 200, AND('Relevé pâture'!$E$13="Herbomètre (cm)",'Relevé pâture'!$E25="< 70%", 'Relevé pâture'!$F25="Touffes", OR(BH$8=9, BH$8=10, BH$8=11)), 140, AND('Relevé pâture'!$E$13="Double mètre (cm)",'Relevé pâture'!$E25="> 70%", 'Relevé pâture'!$F25="Gazon", OR(BH$8=3, BH$8=4,BH$8=5, BH$8=6)), 220*0.6, AND('Relevé pâture'!$E$13="Double mètre (cm)",'Relevé pâture'!$E25="> 70%", 'Relevé pâture'!$F25="Gazon", OR(BH$8=6, BH$8=7, BH$8=8)), 260*0.6, AND('Relevé pâture'!$E$13="Double mètre (cm)",'Relevé pâture'!$E25="> 70%", 'Relevé pâture'!$F25="Gazon", OR(BH$8=9, BH$8=10, BH$8=11)), 200*0.6, AND('Relevé pâture'!$E$13="Double mètre (cm)",'Relevé pâture'!$E25="> 70%", 'Relevé pâture'!$F25="Touffes", OR(BH$8=3, BH$8=4,BH$8=5, BH$8=6)), 180*0.6, AND('Relevé pâture'!$E$13="Double mètre (cm)",'Relevé pâture'!$E25="> 70%", 'Relevé pâture'!$F25="Touffes", OR(BH$8=6, BH$8=7, BH$8=8)), 220*0.6, AND('Relevé pâture'!$E$13="Double mètre (cm)",'Relevé pâture'!$E25="> 70%", 'Relevé pâture'!$F25="Touffes", OR(BH$8=9, BH$8=10, BH$8=11)), 160*0.6, AND('Relevé pâture'!$E$13="Double mètre (cm)",'Relevé pâture'!$E25="< 70%", 'Relevé pâture'!$F25="Gazon", OR(BH$8=3, BH$8=4,BH$8=5, BH$8=6)), 200*0.6, AND('Relevé pâture'!$E$13="Double mètre (cm)",'Relevé pâture'!$E25="< 70%", 'Relevé pâture'!$F25="Gazon", OR(BH$8=6, BH$8=7, BH$8=8)), 240*0.6, AND('Relevé pâture'!$E$13="Double mètre (cm)",'Relevé pâture'!$E25="< 70%", 'Relevé pâture'!$F25="Gazon", OR(BH$8=9, BH$8=10, BH$8=11)), 180*0.6, AND('Relevé pâture'!$E$13="Double mètre (cm)",'Relevé pâture'!$E25="< 70%", 'Relevé pâture'!$F25="Touffes", OR(BH$8=3, BH$8=4,BH$8=5, BH$8=6)), 160*0.6, AND('Relevé pâture'!$E$13="Double mètre (cm)",'Relevé pâture'!$E25="< 70%", 'Relevé pâture'!$F25="Touffes", OR(BH$8=6, BH$8=7, BH$8=8)), 200*0.6, AND('Relevé pâture'!$E$13="Double mètre (cm)",'Relevé pâture'!$E25="< 70%", 'Relevé pâture'!$F25="Touffes", OR(BH$8=9, BH$8=10, BH$8=11)), 140*0.6, AND('Relevé pâture'!$E$13="Herbomètre (clics)",'Relevé pâture'!$E25="> 70%", 'Relevé pâture'!$F25="Gazon", OR(BH$8=3, BH$8=4,BH$8=5, BH$8=6)), 220*0.5, AND('Relevé pâture'!$E$13="Herbomètre (clics)",'Relevé pâture'!$E25="> 70%", 'Relevé pâture'!$F25="Gazon", OR(BH$8=6, BH$8=7, BH$8=8)), 260*0.5, AND('Relevé pâture'!$E$13="Herbomètre (clics)",'Relevé pâture'!$E25="> 70%", 'Relevé pâture'!$F25="Gazon", OR(BH$8=9, BH$8=10, BH$8=11)), 200*0.5, AND('Relevé pâture'!$E$13="Herbomètre (clics)",'Relevé pâture'!$E25="> 70%", 'Relevé pâture'!$F25="Touffes", OR(BH$8=3, BH$8=4,BH$8=5, BH$8=6)), 180*0.5, AND('Relevé pâture'!$E$13="Herbomètre (clics)",'Relevé pâture'!$E25="> 70%", 'Relevé pâture'!$F25="Touffes", OR(BH$8=6, BH$8=7, BH$8=8)), 220*0.5, AND('Relevé pâture'!$E$13="Herbomètre (clics)",'Relevé pâture'!$E25="> 70%", 'Relevé pâture'!$F25="Touffes", OR(BH$8=9, BH$8=10, BH$8=11)), 160*0.5, AND('Relevé pâture'!$E$13="Herbomètre (clics)",'Relevé pâture'!$E25="< 70%", 'Relevé pâture'!$F25="Gazon", OR(BH$8=3, BH$8=4,BH$8=5, BH$8=6)), 200*0.5, AND('Relevé pâture'!$E$13="Herbomètre (clics)",'Relevé pâture'!$E25="< 70%", 'Relevé pâture'!$F25="Gazon", OR(BH$8=6, BH$8=7, BH$8=8)), 240*0.5, AND('Relevé pâture'!$E$13="Herbomètre (clics)",'Relevé pâture'!$E25="< 70%", 'Relevé pâture'!$F25="Gazon", OR(BH$8=9, BH$8=10, BH$8=11)), 180*0.5, AND('Relevé pâture'!$E$13="Herbomètre (clics)",'Relevé pâture'!$E25="< 70%", 'Relevé pâture'!$F25="Touffes", OR(BH$8=3, BH$8=4,BH$8=5, BH$8=6)), 160*0.5, AND('Relevé pâture'!$E$13="Herbomètre (clics)",'Relevé pâture'!$E25="< 70%", 'Relevé pâture'!$F25="Touffes", OR(BH$8=6, BH$8=7, BH$8=8)), 200*0.5, AND('Relevé pâture'!$E$13="Herbomètre (clics)",'Relevé pâture'!$E25="< 70%", 'Relevé pâture'!$F25="Touffes", OR(BH$8=9, BH$8=10, BH$8=11)), 140*0.5, TRUE," " ) ->  | BJ10: =IF(AND('Relevé pâture'!BT25="Rien", 'Relevé pâture'!BS25>'Relevé pâture'!BQ25, ('Relevé pâture'!BS25-'Relevé pâture'!BQ25)<>0), ('Relevé pâture'!BS25-'Relevé pâture'!BQ25)/('Relevé pâture'!BS$23-'Relevé pâture'!BQ$23)*BK10, "" ) ->  | BK10: =_xlfn.IFS( AND('Relevé pâture'!$E$13="Herbomètre (cm)",'Relevé pâture'!$E25="> 70%", 'Relevé pâture'!$F25="Gazon", OR(BJ$8=3, BJ$8=4,BJ$8=5, BJ$8=6)), 220, AND('Relevé pâture'!$E$13="Herbomètre (cm)",'Relevé pâture'!$E25="> 70%", 'Relevé pâture'!$F25="Gazon", OR(BJ$8=6, BJ$8=7, BJ$8=8)), 260, AND('Relevé pâture'!$E$13="Herbomètre (cm)",'Relevé pâture'!$E25="> 70%", 'Relevé pâture'!$F25="Gazon", OR(BJ$8=9, BJ$8=10, BJ$8=11)), 200, AND('Relevé pâture'!$E$13="Herbomètre (cm)",'Relevé pâture'!$E25="> 70%", 'Relevé pâture'!$F25="Touffes", OR(BJ$8=3, BJ$8=4,BJ$8=5, BJ$8=6)), 180, AND('Relevé pâture'!$E$13="Herbomètre (cm)",'Relevé pâture'!$E25="> 70%", 'Relevé pâture'!$F25="Touffes", OR(BJ$8=6, BJ$8=7, BJ$8=8)), 220, AND('Relevé pâture'!$E$13="Herbomètre (cm)",'Relevé pâture'!$E25="> 70%", 'Relevé pâture'!$F25="Touffes", OR(BJ$8=9, BJ$8=10, BJ$8=11)), 160, AND('Relevé pâture'!$E$13="Herbomètre (cm)",'Relevé pâture'!$E25="< 70%", 'Relevé pâture'!$F25="Gazon", OR(BJ$8=3, BJ$8=4,BJ$8=5, BJ$8=6)), 200, AND('Relevé pâture'!$E$13="Herbomètre (cm)",'Relevé pâture'!$E25="< 70%", 'Relevé pâture'!$F25="Gazon", OR(BJ$8=6, BJ$8=7, BJ$8=8)), 240, AND('Relevé pâture'!$E$13="Herbomètre (cm)",'Relevé pâture'!$E25="< 70%", 'Relevé pâture'!$F25="Gazon", OR(BJ$8=9, BJ$8=10, BJ$8=11)), 180, AND('Relevé pâture'!$E$13="Herbomètre (cm)",'Relevé pâture'!$E25="< 70%", 'Relevé pâture'!$F25="Touffes", OR(BJ$8=3, BJ$8=4,BJ$8=5, BJ$8=6)), 160, AND('Relevé pâture'!$E$13="Herbomètre (cm)",'Relevé pâture'!$E25="< 70%", 'Relevé pâture'!$F25="Touffes", OR(BJ$8=6, BJ$8=7, BJ$8=8)), 200, AND('Relevé pâture'!$E$13="Herbomètre (cm)",'Relevé pâture'!$E25="< 70%", 'Relevé pâture'!$F25="Touffes", OR(BJ$8=9, BJ$8=10, BJ$8=11)), 140, AND('Relevé pâture'!$E$13="Double mètre (cm)",'Relevé pâture'!$E25="> 70%", 'Relevé pâture'!$F25="Gazon", OR(BJ$8=3, BJ$8=4,BJ$8=5, BJ$8=6)), 220*0.6, AND('Relevé pâture'!$E$13="Double mètre (cm)",'Relevé pâture'!$E25="> 70%", 'Relevé pâture'!$F25="Gazon", OR(BJ$8=6, BJ$8=7, BJ$8=8)), 260*0.6, AND('Relevé pâture'!$E$13="Double mètre (cm)",'Relevé pâture'!$E25="> 70%", 'Relevé pâture'!$F25="Gazon", OR(BJ$8=9, BJ$8=10, BJ$8=11)), 200*0.6, AND('Relevé pâture'!$E$13="Double mètre (cm)",'Relevé pâture'!$E25="> 70%", 'Relevé pâture'!$F25="Touffes", OR(BJ$8=3, BJ$8=4,BJ$8=5, BJ$8=6)), 180*0.6, AND('Relevé pâture'!$E$13="Double mètre (cm)",'Relevé pâture'!$E25="> 70%", 'Relevé pâture'!$F25="Touffes", OR(BJ$8=6, BJ$8=7, BJ$8=8)), 220*0.6, AND('Relevé pâture'!$E$13="Double mètre (cm)",'Relevé pâture'!$E25="> 70%", 'Relevé pâture'!$F25="Touffes", OR(BJ$8=9, BJ$8=10, BJ$8=11)), 160*0.6, AND('Relevé pâture'!$E$13="Double mètre (cm)",'Relevé pâture'!$E25="< 70%", 'Relevé pâture'!$F25="Gazon", OR(BJ$8=3, BJ$8=4,BJ$8=5, BJ$8=6)), 200*0.6, AND('Relevé pâture'!$E$13="Double mètre (cm)",'Relevé pâture'!$E25="< 70%", 'Relevé pâture'!$F25="Gazon", OR(BJ$8=6, BJ$8=7, BJ$8=8)), 240*0.6, AND('Relevé pâture'!$E$13="Double mètre (cm)",'Relevé pâture'!$E25="< 70%", 'Relevé pâture'!$F25="Gazon", OR(BJ$8=9, BJ$8=10, BJ$8=11)), 180*0.6, AND('Relevé pâture'!$E$13="Double mètre (cm)",'Relevé pâture'!$E25="< 70%", 'Relevé pâture'!$F25="Touffes", OR(BJ$8=3, BJ$8=4,BJ$8=5, BJ$8=6)), 160*0.6, AND('Relevé pâture'!$E$13="Double mètre (cm)",'Relevé pâture'!$E25="< 70%", 'Relevé pâture'!$F25="Touffes", OR(BJ$8=6, BJ$8=7, BJ$8=8)), 200*0.6, AND('Relevé pâture'!$E$13="Double mètre (cm)",'Relevé pâture'!$E25="< 70%", 'Relevé pâture'!$F25="Touffes", OR(BJ$8=9, BJ$8=10, BJ$8=11)), 140*0.6, AND('Relevé pâture'!$E$13="Herbomètre (clics)",'Relevé pâture'!$E25="> 70%", 'Relevé pâture'!$F25="Gazon", OR(BJ$8=3, BJ$8=4,BJ$8=5, BJ$8=6)), 220*0.5, AND('Relevé pâture'!$E$13="Herbomètre (clics)",'Relevé pâture'!$E25="> 70%", 'Relevé pâture'!$F25="Gazon", OR(BJ$8=6, BJ$8=7, BJ$8=8)), 260*0.5, AND('Relevé pâture'!$E$13="Herbomètre (clics)",'Relevé pâture'!$E25="> 70%", 'Relevé pâture'!$F25="Gazon", OR(BJ$8=9, BJ$8=10, BJ$8=11)), 200*0.5, AND('Relevé pâture'!$E$13="Herbomètre (clics)",'Relevé pâture'!$E25="> 70%", 'Relevé pâture'!$F25="Touffes", OR(BJ$8=3, BJ$8=4,BJ$8=5, BJ$8=6)), 180*0.5, AND('Relevé pâture'!$E$13="Herbomètre (clics)",'Relevé pâture'!$E25="> 70%", 'Relevé pâture'!$F25="Touffes", OR(BJ$8=6, BJ$8=7, BJ$8=8)), 220*0.5, AND('Relevé pâture'!$E$13="Herbomètre (clics)",'Relevé pâture'!$E25="> 70%", 'Relevé pâture'!$F25="Touffes", OR(BJ$8=9, BJ$8=10, BJ$8=11)), 160*0.5, AND('Relevé pâture'!$E$13="Herbomètre (clics)",'Relevé pâture'!$E25="< 70%", 'Relevé pâture'!$F25="Gazon", OR(BJ$8=3, BJ$8=4,BJ$8=5, BJ$8=6)), 200*0.5, AND('Relevé pâture'!$E$13="Herbomètre (clics)",'Relevé pâture'!$E25="< 70%", 'Relevé pâture'!$F25="Gazon", OR(BJ$8=6, BJ$8=7, BJ$8=8)), 240*0.5, AND('Relevé pâture'!$E$13="Herbomètre (clics)",'Relevé pâture'!$E25="< 70%", 'Relevé pâture'!$F25="Gazon", OR(BJ$8=9, BJ$8=10, BJ$8=11)), 180*0.5, AND('Relevé pâture'!$E$13="Herbomètre (clics)",'Relevé pâture'!$E25="< 70%", 'Relevé pâture'!$F25="Touffes", OR(BJ$8=3, BJ$8=4,BJ$8=5, BJ$8=6)), 160*0.5, AND('Relevé pâture'!$E$13="Herbomètre (clics)",'Relevé pâture'!$E25="< 70%", 'Relevé pâture'!$F25="Touffes", OR(BJ$8=6, BJ$8=7, BJ$8=8)), 200*0.5, AND('Relevé pâture'!$E$13="Herbomètre (clics)",'Relevé pâture'!$E25="< 70%", 'Relevé pâture'!$F25="Touffes", OR(BJ$8=9, BJ$8=10, BJ$8=11)), 140*0.5, TRUE," " ) ->  | BL10: =IF(AND('Relevé pâture'!BV25="Rien", 'Relevé pâture'!BU25>'Relevé pâture'!BS25, ('Relevé pâture'!BU25-'Relevé pâture'!BS25)<>0), ('Relevé pâture'!BU25-'Relevé pâture'!BS25)/('Relevé pâture'!BU$23-'Relevé pâture'!BS$23)*BM10, "" ) ->  | BM10: =_xlfn.IFS( AND('Relevé pâture'!$E$13="Herbomètre (cm)",'Relevé pâture'!$E25="> 70%", 'Relevé pâture'!$F25="Gazon", OR(BL$8=3, BL$8=4,BL$8=5, BL$8=6)), 220, AND('Relevé pâture'!$E$13="Herbomètre (cm)",'Relevé pâture'!$E25="> 70%", 'Relevé pâture'!$F25="Gazon", OR(BL$8=6, BL$8=7, BL$8=8)), 260, AND('Relevé pâture'!$E$13="Herbomètre (cm)",'Relevé pâture'!$E25="> 70%", 'Relevé pâture'!$F25="Gazon", OR(BL$8=9, BL$8=10, BL$8=11)), 200, AND('Relevé pâture'!$E$13="Herbomètre (cm)",'Relevé pâture'!$E25="> 70%", 'Relevé pâture'!$F25="Touffes", OR(BL$8=3, BL$8=4,BL$8=5, BL$8=6)), 180, AND('Relevé pâture'!$E$13="Herbomètre (cm)",'Relevé pâture'!$E25="> 70%", 'Relevé pâture'!$F25="Touffes", OR(BL$8=6, BL$8=7, BL$8=8)), 220, AND('Relevé pâture'!$E$13="Herbomètre (cm)",'Relevé pâture'!$E25="> 70%", 'Relevé pâture'!$F25="Touffes", OR(BL$8=9, BL$8=10, BL$8=11)), 160, AND('Relevé pâture'!$E$13="Herbomètre (cm)",'Relevé pâture'!$E25="< 70%", 'Relevé pâture'!$F25="Gazon", OR(BL$8=3, BL$8=4,BL$8=5, BL$8=6)), 200, AND('Relevé pâture'!$E$13="Herbomètre (cm)",'Relevé pâture'!$E25="< 70%", 'Relevé pâture'!$F25="Gazon", OR(BL$8=6, BL$8=7, BL$8=8)), 240, AND('Relevé pâture'!$E$13="Herbomètre (cm)",'Relevé pâture'!$E25="< 70%", 'Relevé pâture'!$F25="Gazon", OR(BL$8=9, BL$8=10, BL$8=11)), 180, AND('Relevé pâture'!$E$13="Herbomètre (cm)",'Relevé pâture'!$E25="< 70%", 'Relevé pâture'!$F25="Touffes", OR(BL$8=3, BL$8=4,BL$8=5, BL$8=6)), 160, AND('Relevé pâture'!$E$13="Herbomètre (cm)",'Relevé pâture'!$E25="< 70%", 'Relevé pâture'!$F25="Touffes", OR(BL$8=6, BL$8=7, BL$8=8)), 200, AND('Relevé pâture'!$E$13="Herbomètre (cm)",'Relevé pâture'!$E25="< 70%", 'Relevé pâture'!$F25="Touffes", OR(BL$8=9, BL$8=10, BL$8=11)), 140, AND('Relevé pâture'!$E$13="Double mètre (cm)",'Relevé pâture'!$E25="> 70%", 'Relevé pâture'!$F25="Gazon", OR(BL$8=3, BL$8=4,BL$8=5, BL$8=6)), 220*0.6, AND('Relevé pâture'!$E$13="Double mètre (cm)",'Relevé pâture'!$E25="> 70%", 'Relevé pâture'!$F25="Gazon", OR(BL$8=6, BL$8=7, BL$8=8)), 260*0.6, AND('Relevé pâture'!$E$13="Double mètre (cm)",'Relevé pâture'!$E25="> 70%", 'Relevé pâture'!$F25="Gazon", OR(BL$8=9, BL$8=10, BL$8=11)), 200*0.6, AND('Relevé pâture'!$E$13="Double mètre (cm)",'Relevé pâture'!$E25="> 70%", 'Relevé pâture'!$F25="Touffes", OR(BL$8=3, BL$8=4,BL$8=5, BL$8=6)), 180*0.6, AND('Relevé pâture'!$E$13="Double mètre (cm)",'Relevé pâture'!$E25="> 70%", 'Relevé pâture'!$F25="Touffes", OR(BL$8=6, BL$8=7, BL$8=8)), 220*0.6, AND('Relevé pâture'!$E$13="Double mètre (cm)",'Relevé pâture'!$E25="> 70%", 'Relevé pâture'!$F25="Touffes", OR(BL$8=9, BL$8=10, BL$8=11)), 160*0.6, AND('Relevé pâture'!$E$13="Double mètre (cm)",'Relevé pâture'!$E25="< 70%", 'Relevé pâture'!$F25="Gazon", OR(BL$8=3, BL$8=4,BL$8=5, BL$8=6)), 200*0.6, AND('Relevé pâture'!$E$13="Double mètre (cm)",'Relevé pâture'!$E25="< 70%", 'Relevé pâture'!$F25="Gazon", OR(BL$8=6, BL$8=7, BL$8=8)), 240*0.6, AND('Relevé pâture'!$E$13="Double mètre (cm)",'Relevé pâture'!$E25="< 70%", 'Relevé pâture'!$F25="Gazon", OR(BL$8=9, BL$8=10, BL$8=11)), 180*0.6, AND('Relevé pâture'!$E$13="Double mètre (cm)",'Relevé pâture'!$E25="< 70%", 'Relevé pâture'!$F25="Touffes", OR(BL$8=3, BL$8=4,BL$8=5, BL$8=6)), 160*0.6, AND('Relevé pâture'!$E$13="Double mètre (cm)",'Relevé pâture'!$E25="< 70%", 'Relevé pâture'!$F25="Touffes", OR(BL$8=6, BL$8=7, BL$8=8)), 200*0.6, AND('Relevé pâture'!$E$13="Double mètre (cm)",'Relevé pâture'!$E25="< 70%", 'Relevé pâture'!$F25="Touffes", OR(BL$8=9, BL$8=10, BL$8=11)), 140*0.6, AND('Relevé pâture'!$E$13="Herbomètre (clics)",'Relevé pâture'!$E25="> 70%", 'Relevé pâture'!$F25="Gazon", OR(BL$8=3, BL$8=4,BL$8=5, BL$8=6)), 220*0.5, AND('Relevé pâture'!$E$13="Herbomètre (clics)",'Relevé pâture'!$E25="> 70%", 'Relevé pâture'!$F25="Gazon", OR(BL$8=6, BL$8=7, BL$8=8)), 260*0.5, AND('Relevé pâture'!$E$13="Herbomètre (clics)",'Relevé pâture'!$E25="> 70%", 'Relevé pâture'!$F25="Gazon", OR(BL$8=9, BL$8=10, BL$8=11)), 200*0.5, AND('Relevé pâture'!$E$13="Herbomètre (clics)",'Relevé pâture'!$E25="> 70%", 'Relevé pâture'!$F25="Touffes", OR(BL$8=3, BL$8=4,BL$8=5, BL$8=6)), 180*0.5, AND('Relevé pâture'!$E$13="Herbomètre (clics)",'Relevé pâture'!$E25="> 70%", 'Relevé pâture'!$F25="Touffes", OR(BL$8=6, BL$8=7, BL$8=8)), 220*0.5, AND('Relevé pâture'!$E$13="Herbomètre (clics)",'Relevé pâture'!$E25="> 70%", 'Relevé pâture'!$F25="Touffes", OR(BL$8=9, BL$8=10, BL$8=11)), 160*0.5, AND('Relevé pâture'!$E$13="Herbomètre (clics)",'Relevé pâture'!$E25="< 70%", 'Relevé pâture'!$F25="Gazon", OR(BL$8=3, BL$8=4,BL$8=5, BL$8=6)), 200*0.5, AND('Relevé pâture'!$E$13="Herbomètre (clics)",'Relevé pâture'!$E25="< 70%", 'Relevé pâture'!$F25="Gazon", OR(BL$8=6, BL$8=7, BL$8=8)), 240*0.5, AND('Relevé pâture'!$E$13="Herbomètre (clics)",'Relevé pâture'!$E25="< 70%", 'Relevé pâture'!$F25="Gazon", OR(BL$8=9, BL$8=10, BL$8=11)), 180*0.5, AND('Relevé pâture'!$E$13="Herbomètre (clics)",'Relevé pâture'!$E25="< 70%", 'Relevé pâture'!$F25="Touffes", OR(BL$8=3, BL$8=4,BL$8=5, BL$8=6)), 160*0.5, AND('Relevé pâture'!$E$13="Herbomètre (clics)",'Relevé pâture'!$E25="< 70%", 'Relevé pâture'!$F25="Touffes", OR(BL$8=6, BL$8=7, BL$8=8)), 200*0.5, AND('Relevé pâture'!$E$13="Herbomètre (clics)",'Relevé pâture'!$E25="< 70%", 'Relevé pâture'!$F25="Touffes", OR(BL$8=9, BL$8=10, BL$8=11)), 140*0.5, TRUE," " ) ->  | BN10: =IF(AND('Relevé pâture'!BX25="Rien", 'Relevé pâture'!BW25>'Relevé pâture'!BU25, ('Relevé pâture'!BW25-'Relevé pâture'!BU25)<>0), ('Relevé pâture'!BW25-'Relevé pâture'!BU25)/('Relevé pâture'!BW$23-'Relevé pâture'!BU$23)*BO10, "" ) ->  | BO10: =_xlfn.IFS( AND('Relevé pâture'!$E$13="Herbomètre (cm)",'Relevé pâture'!$E25="> 70%", 'Relevé pâture'!$F25="Gazon", OR(BN$8=3, BN$8=4,BN$8=5, BN$8=6)), 220, AND('Relevé pâture'!$E$13="Herbomètre (cm)",'Relevé pâture'!$E25="> 70%", 'Relevé pâture'!$F25="Gazon", OR(BN$8=6, BN$8=7, BN$8=8)), 260, AND('Relevé pâture'!$E$13="Herbomètre (cm)",'Relevé pâture'!$E25="> 70%", 'Relevé pâture'!$F25="Gazon", OR(BN$8=9, BN$8=10, BN$8=11)), 200, AND('Relevé pâture'!$E$13="Herbomètre (cm)",'Relevé pâture'!$E25="> 70%", 'Relevé pâture'!$F25="Touffes", OR(BN$8=3, BN$8=4,BN$8=5, BN$8=6)), 180, AND('Relevé pâture'!$E$13="Herbomètre (cm)",'Relevé pâture'!$E25="> 70%", 'Relevé pâture'!$F25="Touffes", OR(BN$8=6, BN$8=7, BN$8=8)), 220, AND('Relevé pâture'!$E$13="Herbomètre (cm)",'Relevé pâture'!$E25="> 70%", 'Relevé pâture'!$F25="Touffes", OR(BN$8=9, BN$8=10, BN$8=11)), 160, AND('Relevé pâture'!$E$13="Herbomètre (cm)",'Relevé pâture'!$E25="< 70%", 'Relevé pâture'!$F25="Gazon", OR(BN$8=3, BN$8=4,BN$8=5, BN$8=6)), 200, AND('Relevé pâture'!$E$13="Herbomètre (cm)",'Relevé pâture'!$E25="< 70%", 'Relevé pâture'!$F25="Gazon", OR(BN$8=6, BN$8=7, BN$8=8)), 240, AND('Relevé pâture'!$E$13="Herbomètre (cm)",'Relevé pâture'!$E25="< 70%", 'Relevé pâture'!$F25="Gazon", OR(BN$8=9, BN$8=10, BN$8=11)), 180, AND('Relevé pâture'!$E$13="Herbomètre (cm)",'Relevé pâture'!$E25="< 70%", 'Relevé pâture'!$F25="Touffes", OR(BN$8=3, BN$8=4,BN$8=5, BN$8=6)), 160, AND('Relevé pâture'!$E$13="Herbomètre (cm)",'Relevé pâture'!$E25="< 70%", 'Relevé pâture'!$F25="Touffes", OR(BN$8=6, BN$8=7, BN$8=8)), 200, AND('Relevé pâture'!$E$13="Herbomètre (cm)",'Relevé pâture'!$E25="< 70%", 'Relevé pâture'!$F25="Touffes", OR(BN$8=9, BN$8=10, BN$8=11)), 140, AND('Relevé pâture'!$E$13="Double mètre (cm)",'Relevé pâture'!$E25="> 70%", 'Relevé pâture'!$F25="Gazon", OR(BN$8=3, BN$8=4,BN$8=5, BN$8=6)), 220*0.6, AND('Relevé pâture'!$E$13="Double mètre (cm)",'Relevé pâture'!$E25="> 70%", 'Relevé pâture'!$F25="Gazon", OR(BN$8=6, BN$8=7, BN$8=8)), 260*0.6, AND('Relevé pâture'!$E$13="Double mètre (cm)",'Relevé pâture'!$E25="> 70%", 'Relevé pâture'!$F25="Gazon", OR(BN$8=9, BN$8=10, BN$8=11)), 200*0.6, AND('Relevé pâture'!$E$13="Double mètre (cm)",'Relevé pâture'!$E25="> 70%", 'Relevé pâture'!$F25="Touffes", OR(BN$8=3, BN$8=4,BN$8=5, BN$8=6)), 180*0.6, AND('Relevé pâture'!$E$13="Double mètre (cm)",'Relevé pâture'!$E25="> 70%", 'Relevé pâture'!$F25="Touffes", OR(BN$8=6, BN$8=7, BN$8=8)), 220*0.6, AND('Relevé pâture'!$E$13="Double mètre (cm)",'Relevé pâture'!$E25="> 70%", 'Relevé pâture'!$F25="Touffes", OR(BN$8=9, BN$8=10, BN$8=11)), 160*0.6, AND('Relevé pâture'!$E$13="Double mètre (cm)",'Relevé pâture'!$E25="< 70%", 'Relevé pâture'!$F25="Gazon", OR(BN$8=3, BN$8=4,BN$8=5, BN$8=6)), 200*0.6, AND('Relevé pâture'!$E$13="Double mètre (cm)",'Relevé pâture'!$E25="< 70%", 'Relevé pâture'!$F25="Gazon", OR(BN$8=6, BN$8=7, BN$8=8)), 240*0.6, AND('Relevé pâture'!$E$13="Double mètre (cm)",'Relevé pâture'!$E25="< 70%", 'Relevé pâture'!$F25="Gazon", OR(BN$8=9, BN$8=10, BN$8=11)), 180*0.6, AND('Relevé pâture'!$E$13="Double mètre (cm)",'Relevé pâture'!$E25="< 70%", 'Relevé pâture'!$F25="Touffes", OR(BN$8=3, BN$8=4,BN$8=5, BN$8=6)), 160*0.6, AND('Relevé pâture'!$E$13="Double mètre (cm)",'Relevé pâture'!$E25="< 70%", 'Relevé pâture'!$F25="Touffes", OR(BN$8=6, BN$8=7, BN$8=8)), 200*0.6, AND('Relevé pâture'!$E$13="Double mètre (cm)",'Relevé pâture'!$E25="< 70%", 'Relevé pâture'!$F25="Touffes", OR(BN$8=9, BN$8=10, BN$8=11)), 140*0.6, AND('Relevé pâture'!$E$13="Herbomètre (clics)",'Relevé pâture'!$E25="> 70%", 'Relevé pâture'!$F25="Gazon", OR(BN$8=3, BN$8=4,BN$8=5, BN$8=6)), 220*0.5, AND('Relevé pâture'!$E$13="Herbomètre (clics)",'Relevé pâture'!$E25="> 70%", 'Relevé pâture'!$F25="Gazon", OR(BN$8=6, BN$8=7, BN$8=8)), 260*0.5, AND('Relevé pâture'!$E$13="Herbomètre (clics)",'Relevé pâture'!$E25="> 70%", 'Relevé pâture'!$F25="Gazon", OR(BN$8=9, BN$8=10, BN$8=11)), 200*0.5, AND('Relevé pâture'!$E$13="Herbomètre (clics)",'Relevé pâture'!$E25="> 70%", 'Relevé pâture'!$F25="Touffes", OR(BN$8=3, BN$8=4,BN$8=5, BN$8=6)), 180*0.5, AND('Relevé pâture'!$E$13="Herbomètre (clics)",'Relevé pâture'!$E25="> 70%", 'Relevé pâture'!$F25="Touffes", OR(BN$8=6, BN$8=7, BN$8=8)), 220*0.5, AND('Relevé pâture'!$E$13="Herbomètre (clics)",'Relevé pâture'!$E25="> 70%", 'Relevé pâture'!$F25="Touffes", OR(BN$8=9, BN$8=10, BN$8=11)), 160*0.5, AND('Relevé pâture'!$E$13="Herbomètre (clics)",'Relevé pâture'!$E25="< 70%", 'Relevé pâture'!$F25="Gazon", OR(BN$8=3, BN$8=4,BN$8=5, BN$8=6)), 200*0.5, AND('Relevé pâture'!$E$13="Herbomètre (clics)",'Relevé pâture'!$E25="< 70%", 'Relevé pâture'!$F25="Gazon", OR(BN$8=6, BN$8=7, BN$8=8)), 240*0.5, AND('Relevé pâture'!$E$13="Herbomètre (clics)",'Relevé pâture'!$E25="< 70%", 'Relevé pâture'!$F25="Gazon", OR(BN$8=9, BN$8=10, BN$8=11)), 180*0.5, AND('Relevé pâture'!$E$13="Herbomètre (clics)",'Relevé pâture'!$E25="< 70%", 'Relevé pâture'!$F25="Touffes", OR(BN$8=3, BN$8=4,BN$8=5, BN$8=6)), 160*0.5, AND('Relevé pâture'!$E$13="Herbomètre (clics)",'Relevé pâture'!$E25="< 70%", 'Relevé pâture'!$F25="Touffes", OR(BN$8=6, BN$8=7, BN$8=8)), 200*0.5, AND('Relevé pâture'!$E$13="Herbomètre (clics)",'Relevé pâture'!$E25="< 70%", 'Relevé pâture'!$F25="Touffes", OR(BN$8=9, BN$8=10, BN$8=11)), 140*0.5, TRUE," " ) ->  | BP10: =IF(AND('Relevé pâture'!BZ25="Rien", 'Relevé pâture'!BY25>'Relevé pâture'!BW25, ('Relevé pâture'!BY25-'Relevé pâture'!BW25)<>0), ('Relevé pâture'!BY25-'Relevé pâture'!BW25)/('Relevé pâture'!BY$23-'Relevé pâture'!BW$23)*BQ10, "" ) ->  | BQ10: =_xlfn.IFS( AND('Relevé pâture'!$E$13="Herbomètre (cm)",'Relevé pâture'!$E25="> 70%", 'Relevé pâture'!$F25="Gazon", OR(BP$8=3, BP$8=4,BP$8=5, BP$8=6)), 220, AND('Relevé pâture'!$E$13="Herbomètre (cm)",'Relevé pâture'!$E25="> 70%", 'Relevé pâture'!$F25="Gazon", OR(BP$8=6, BP$8=7, BP$8=8)), 260, AND('Relevé pâture'!$E$13="Herbomètre (cm)",'Relevé pâture'!$E25="> 70%", 'Relevé pâture'!$F25="Gazon", OR(BP$8=9, BP$8=10, BP$8=11)), 200, AND('Relevé pâture'!$E$13="Herbomètre (cm)",'Relevé pâture'!$E25="> 70%", 'Relevé pâture'!$F25="Touffes", OR(BP$8=3, BP$8=4,BP$8=5, BP$8=6)), 180, AND('Relevé pâture'!$E$13="Herbomètre (cm)",'Relevé pâture'!$E25="> 70%", 'Relevé pâture'!$F25="Touffes", OR(BP$8=6, BP$8=7, BP$8=8)), 220, AND('Relevé pâture'!$E$13="Herbomètre (cm)",'Relevé pâture'!$E25="> 70%", 'Relevé pâture'!$F25="Touffes", OR(BP$8=9, BP$8=10, BP$8=11)), 160, AND('Relevé pâture'!$E$13="Herbomètre (cm)",'Relevé pâture'!$E25="< 70%", 'Relevé pâture'!$F25="Gazon", OR(BP$8=3, BP$8=4,BP$8=5, BP$8=6)), 200, AND('Relevé pâture'!$E$13="Herbomètre (cm)",'Relevé pâture'!$E25="< 70%", 'Relevé pâture'!$F25="Gazon", OR(BP$8=6, BP$8=7, BP$8=8)), 240, AND('Relevé pâture'!$E$13="Herbomètre (cm)",'Relevé pâture'!$E25="< 70%", 'Relevé pâture'!$F25="Gazon", OR(BP$8=9, BP$8=10, BP$8=11)), 180, AND('Relevé pâture'!$E$13="Herbomètre (cm)",'Relevé pâture'!$E25="< 70%", 'Relevé pâture'!$F25="Touffes", OR(BP$8=3, BP$8=4,BP$8=5, BP$8=6)), 160, AND('Relevé pâture'!$E$13="Herbomètre (cm)",'Relevé pâture'!$E25="< 70%", 'Relevé pâture'!$F25="Touffes", OR(BP$8=6, BP$8=7, BP$8=8)), 200, AND('Relevé pâture'!$E$13="Herbomètre (cm)",'Relevé pâture'!$E25="< 70%", 'Relevé pâture'!$F25="Touffes", OR(BP$8=9, BP$8=10, BP$8=11)), 140, AND('Relevé pâture'!$E$13="Double mètre (cm)",'Relevé pâture'!$E25="> 70%", 'Relevé pâture'!$F25="Gazon", OR(BP$8=3, BP$8=4,BP$8=5, BP$8=6)), 220*0.6, AND('Relevé pâture'!$E$13="Double mètre (cm)",'Relevé pâture'!$E25="> 70%", 'Relevé pâture'!$F25="Gazon", OR(BP$8=6, BP$8=7, BP$8=8)), 260*0.6, AND('Relevé pâture'!$E$13="Double mètre (cm)",'Relevé pâture'!$E25="> 70%", 'Relevé pâture'!$F25="Gazon", OR(BP$8=9, BP$8=10, BP$8=11)), 200*0.6, AND('Relevé pâture'!$E$13="Double mètre (cm)",'Relevé pâture'!$E25="> 70%", 'Relevé pâture'!$F25="Touffes", OR(BP$8=3, BP$8=4,BP$8=5, BP$8=6)), 180*0.6, AND('Relevé pâture'!$E$13="Double mètre (cm)",'Relevé pâture'!$E25="> 70%", 'Relevé pâture'!$F25="Touffes", OR(BP$8=6, BP$8=7, BP$8=8)), 220*0.6, AND('Relevé pâture'!$E$13="Double mètre (cm)",'Relevé pâture'!$E25="> 70%", 'Relevé pâture'!$F25="Touffes", OR(BP$8=9, BP$8=10, BP$8=11)), 160*0.6, AND('Relevé pâture'!$E$13="Double mètre (cm)",'Relevé pâture'!$E25="< 70%", 'Relevé pâture'!$F25="Gazon", OR(BP$8=3, BP$8=4,BP$8=5, BP$8=6)), 200*0.6, AND('Relevé pâture'!$E$13="Double mètre (cm)",'Relevé pâture'!$E25="< 70%", 'Relevé pâture'!$F25="Gazon", OR(BP$8=6, BP$8=7, BP$8=8)), 240*0.6, AND('Relevé pâture'!$E$13="Double mètre (cm)",'Relevé pâture'!$E25="< 70%", 'Relevé pâture'!$F25="Gazon", OR(BP$8=9, BP$8=10, BP$8=11)), 180*0.6, AND('Relevé pâture'!$E$13="Double mètre (cm)",'Relevé pâture'!$E25="< 70%", 'Relevé pâture'!$F25="Touffes", OR(BP$8=3, BP$8=4,BP$8=5, BP$8=6)), 160*0.6, AND('Relevé pâture'!$E$13="Double mètre (cm)",'Relevé pâture'!$E25="< 70%", 'Relevé pâture'!$F25="Touffes", OR(BP$8=6, BP$8=7, BP$8=8)), 200*0.6, AND('Relevé pâture'!$E$13="Double mètre (cm)",'Relevé pâture'!$E25="< 70%", 'Relevé pâture'!$F25="Touffes", OR(BP$8=9, BP$8=10, BP$8=11)), 140*0.6, AND('Relevé pâture'!$E$13="Herbomètre (clics)",'Relevé pâture'!$E25="> 70%", 'Relevé pâture'!$F25="Gazon", OR(BP$8=3, BP$8=4,BP$8=5, BP$8=6)), 220*0.5, AND('Relevé pâture'!$E$13="Herbomètre (clics)",'Relevé pâture'!$E25="> 70%", 'Relevé pâture'!$F25="Gazon", OR(BP$8=6, BP$8=7, BP$8=8)), 260*0.5, AND('Relevé pâture'!$E$13="Herbomètre (clics)",'Relevé pâture'!$E25="> 70%", 'Relevé pâture'!$F25="Gazon", OR(BP$8=9, BP$8=10, BP$8=11)), 200*0.5, AND('Relevé pâture'!$E$13="Herbomètre (clics)",'Relevé pâture'!$E25="> 70%", 'Relevé pâture'!$F25="Touffes", OR(BP$8=3, BP$8=4,BP$8=5, BP$8=6)), 180*0.5, AND('Relevé pâture'!$E$13="Herbomètre (clics)",'Relevé pâture'!$E25="> 70%", 'Relevé pâture'!$F25="Touffes", OR(BP$8=6, BP$8=7, BP$8=8)), 220*0.5, AND('Relevé pâture'!$E$13="Herbomètre (clics)",'Relevé pâture'!$E25="> 70%", 'Relevé pâture'!$F25="Touffes", OR(BP$8=9, BP$8=10, BP$8=11)), 160*0.5, AND('Relevé pâture'!$E$13="Herbomètre (clics)",'Relevé pâture'!$E25="< 70%", 'Relevé pâture'!$F25="Gazon", OR(BP$8=3, BP$8=4,BP$8=5, BP$8=6)), 200*0.5, AND('Relevé pâture'!$E$13="Herbomètre (clics)",'Relevé pâture'!$E25="< 70%", 'Relevé pâture'!$F25="Gazon", OR(BP$8=6, BP$8=7, BP$8=8)), 240*0.5, AND('Relevé pâture'!$E$13="Herbomètre (clics)",'Relevé pâture'!$E25="< 70%", 'Relevé pâture'!$F25="Gazon", OR(BP$8=9, BP$8=10, BP$8=11)), 180*0.5, AND('Relevé pâture'!$E$13="Herbomètre (clics)",'Relevé pâture'!$E25="< 70%", 'Relevé pâture'!$F25="Touffes", OR(BP$8=3, BP$8=4,BP$8=5, BP$8=6)), 160*0.5, AND('Relevé pâture'!$E$13="Herbomètre (clics)",'Relevé pâture'!$E25="< 70%", 'Relevé pâture'!$F25="Touffes", OR(BP$8=6, BP$8=7, BP$8=8)), 200*0.5, AND('Relevé pâture'!$E$13="Herbomètre (clics)",'Relevé pâture'!$E25="< 70%", 'Relevé pâture'!$F25="Touffes", OR(BP$8=9, BP$8=10, BP$8=11)), 140*0.5, TRUE," " ) ->  | BR10: =IF(AND('Relevé pâture'!CB25="Rien", 'Relevé pâture'!CA25>'Relevé pâture'!BY25, ('Relevé pâture'!CA25-'Relevé pâture'!BY25)<>0), ('Relevé pâture'!CA25-'Relevé pâture'!BY25)/('Relevé pâture'!CA$23-'Relevé pâture'!BY$23)*BS10, "" ) ->  | BS10: =_xlfn.IFS( AND('Relevé pâture'!$E$13="Herbomètre (cm)",'Relevé pâture'!$E25="> 70%", 'Relevé pâture'!$F25="Gazon", OR(BR$8=3, BR$8=4,BR$8=5, BR$8=6)), 220, AND('Relevé pâture'!$E$13="Herbomètre (cm)",'Relevé pâture'!$E25="> 70%", 'Relevé pâture'!$F25="Gazon", OR(BR$8=6, BR$8=7, BR$8=8)), 260, AND('Relevé pâture'!$E$13="Herbomètre (cm)",'Relevé pâture'!$E25="> 70%", 'Relevé pâture'!$F25="Gazon", OR(BR$8=9, BR$8=10, BR$8=11)), 200, AND('Relevé pâture'!$E$13="Herbomètre (cm)",'Relevé pâture'!$E25="> 70%", 'Relevé pâture'!$F25="Touffes", OR(BR$8=3, BR$8=4,BR$8=5, BR$8=6)), 180, AND('Relevé pâture'!$E$13="Herbomètre (cm)",'Relevé pâture'!$E25="> 70%", 'Relevé pâture'!$F25="Touffes", OR(BR$8=6, BR$8=7, BR$8=8)), 220, AND('Relevé pâture'!$E$13="Herbomètre (cm)",'Relevé pâture'!$E25="> 70%", 'Relevé pâture'!$F25="Touffes", OR(BR$8=9, BR$8=10, BR$8=11)), 160, AND('Relevé pâture'!$E$13="Herbomètre (cm)",'Relevé pâture'!$E25="< 70%", 'Relevé pâture'!$F25="Gazon", OR(BR$8=3, BR$8=4,BR$8=5, BR$8=6)), 200, AND('Relevé pâture'!$E$13="Herbomètre (cm)",'Relevé pâture'!$E25="< 70%", 'Relevé pâture'!$F25="Gazon", OR(BR$8=6, BR$8=7, BR$8=8)), 240, AND('Relevé pâture'!$E$13="Herbomètre (cm)",'Relevé pâture'!$E25="< 70%", 'Relevé pâture'!$F25="Gazon", OR(BR$8=9, BR$8=10, BR$8=11)), 180, AND('Relevé pâture'!$E$13="Herbomètre (cm)",'Relevé pâture'!$E25="< 70%", 'Relevé pâture'!$F25="Touffes", OR(BR$8=3, BR$8=4,BR$8=5, BR$8=6)), 160, AND('Relevé pâture'!$E$13="Herbomètre (cm)",'Relevé pâture'!$E25="< 70%", 'Relevé pâture'!$F25="Touffes", OR(BR$8=6, BR$8=7, BR$8=8)), 200, AND('Relevé pâture'!$E$13="Herbomètre (cm)",'Relevé pâture'!$E25="< 70%", 'Relevé pâture'!$F25="Touffes", OR(BR$8=9, BR$8=10, BR$8=11)), 140, AND('Relevé pâture'!$E$13="Double mètre (cm)",'Relevé pâture'!$E25="> 70%", 'Relevé pâture'!$F25="Gazon", OR(BR$8=3, BR$8=4,BR$8=5, BR$8=6)), 220*0.6, AND('Relevé pâture'!$E$13="Double mètre (cm)",'Relevé pâture'!$E25="> 70%", 'Relevé pâture'!$F25="Gazon", OR(BR$8=6, BR$8=7, BR$8=8)), 260*0.6, AND('Relevé pâture'!$E$13="Double mètre (cm)",'Relevé pâture'!$E25="> 70%", 'Relevé pâture'!$F25="Gazon", OR(BR$8=9, BR$8=10, BR$8=11)), 200*0.6, AND('Relevé pâture'!$E$13="Double mètre (cm)",'Relevé pâture'!$E25="> 70%", 'Relevé pâture'!$F25="Touffes", OR(BR$8=3, BR$8=4,BR$8=5, BR$8=6)), 180*0.6, AND('Relevé pâture'!$E$13="Double mètre (cm)",'Relevé pâture'!$E25="> 70%", 'Relevé pâture'!$F25="Touffes", OR(BR$8=6, BR$8=7, BR$8=8)), 220*0.6, AND('Relevé pâture'!$E$13="Double mètre (cm)",'Relevé pâture'!$E25="> 70%", 'Relevé pâture'!$F25="Touffes", OR(BR$8=9, BR$8=10, BR$8=11)), 160*0.6, AND('Relevé pâture'!$E$13="Double mètre (cm)",'Relevé pâture'!$E25="< 70%", 'Relevé pâture'!$F25="Gazon", OR(BR$8=3, BR$8=4,BR$8=5, BR$8=6)), 200*0.6, AND('Relevé pâture'!$E$13="Double mètre (cm)",'Relevé pâture'!$E25="< 70%", 'Relevé pâture'!$F25="Gazon", OR(BR$8=6, BR$8=7, BR$8=8)), 240*0.6, AND('Relevé pâture'!$E$13="Double mètre (cm)",'Relevé pâture'!$E25="< 70%", 'Relevé pâture'!$F25="Gazon", OR(BR$8=9, BR$8=10, BR$8=11)), 180*0.6, AND('Relevé pâture'!$E$13="Double mètre (cm)",'Relevé pâture'!$E25="< 70%", 'Relevé pâture'!$F25="Touffes", OR(BR$8=3, BR$8=4,BR$8=5, BR$8=6)), 160*0.6, AND('Relevé pâture'!$E$13="Double mètre (cm)",'Relevé pâture'!$E25="< 70%", 'Relevé pâture'!$F25="Touffes", OR(BR$8=6, BR$8=7, BR$8=8)), 200*0.6, AND('Relevé pâture'!$E$13="Double mètre (cm)",'Relevé pâture'!$E25="< 70%", 'Relevé pâture'!$F25="Touffes", OR(BR$8=9, BR$8=10, BR$8=11)), 140*0.6, AND('Relevé pâture'!$E$13="Herbomètre (clics)",'Relevé pâture'!$E25="> 70%", 'Relevé pâture'!$F25="Gazon", OR(BR$8=3, BR$8=4,BR$8=5, BR$8=6)), 220*0.5, AND('Relevé pâture'!$E$13="Herbomètre (clics)",'Relevé pâture'!$E25="> 70%", 'Relevé pâture'!$F25="Gazon", OR(BR$8=6, BR$8=7, BR$8=8)), 260*0.5, AND('Relevé pâture'!$E$13="Herbomètre (clics)",'Relevé pâture'!$E25="> 70%", 'Relevé pâture'!$F25="Gazon", OR(BR$8=9, BR$8=10, BR$8=11)), 200*0.5, AND('Relevé pâture'!$E$13="Herbomètre (clics)",'Relevé pâture'!$E25="> 70%", 'Relevé pâture'!$F25="Touffes", OR(BR$8=3, BR$8=4,BR$8=5, BR$8=6)), 180*0.5, AND('Relevé pâture'!$E$13="Herbomètre (clics)",'Relevé pâture'!$E25="> 70%", 'Relevé pâture'!$F25="Touffes", OR(BR$8=6, BR$8=7, BR$8=8)), 220*0.5, AND('Relevé pâture'!$E$13="Herbomètre (clics)",'Relevé pâture'!$E25="> 70%", 'Relevé pâture'!$F25="Touffes", OR(BR$8=9, BR$8=10, BR$8=11)), 160*0.5, AND('Relevé pâture'!$E$13="Herbomètre (clics)",'Relevé pâture'!$E25="< 70%", 'Relevé pâture'!$F25="Gazon", OR(BR$8=3, BR$8=4,BR$8=5, BR$8=6)), 200*0.5, AND('Relevé pâture'!$E$13="Herbomètre (clics)",'Relevé pâture'!$E25="< 70%", 'Relevé pâture'!$F25="Gazon", OR(BR$8=6, BR$8=7, BR$8=8)), 240*0.5, AND('Relevé pâture'!$E$13="Herbomètre (clics)",'Relevé pâture'!$E25="< 70%", 'Relevé pâture'!$F25="Gazon", OR(BR$8=9, BR$8=10, BR$8=11)), 180*0.5, AND('Relevé pâture'!$E$13="Herbomètre (clics)",'Relevé pâture'!$E25="< 70%", 'Relevé pâture'!$F25="Touffes", OR(BR$8=3, BR$8=4,BR$8=5, BR$8=6)), 160*0.5, AND('Relevé pâture'!$E$13="Herbomètre (clics)",'Relevé pâture'!$E25="< 70%", 'Relevé pâture'!$F25="Touffes", OR(BR$8=6, BR$8=7, BR$8=8)), 200*0.5, AND('Relevé pâture'!$E$13="Herbomètre (clics)",'Relevé pâture'!$E25="< 70%", 'Relevé pâture'!$F25="Touffes", OR(BR$8=9, BR$8=10, BR$8=11)), 140*0.5, TRUE," " ) ->  | BT10: =IF(AND('Relevé pâture'!CD25="Rien", 'Relevé pâture'!CC25>'Relevé pâture'!CA25, ('Relevé pâture'!CC25-'Relevé pâture'!CA25)<>0), ('Relevé pâture'!CC25-'Relevé pâture'!CA25)/('Relevé pâture'!CC$23-'Relevé pâture'!CA$23)*BU10, "" ) ->  | BU10: =_xlfn.IFS( AND('Relevé pâture'!$E$13="Herbomètre (cm)",'Relevé pâture'!$E25="> 70%", 'Relevé pâture'!$F25="Gazon", OR(BT$8=3, BT$8=4,BT$8=5, BT$8=6)), 220, AND('Relevé pâture'!$E$13="Herbomètre (cm)",'Relevé pâture'!$E25="> 70%", 'Relevé pâture'!$F25="Gazon", OR(BT$8=6, BT$8=7, BT$8=8)), 260, AND('Relevé pâture'!$E$13="Herbomètre (cm)",'Relevé pâture'!$E25="> 70%", 'Relevé pâture'!$F25="Gazon", OR(BT$8=9, BT$8=10, BT$8=11)), 200, AND('Relevé pâture'!$E$13="Herbomètre (cm)",'Relevé pâture'!$E25="> 70%", 'Relevé pâture'!$F25="Touffes", OR(BT$8=3, BT$8=4,BT$8=5, BT$8=6)), 180, AND('Relevé pâture'!$E$13="Herbomètre (cm)",'Relevé pâture'!$E25="> 70%", 'Relevé pâture'!$F25="Touffes", OR(BT$8=6, BT$8=7, BT$8=8)), 220, AND('Relevé pâture'!$E$13="Herbomètre (cm)",'Relevé pâture'!$E25="> 70%", 'Relevé pâture'!$F25="Touffes", OR(BT$8=9, BT$8=10, BT$8=11)), 160, AND('Relevé pâture'!$E$13="Herbomètre (cm)",'Relevé pâture'!$E25="< 70%", 'Relevé pâture'!$F25="Gazon", OR(BT$8=3, BT$8=4,BT$8=5, BT$8=6)), 200, AND('Relevé pâture'!$E$13="Herbomètre (cm)",'Relevé pâture'!$E25="< 70%", 'Relevé pâture'!$F25="Gazon", OR(BT$8=6, BT$8=7, BT$8=8)), 240, AND('Relevé pâture'!$E$13="Herbomètre (cm)",'Relevé pâture'!$E25="< 70%", 'Relevé pâture'!$F25="Gazon", OR(BT$8=9, BT$8=10, BT$8=11)), 180, AND('Relevé pâture'!$E$13="Herbomètre (cm)",'Relevé pâture'!$E25="< 70%", 'Relevé pâture'!$F25="Touffes", OR(BT$8=3, BT$8=4,BT$8=5, BT$8=6)), 160, AND('Relevé pâture'!$E$13="Herbomètre (cm)",'Relevé pâture'!$E25="< 70%", 'Relevé pâture'!$F25="Touffes", OR(BT$8=6, BT$8=7, BT$8=8)), 200, AND('Relevé pâture'!$E$13="Herbomètre (cm)",'Relevé pâture'!$E25="< 70%", 'Relevé pâture'!$F25="Touffes", OR(BT$8=9, BT$8=10, BT$8=11)), 140, AND('Relevé pâture'!$E$13="Double mètre (cm)",'Relevé pâture'!$E25="> 70%", 'Relevé pâture'!$F25="Gazon", OR(BT$8=3, BT$8=4,BT$8=5, BT$8=6)), 220*0.6, AND('Relevé pâture'!$E$13="Double mètre (cm)",'Relevé pâture'!$E25="> 70%", 'Relevé pâture'!$F25="Gazon", OR(BT$8=6, BT$8=7, BT$8=8)), 260*0.6, AND('Relevé pâture'!$E$13="Double mètre (cm)",'Relevé pâture'!$E25="> 70%", 'Relevé pâture'!$F25="Gazon", OR(BT$8=9, BT$8=10, BT$8=11)), 200*0.6, AND('Relevé pâture'!$E$13="Double mètre (cm)",'Relevé pâture'!$E25="> 70%", 'Relevé pâture'!$F25="Touffes", OR(BT$8=3, BT$8=4,BT$8=5, BT$8=6)), 180*0.6, AND('Relevé pâture'!$E$13="Double mètre (cm)",'Relevé pâture'!$E25="> 70%", 'Relevé pâture'!$F25="Touffes", OR(BT$8=6, BT$8=7, BT$8=8)), 220*0.6, AND('Relevé pâture'!$E$13="Double mètre (cm)",'Relevé pâture'!$E25="> 70%", 'Relevé pâture'!$F25="Touffes", OR(BT$8=9, BT$8=10, BT$8=11)), 160*0.6, AND('Relevé pâture'!$E$13="Double mètre (cm)",'Relevé pâture'!$E25="< 70%", 'Relevé pâture'!$F25="Gazon", OR(BT$8=3, BT$8=4,BT$8=5, BT$8=6)), 200*0.6, AND('Relevé pâture'!$E$13="Double mètre (cm)",'Relevé pâture'!$E25="< 70%", 'Relevé pâture'!$F25="Gazon", OR(BT$8=6, BT$8=7, BT$8=8)), 240*0.6, AND('Relevé pâture'!$E$13="Double mètre (cm)",'Relevé pâture'!$E25="< 70%", 'Relevé pâture'!$F25="Gazon", OR(BT$8=9, BT$8=10, BT$8=11)), 180*0.6, AND('Relevé pâture'!$E$13="Double mètre (cm)",'Relevé pâture'!$E25="< 70%", 'Relevé pâture'!$F25="Touffes", OR(BT$8=3, BT$8=4,BT$8=5, BT$8=6)), 160*0.6, AND('Relevé pâture'!$E$13="Double mètre (cm)",'Relevé pâture'!$E25="< 70%", 'Relevé pâture'!$F25="Touffes", OR(BT$8=6, BT$8=7, BT$8=8)), 200*0.6, AND('Relevé pâture'!$E$13="Double mètre (cm)",'Relevé pâture'!$E25="< 70%", 'Relevé pâture'!$F25="Touffes", OR(BT$8=9, BT$8=10, BT$8=11)), 140*0.6, AND('Relevé pâture'!$E$13="Herbomètre (clics)",'Relevé pâture'!$E25="> 70%", 'Relevé pâture'!$F25="Gazon", OR(BT$8=3, BT$8=4,BT$8=5, BT$8=6)), 220*0.5, AND('Relevé pâture'!$E$13="Herbomètre (clics)",'Relevé pâture'!$E25="> 70%", 'Relevé pâture'!$F25="Gazon", OR(BT$8=6, BT$8=7, BT$8=8)), 260*0.5, AND('Relevé pâture'!$E$13="Herbomètre (clics)",'Relevé pâture'!$E25="> 70%", 'Relevé pâture'!$F25="Gazon", OR(BT$8=9, BT$8=10, BT$8=11)), 200*0.5, AND('Relevé pâture'!$E$13="Herbomètre (clics)",'Relevé pâture'!$E25="> 70%", 'Relevé pâture'!$F25="Touffes", OR(BT$8=3, BT$8=4,BT$8=5, BT$8=6)), 180*0.5, AND('Relevé pâture'!$E$13="Herbomètre (clics)",'Relevé pâture'!$E25="> 70%", 'Relevé pâture'!$F25="Touffes", OR(BT$8=6, BT$8=7, BT$8=8)), 220*0.5, AND('Relevé pâture'!$E$13="Herbomètre (clics)",'Relevé pâture'!$E25="> 70%", 'Relevé pâture'!$F25="Touffes", OR(BT$8=9, BT$8=10, BT$8=11)), 160*0.5, AND('Relevé pâture'!$E$13="Herbomètre (clics)",'Relevé pâture'!$E25="< 70%", 'Relevé pâture'!$F25="Gazon", OR(BT$8=3, BT$8=4,BT$8=5, BT$8=6)), 200*0.5, AND('Relevé pâture'!$E$13="Herbomètre (clics)",'Relevé pâture'!$E25="< 70%", 'Relevé pâture'!$F25="Gazon", OR(BT$8=6, BT$8=7, BT$8=8)), 240*0.5, AND('Relevé pâture'!$E$13="Herbomètre (clics)",'Relevé pâture'!$E25="< 70%", 'Relevé pâture'!$F25="Gazon", OR(BT$8=9, BT$8=10, BT$8=11)), 180*0.5, AND('Relevé pâture'!$E$13="Herbomètre (clics)",'Relevé pâture'!$E25="< 70%", 'Relevé pâture'!$F25="Touffes", OR(BT$8=3, BT$8=4,BT$8=5, BT$8=6)), 160*0.5, AND('Relevé pâture'!$E$13="Herbomètre (clics)",'Relevé pâture'!$E25="< 70%", 'Relevé pâture'!$F25="Touffes", OR(BT$8=6, BT$8=7, BT$8=8)), 200*0.5, AND('Relevé pâture'!$E$13="Herbomètre (clics)",'Relevé pâture'!$E25="< 70%", 'Relevé pâture'!$F25="Touffes", OR(BT$8=9, BT$8=10, BT$8=11)), 140*0.5, TRUE," " ) ->  | BV10: =IF(AND('Relevé pâture'!CF25="Rien", 'Relevé pâture'!CE25>'Relevé pâture'!CC25, ('Relevé pâture'!CE25-'Relevé pâture'!CC25)<>0), ('Relevé pâture'!CE25-'Relevé pâture'!CC25)/('Relevé pâture'!CE$23-'Relevé pâture'!CC$23)*BW10, "" ) ->  | BW10: =_xlfn.IFS( AND('Relevé pâture'!$E$13="Herbomètre (cm)",'Relevé pâture'!$E25="> 70%", 'Relevé pâture'!$F25="Gazon", OR(BV$8=3, BV$8=4,BV$8=5, BV$8=6)), 220, AND('Relevé pâture'!$E$13="Herbomètre (cm)",'Relevé pâture'!$E25="> 70%", 'Relevé pâture'!$F25="Gazon", OR(BV$8=6, BV$8=7, BV$8=8)), 260, AND('Relevé pâture'!$E$13="Herbomètre (cm)",'Relevé pâture'!$E25="> 70%", 'Relevé pâture'!$F25="Gazon", OR(BV$8=9, BV$8=10, BV$8=11)), 200, AND('Relevé pâture'!$E$13="Herbomètre (cm)",'Relevé pâture'!$E25="> 70%", 'Relevé pâture'!$F25="Touffes", OR(BV$8=3, BV$8=4,BV$8=5, BV$8=6)), 180, AND('Relevé pâture'!$E$13="Herbomètre (cm)",'Relevé pâture'!$E25="> 70%", 'Relevé pâture'!$F25="Touffes", OR(BV$8=6, BV$8=7, BV$8=8)), 220, AND('Relevé pâture'!$E$13="Herbomètre (cm)",'Relevé pâture'!$E25="> 70%", 'Relevé pâture'!$F25="Touffes", OR(BV$8=9, BV$8=10, BV$8=11)), 160, AND('Relevé pâture'!$E$13="Herbomètre (cm)",'Relevé pâture'!$E25="< 70%", 'Relevé pâture'!$F25="Gazon", OR(BV$8=3, BV$8=4,BV$8=5, BV$8=6)), 200, AND('Relevé pâture'!$E$13="Herbomètre (cm)",'Relevé pâture'!$E25="< 70%", 'Relevé pâture'!$F25="Gazon", OR(BV$8=6, BV$8=7, BV$8=8)), 240, AND('Relevé pâture'!$E$13="Herbomètre (cm)",'Relevé pâture'!$E25="< 70%", 'Relevé pâture'!$F25="Gazon", OR(BV$8=9, BV$8=10, BV$8=11)), 180, AND('Relevé pâture'!$E$13="Herbomètre (cm)",'Relevé pâture'!$E25="< 70%", 'Relevé pâture'!$F25="Touffes", OR(BV$8=3, BV$8=4,BV$8=5, BV$8=6)), 160, AND('Relevé pâture'!$E$13="Herbomètre (cm)",'Relevé pâture'!$E25="< 70%", 'Relevé pâture'!$F25="Touffes", OR(BV$8=6, BV$8=7, BV$8=8)), 200, AND('Relevé pâture'!$E$13="Herbomètre (cm)",'Relevé pâture'!$E25="< 70%", 'Relevé pâture'!$F25="Touffes", OR(BV$8=9, BV$8=10, BV$8=11)), 140, AND('Relevé pâture'!$E$13="Double mètre (cm)",'Relevé pâture'!$E25="> 70%", 'Relevé pâture'!$F25="Gazon", OR(BV$8=3, BV$8=4,BV$8=5, BV$8=6)), 220*0.6, AND('Relevé pâture'!$E$13="Double mètre (cm)",'Relevé pâture'!$E25="> 70%", 'Relevé pâture'!$F25="Gazon", OR(BV$8=6, BV$8=7, BV$8=8)), 260*0.6, AND('Relevé pâture'!$E$13="Double mètre (cm)",'Relevé pâture'!$E25="> 70%", 'Relevé pâture'!$F25="Gazon", OR(BV$8=9, BV$8=10, BV$8=11)), 200*0.6, AND('Relevé pâture'!$E$13="Double mètre (cm)",'Relevé pâture'!$E25="> 70%", 'Relevé pâture'!$F25="Touffes", OR(BV$8=3, BV$8=4,BV$8=5, BV$8=6)), 180*0.6, AND('Relevé pâture'!$E$13="Double mètre (cm)",'Relevé pâture'!$E25="> 70%", 'Relevé pâture'!$F25="Touffes", OR(BV$8=6, BV$8=7, BV$8=8)), 220*0.6, AND('Relevé pâture'!$E$13="Double mètre (cm)",'Relevé pâture'!$E25="> 70%", 'Relevé pâture'!$F25="Touffes", OR(BV$8=9, BV$8=10, BV$8=11)), 160*0.6, AND('Relevé pâture'!$E$13="Double mètre (cm)",'Relevé pâture'!$E25="< 70%", 'Relevé pâture'!$F25="Gazon", OR(BV$8=3, BV$8=4,BV$8=5, BV$8=6)), 200*0.6, AND('Relevé pâture'!$E$13="Double mètre (cm)",'Relevé pâture'!$E25="< 70%", 'Relevé pâture'!$F25="Gazon", OR(BV$8=6, BV$8=7, BV$8=8)), 240*0.6, AND('Relevé pâture'!$E$13="Double mètre (cm)",'Relevé pâture'!$E25="< 70%", 'Relevé pâture'!$F25="Gazon", OR(BV$8=9, BV$8=10, BV$8=11)), 180*0.6, AND('Relevé pâture'!$E$13="Double mètre (cm)",'Relevé pâture'!$E25="< 70%", 'Relevé pâture'!$F25="Touffes", OR(BV$8=3, BV$8=4,BV$8=5, BV$8=6)), 160*0.6, AND('Relevé pâture'!$E$13="Double mètre (cm)",'Relevé pâture'!$E25="< 70%", 'Relevé pâture'!$F25="Touffes", OR(BV$8=6, BV$8=7, BV$8=8)), 200*0.6, AND('Relevé pâture'!$E$13="Double mètre (cm)",'Relevé pâture'!$E25="< 70%", 'Relevé pâture'!$F25="Touffes", OR(BV$8=9, BV$8=10, BV$8=11)), 140*0.6, AND('Relevé pâture'!$E$13="Herbomètre (clics)",'Relevé pâture'!$E25="> 70%", 'Relevé pâture'!$F25="Gazon", OR(BV$8=3, BV$8=4,BV$8=5, BV$8=6)), 220*0.5, AND('Relevé pâture'!$E$13="Herbomètre (clics)",'Relevé pâture'!$E25="> 70%", 'Relevé pâture'!$F25="Gazon", OR(BV$8=6, BV$8=7, BV$8=8)), 260*0.5, AND('Relevé pâture'!$E$13="Herbomètre (clics)",'Relevé pâture'!$E25="> 70%", 'Relevé pâture'!$F25="Gazon", OR(BV$8=9, BV$8=10, BV$8=11)), 200*0.5, AND('Relevé pâture'!$E$13="Herbomètre (clics)",'Relevé pâture'!$E25="> 70%", 'Relevé pâture'!$F25="Touffes", OR(BV$8=3, BV$8=4,BV$8=5, BV$8=6)), 180*0.5, AND('Relevé pâture'!$E$13="Herbomètre (clics)",'Relevé pâture'!$E25="> 70%", 'Relevé pâture'!$F25="Touffes", OR(BV$8=6, BV$8=7, BV$8=8)), 220*0.5, AND('Relevé pâture'!$E$13="Herbomètre (clics)",'Relevé pâture'!$E25="> 70%", 'Relevé pâture'!$F25="Touffes", OR(BV$8=9, BV$8=10, BV$8=11)), 160*0.5, AND('Relevé pâture'!$E$13="Herbomètre (clics)",'Relevé pâture'!$E25="< 70%", 'Relevé pâture'!$F25="Gazon", OR(BV$8=3, BV$8=4,BV$8=5, BV$8=6)), 200*0.5, AND('Relevé pâture'!$E$13="Herbomètre (clics)",'Relevé pâture'!$E25="< 70%", 'Relevé pâture'!$F25="Gazon", OR(BV$8=6, BV$8=7, BV$8=8)), 240*0.5, AND('Relevé pâture'!$E$13="Herbomètre (clics)",'Relevé pâture'!$E25="< 70%", 'Relevé pâture'!$F25="Gazon", OR(BV$8=9, BV$8=10, BV$8=11)), 180*0.5, AND('Relevé pâture'!$E$13="Herbomètre (clics)",'Relevé pâture'!$E25="< 70%", 'Relevé pâture'!$F25="Touffes", OR(BV$8=3, BV$8=4,BV$8=5, BV$8=6)), 160*0.5, AND('Relevé pâture'!$E$13="Herbomètre (clics)",'Relevé pâture'!$E25="< 70%", 'Relevé pâture'!$F25="Touffes", OR(BV$8=6, BV$8=7, BV$8=8)), 200*0.5, AND('Relevé pâture'!$E$13="Herbomètre (clics)",'Relevé pâture'!$E25="< 70%", 'Relevé pâture'!$F25="Touffes", OR(BV$8=9, BV$8=10, BV$8=11)), 140*0.5, TRUE," " ) ->  | BX10: =LOOKUP(9^9,F10:BV10) -> 220
